﻿Department Family,Entity,Date,Expense Type,Expense Area,Supplier,Transaction Number,AP Amount,VAT Registration Number,Purchase Invoice Number
Department of Health,Worcestershire Acute Hospitals NHST,2016-10-31,Med & Surg Equip General,Physiotherapy,SUPERDRAGON TCM UK LTD,14558717,62.24,875773370,1018695
Department of Health,Worcestershire Acute Hospitals NHST,2016-10-31,Patients Appl: Purchase,Trauma + Orthopaedics WRH,OTTO BOCK HEALTHCARE PLC,15849514,206.88,228421281,911455823
Department of Health,Worcestershire Acute Hospitals NHST,2016-10-31,Med & Surg Equip General,ICCU - Worcs,ARJOHUNTLEIGH UK,16628207,143,GB382474630,224737
Department of Health,Worcestershire Acute Hospitals NHST,2016-10-31,Prostheses,T&O Medical,JOHNSON & JOHNSON MEDICAL LTD,16844664,6258.08,592926302,15303733
Department of Health,Worcestershire Acute Hospitals NHST,2016-10-31,Med & Surg Equip General,Microbiology,LABQUALITY OY,16869077,904.2848924,,122440
Department of Health,Worcestershire Acute Hospitals NHST,2016-10-31,Computer Maintenance,Acute IT Project Managers,K2 MEDICAL SYSTEMS LTD,16869084,80,744587302,5297
Department of Health,Worcestershire Acute Hospitals NHST,2016-10-31,Prostheses,T&O Medical,TJ SMITH & NEPHEW LTD,17032961,6011.72,,0915267195
Department of Health,Worcestershire Acute Hospitals NHST,2016-10-31,Med & Surg Equip General,HSDU- Multi-Specialty,BUNZL HEALTHCARE,17441379,-70,286014266,OPI576486
Department of Health,Worcestershire Acute Hospitals NHST,2016-10-31,Sterile Products,HSDU- Multi-Specialty,BUNZL HEALTHCARE,17441379,420,286014266,OPI576486
Department of Health,Worcestershire Acute Hospitals NHST,2016-10-31,Surg Instruments General,T&O Medical,JOHNSON & JOHNSON MEDICAL LTD,17494665,2615.64,592926302,16034256
Department of Health,Worcestershire Acute Hospitals NHST,2016-10-31,Hearing Aids: Purchase,Audiology- KGH,OTICON LTD,17526934,696,702459451,IN145356
Department of Health,Worcestershire Acute Hospitals NHST,2016-10-31,Commissioning CHC,Histology,DAKO UK LTD,17554197,24,873904593,1109081
Department of Health,Worcestershire Acute Hospitals NHST,2016-10-31,Patients Appl: Purchase,GP Direct Access KGH,DUDLEY SURGICAL APPLIANCES LTD,17554293,58.8,277173633,11961
Department of Health,Worcestershire Acute Hospitals NHST,2016-10-31,Commissioning CHC,Histology,DAKO UK LTD,17554785,3024,873904593,1109084
Department of Health,Worcestershire Acute Hospitals NHST,2016-10-31,Surg Instruments General,Dental Surg,3M HEALTH CARE LTD,17827372,438.6,362586629,1280530
Department of Health,Worcestershire Acute Hospitals NHST,2016-10-31,Med & Surg Equip Repair,HSDU- Multi-Specialty,RICHARD WOLF UK LTD,18040248,222,317837538,242873
Department of Health,Worcestershire Acute Hospitals NHST,2016-10-31,Patients Appl: Purchase,GP Direct Access KGH,DACEY LTD,18105668,132.94,433460177,452614
Department of Health,Worcestershire Acute Hospitals NHST,2016-10-31,Med & Surg Equip General,Main Theatre,TJ SMITH & NEPHEW LTD,18123847,516.5,,0915293157
Department of Health,Worcestershire Acute Hospitals NHST,2016-10-31,Prostheses,T&O Medical,JOHNSON & JOHNSON MEDICAL LTD,18187199,170.35,592926302,91299019
Department of Health,Worcestershire Acute Hospitals NHST,2016-10-31,Hearing Aids: Purchase,Audiology- KGH,OTICON LTD,18274921,66,702459451,IN161687
Department of Health,Worcestershire Acute Hospitals NHST,2016-10-31,Hearing Aids: Purchase,Audiology- KGH,OTICON LTD,18274929,717,702459451,IN162066
Department of Health,Worcestershire Acute Hospitals NHST,2016-10-31,Printing Costs,Obs + Gynae-Med,COLOUR CONNECTION,18287204,74,,1003121
Department of Health,Worcestershire Acute Hospitals NHST,2016-10-31,Patients Appl: Purchase,GP Direct Access Alex,DACEY LTD,18328593,126.47,433460177,453530
Department of Health,Worcestershire Acute Hospitals NHST,2016-10-31,Patients Appl: Purchase,Trauma + Orthopaed Alex,DACEY LTD,18328593,-21.08,433460177,453530
Department of Health,Worcestershire Acute Hospitals NHST,2016-10-31,Patients Appl: Purchase,Trauma + Orthopaed Alex,DACEY LTD,18412226,191.7,433460177,454296
Department of Health,Worcestershire Acute Hospitals NHST,2016-10-31,Patients Appl: Purchase,Vascular Surgery,CHANECO,18430975,70,294088133,0000146375
Department of Health,Worcestershire Acute Hospitals NHST,2016-10-31,Sterile Products,Labour + Delivery,UNISURGE INTERNATIONAL LTD,18430984,89.1,849747269,SI248368
Department of Health,Worcestershire Acute Hospitals NHST,2016-10-31,X-Ray Film & Chemicals,Radiology Dept KGH,GUERBET LABORATORIES LTD,18469628,130,653183145,6920003566
Department of Health,Worcestershire Acute Hospitals NHST,2016-10-31,Sterile Products,Labour + Delivery,UNISURGE INTERNATIONAL LTD,18532478,89.1,849747269,SI249261
Department of Health,Worcestershire Acute Hospitals NHST,2016-10-31,Med & Surg Equip Disp,Cardiac Cath Lab,TERUMO UK LTD,18553978,94,804941042,3876001526
Department of Health,Worcestershire Acute Hospitals NHST,2016-10-31,Med & Surg Equip Disp,Cardiac Cath Lab,BOSTON SCIENTIFIC LTD,18569277,-8.4,896105403,7161485077
Department of Health,Worcestershire Acute Hospitals NHST,2016-10-31,Stents,Cardiac Cath Lab,BOSTON SCIENTIFIC LTD,18569277,50.4,896105403,7161485077
Department of Health,Worcestershire Acute Hospitals NHST,2016-10-31,X-Ray Equipment Purchase,Radiotherapy WRH,ENVIRONMENTAL MANAGEMENT & SERVICE LTD,18598820,300.54,729133926,106490
Department of Health,Worcestershire Acute Hospitals NHST,2016-10-31,X-Ray Equipment Purchase,Radiotherapy WRH,ENVIRONMENTAL MANAGEMENT & SERVICE LTD,18598833,38,729133926,106491
Department of Health,Worcestershire Acute Hospitals NHST,2016-10-31,Hearing Aids: Purchase,Audiology- KGH,PHONAK UK LTD,18598834,66.5,704007779,2591475918
Department of Health,Worcestershire Acute Hospitals NHST,2016-10-31,Laboratory Reagents,Haematology Blood Bank,ORTHO CLINICAL DIAGNOSTICS,18648825,4727.4,538056733,16007452
Department of Health,Worcestershire Acute Hospitals NHST,2016-10-31,Med & Surg Equip Disp,Diabetic Nursing TCS,MEDTRONIC LTD,18723656,240,467254526,1051403074
Department of Health,Worcestershire Acute Hospitals NHST,2016-10-31,Hearing Aids: Purchase,Audiology- Alex,UNIVERSAL AIDS LTD,18788409,370.23,298609500,231173
Department of Health,Worcestershire Acute Hospitals NHST,2016-10-31,Stents,Cardiac Cath Lab,BOSTON SCIENTIFIC LTD,18840606,42,896105403,7161494878
Department of Health,Worcestershire Acute Hospitals NHST,2016-10-31,Stents,Cardiac Cath Lab,BOSTON SCIENTIFIC LTD,18840609,42,896105403,7161494877
Department of Health,Worcestershire Acute Hospitals NHST,2016-10-31,Furniture & Fittings,Diabetic Nursing TCS,ANIMAS,18898596,627.25,538056733,415167KI10659
Department of Health,Worcestershire Acute Hospitals NHST,2016-10-31,Prostheses,T&O Medical,JOHNSON & JOHNSON MEDICAL LTD,18967657,1500,592926302,16122087
Department of Health,Worcestershire Acute Hospitals NHST,2016-10-31,Furniture & Fittings,Diabetic Nursing TCS,ANIMAS,19004134,629.65,538056733,415356KI10659
Department of Health,Worcestershire Acute Hospitals NHST,2016-10-31,Furniture & Fittings,Diabetic Nursing TCS,ANIMAS,19004137,434.6,538056733,415403KI10659
Department of Health,Worcestershire Acute Hospitals NHST,2016-10-31,Furniture & Fittings,Diabetic Nursing TCS,ANIMAS,19004139,553.3,538056733,415609KI10659
Department of Health,Worcestershire Acute Hospitals NHST,2016-10-31,Furniture & Fittings,Diabetic Nursing TCS,ANIMAS,19004146,518.6,538056733,415341KI10659
Department of Health,Worcestershire Acute Hospitals NHST,2016-10-31,Furniture & Fittings,Diabetic Nursing TCS,ANIMAS,19013917,463.35,538056733,415865KI10659
Department of Health,Worcestershire Acute Hospitals NHST,2016-10-31,Furniture & Fittings,Diabetic Nursing TCS,ANIMAS,19049855,184.15,538056733,416337KI10659
Department of Health,Worcestershire Acute Hospitals NHST,2016-10-31,Med & Surg Equip Disp,Dental Laboratory,GS HALLIGAN (DENTAL LABORATORY) LTD,19049857,1663.94,,I013213
Department of Health,Worcestershire Acute Hospitals NHST,2016-10-31,Furniture & Fittings,Diabetic Nursing TCS,ANIMAS,19072099,572,538056733,416520KI10659
Department of Health,Worcestershire Acute Hospitals NHST,2016-10-31,Med & Surg Equip Disp,Ophthalmic Nursing,SPECTRUM,19115594,176.5,490682129,192121
Department of Health,Worcestershire Acute Hospitals NHST,2016-10-31,Med & Surg Equip General,Main Theatre,JOHNSON & JOHNSON MEDICAL LTD,19137482,813.79,592926302,16135654
Department of Health,Worcestershire Acute Hospitals NHST,2016-10-31,Surg Instruments General,Main Theatre,JOHNSON & JOHNSON MEDICAL LTD,19137482,-135.63,592926302,16135654
Department of Health,Worcestershire Acute Hospitals NHST,2016-10-31,Med Equip Additions,Balance Sheet,COMPUTACENTER (UK) LTD,19156824,35.16,490334648,3880866757
Department of Health,Worcestershire Acute Hospitals NHST,2016-10-31,Furniture & Fittings,Diabetic Nursing TCS,ANIMAS,19162039,400.6,538056733,416989KI10659
Department of Health,Worcestershire Acute Hospitals NHST,2016-10-31,Dressings,Ward 17- T+O- Trauma,KCI MEDICAL LTD,19162100,107.7,,1613296
Department of Health,Worcestershire Acute Hospitals NHST,2016-10-31,Furniture & Fittings,Diabetic Nursing TCS,ANIMAS,19186308,227.3,538056733,416876KI10659
Department of Health,Worcestershire Acute Hospitals NHST,2016-10-31,Med & Surg Equip Disp,Radiology Dept WRH,BOSTON SCIENTIFIC LTD,19186373,85,896105403,7161506851
Department of Health,Worcestershire Acute Hospitals NHST,2016-10-31,Staff Uniforms & Clothing,HSDU- Multi-Specialty,BERENDSEN CLEANROOM SERVICES LTD,19195845,410,GB107232747,10000786
Department of Health,Worcestershire Acute Hospitals NHST,2016-10-31,Commercial Sector,Pharmacy,BERENDSEN CLEANROOM SERVICES LTD,19200221,447.53,GB107232747,10000945
Department of Health,Worcestershire Acute Hospitals NHST,2016-10-31,Protective Clothing,Pharmacy,BERENDSEN CLEANROOM SERVICES LTD,19200221,-74.59,GB107232747,10000945
Department of Health,Worcestershire Acute Hospitals NHST,2016-10-31,Staff Uniforms & Clothing,Linen Serv- No Spec,SIMON JERSEY LTD,19208838,-282.6,732361553,7946839
Department of Health,Worcestershire Acute Hospitals NHST,2016-10-31,Furniture & Fittings,Diabetic Nursing TCS,ANIMAS,19209415,434.6,538056733,417103KI10659
Department of Health,Worcestershire Acute Hospitals NHST,2016-10-31,Stents,Radiology Dept WRH,MEDTRONIC LTD,19260001,38,467254526,1051436501
Department of Health,Worcestershire Acute Hospitals NHST,2016-10-31,Furniture & Fittings,Diabetic Nursing TCS,ANIMAS,19278226,434.6,538056733,417545KI10659
Department of Health,Worcestershire Acute Hospitals NHST,2016-10-31,Med & Surg Equip General,Main Theatre,JOHNSON & JOHNSON MEDICAL LTD,19280011,813.79,592926302,16144816
Department of Health,Worcestershire Acute Hospitals NHST,2016-10-31,Surg Instruments General,Main Theatre,JOHNSON & JOHNSON MEDICAL LTD,19280011,-135.63,592926302,16144816
Department of Health,Worcestershire Acute Hospitals NHST,2016-10-31,Furniture & Fittings,Diabetic Nursing TCS,ANIMAS,19291126,414.05,538056733,417871KI10659
Department of Health,Worcestershire Acute Hospitals NHST,2016-10-31,Patients Appl: Purchase,Trauma + Orthopaedics WRH,MEDI UK LTD,19291266,499.98,394043646,1502432
Department of Health,Worcestershire Acute Hospitals NHST,2016-10-31,Furniture & Fittings,Diabetic Nursing TCS,ANIMAS,19349013,354.7,538056733,417948KI10659
Department of Health,Worcestershire Acute Hospitals NHST,2016-10-31,Furniture & Fittings,Diabetic Nursing TCS,ANIMAS,19349411,434.6,538056733,418015KI10659
Department of Health,Worcestershire Acute Hospitals NHST,2016-10-31,Furniture & Fittings,Diabetic Nursing TCS,ANIMAS,19373698,526.25,538056733,418316KI10659
Department of Health,Worcestershire Acute Hospitals NHST,2016-10-31,Med Equip Additions,Balance Sheet,COMPUTACENTER (UK) LTD,19393221,7206.2,490334648,3880884391
Department of Health,Worcestershire Acute Hospitals NHST,2016-10-31,Furniture & Fittings,Diabetic Nursing TCS,ANIMAS,19409534,463.35,538056733,418487KI10659
Department of Health,Worcestershire Acute Hospitals NHST,2016-10-31,Furniture & Fittings,Diabetic Nursing TCS,ANIMAS,19409539,94,538056733,418497KI10659
Department of Health,Worcestershire Acute Hospitals NHST,2016-10-31,Furniture & Fittings,Diabetic Nursing TCS,ANIMAS,19454257,543.25,538056733,418737KI10659
Department of Health,Worcestershire Acute Hospitals NHST,2016-10-31,Prostheses - Hips,T&O Medical,TJ SMITH & NEPHEW LTD,19463199,-100.14,,0915372923
Department of Health,Worcestershire Acute Hospitals NHST,2016-10-31,Med & Surg Equip General,Alex Theatre - Scrub,MEDIPLUS LTD,19504983,394.96,442476056,SIN172879INV1
Department of Health,Worcestershire Acute Hospitals NHST,2016-10-31,Laboratory Reagents,Haematology Blood Bank,ORTHO CLINICAL DIAGNOSTICS,19702378,836.84,538056733,16009337
Department of Health,Worcestershire Acute Hospitals NHST,2016-10-31,Commercial Sector,Pharmacy,BERENDSEN CLEANROOM SERVICES LTD,19724923,559.42,GB107232747,10001776
Department of Health,Worcestershire Acute Hospitals NHST,2016-10-31,Protective Clothing,Pharmacy,BERENDSEN CLEANROOM SERVICES LTD,19724923,-93.24,GB107232747,10001776
Department of Health,Worcestershire Acute Hospitals NHST,2016-10-31,Surg Instruments Disp,Outpatients Dept- E Block,SHEFFMED TRADE SERVICES LTD,19760065,86,763841901,43650
Department of Health,Worcestershire Acute Hospitals NHST,2016-10-31,Furniture & Fittings,Diabetic Nursing TCS,ANIMAS,19780144,325.95,538056733,420773KI10659
Department of Health,Worcestershire Acute Hospitals NHST,2016-10-31,Furniture & Fittings,Diabetic Nursing TCS,ANIMAS,19780147,354.7,538056733,420858KI10659
Department of Health,Worcestershire Acute Hospitals NHST,2016-10-31,Furniture & Fittings,Diabetic Nursing TCS,ANIMAS,19780153,434.6,538056733,420485KI10659
Department of Health,Worcestershire Acute Hospitals NHST,2016-10-31,Med & Surg Equip General,Day Unit Colposcopy Gynae,JOHNSON & JOHNSON MEDICAL LTD,19780453,937.88,592926302,16178826
Department of Health,Worcestershire Acute Hospitals NHST,2016-10-31,Med & Surg Equip General,T&O Medical,WRIGHT MEDICAL UK LTD,19786707,-357,677219993,6885RM
Department of Health,Worcestershire Acute Hospitals NHST,2016-10-31,Med & Surg Equip General,Other Pass Throughs,SYNERGY HEALTH (UK) LTD,19786709,941.66,706163456,OPI761145
Department of Health,Worcestershire Acute Hospitals NHST,2016-10-31,Staff Uniforms & Clothing,HSDU- Multi-Specialty,BERENDSEN CLEANROOM SERVICES LTD,19786785,434.9,GB107232747,10001809
Department of Health,Worcestershire Acute Hospitals NHST,2016-10-31,Furniture & Fittings,Diabetic Nursing TCS,ANIMAS,19910627,182.6,538056733,419018KI10659
Department of Health,Worcestershire Acute Hospitals NHST,2016-10-31,Furniture & Fittings,Diabetic Nursing TCS,ANIMAS,19910633,301.3,538056733,419285KI10659
Department of Health,Worcestershire Acute Hospitals NHST,2016-10-31,Furniture & Fittings,Diabetic Nursing TCS,ANIMAS,19910645,434.6,538056733,419405KI10659
Department of Health,Worcestershire Acute Hospitals NHST,2016-10-31,Prostheses,T&O Medical,JOHNSON & JOHNSON MEDICAL LTD,19915801,183.64,592926302,0091355579
Department of Health,Worcestershire Acute Hospitals NHST,2016-10-31,Med & Surg Equip General,WRH Vasc Theatre Non-Pay,B BRAUN MEDICAL LTD,19917256,380,,0328295493
Department of Health,Worcestershire Acute Hospitals NHST,2016-10-31,Med & Surg Equip General,Alex Theatre - Scrub,BUNZL HEALTHCARE,19934475,-42,286014266,OPI886076Y16
Department of Health,Worcestershire Acute Hospitals NHST,2016-10-31,Med & Surg Equip General,T&O Medical,BUNZL HEALTHCARE,19934475,252,286014266,OPI886076Y16
Department of Health,Worcestershire Acute Hospitals NHST,2016-10-31,Med & Surg Equip General,Alex Theatre - Scrub,BUNZL HEALTHCARE,19934477,210,286014266,OPI886077Y16
Department of Health,Worcestershire Acute Hospitals NHST,2016-10-31,Med & Surg Equip General,Other Pass Throughs,SYNERGY HEALTH (UK) LTD,19997389,442.05,706163456,OPI770088
Department of Health,Worcestershire Acute Hospitals NHST,2016-10-31,Prostheses,T&O Medical,JOHNSON & JOHNSON MEDICAL LTD,20015973,195.67,592926302,0091359532
Department of Health,Worcestershire Acute Hospitals NHST,2016-10-31,Printing Costs,Patient Services,PATIENT MATTERS,20016401,586.8,,1208
Department of Health,Worcestershire Acute Hospitals NHST,2016-10-31,Med & Surg Equip General,Comm Midwives,LULLABY TRUST,20049795,163,,3770
Department of Health,Worcestershire Acute Hospitals NHST,2016-10-31,Cleaning Materials,Domestic Serv,NOBISCO LTD,20071414,39.7,,445176
Department of Health,Worcestershire Acute Hospitals NHST,2016-10-31,Laboratory Reagents,Haematology Blood Bank,ORTHO CLINICAL DIAGNOSTICS,20071434,836.84,538056733,16014494
Department of Health,Worcestershire Acute Hospitals NHST,2016-10-31,Furniture & Fittings,Diabetic Nursing TCS,ANIMAS,20122808,300.45,538056733,422624KI10659
Department of Health,Worcestershire Acute Hospitals NHST,2016-10-31,Furniture & Fittings,Diabetic Nursing TCS,ANIMAS,20122812,252,538056733,422525KI10659
Department of Health,Worcestershire Acute Hospitals NHST,2016-10-31,Furniture & Fittings,Diabetic Nursing TCS,ANIMAS,20122840,73.95,538056733,422585KI10659
Department of Health,Worcestershire Acute Hospitals NHST,2016-10-31,Med & Surg Equip General,T&O Medical,JOHNSON & JOHNSON MEDICAL LTD,20135763,489.5,592926302,16202588
Department of Health,Worcestershire Acute Hospitals NHST,2016-10-31,Laboratory Reagents,Haematology Blood Bank,ORTHO CLINICAL DIAGNOSTICS,20135798,1305.3,538056733,16015399
Department of Health,Worcestershire Acute Hospitals NHST,2016-10-31,Hearing Aids: Purchase,Audiology- KGH,PHONAK UK LTD,20135868,56,704007779,2591544838
Department of Health,Worcestershire Acute Hospitals NHST,2016-10-31,Dressings,Other Pass Throughs,SYNERGY HEALTH (UK) LTD,20159670,1975.6,706163456,OPI770617
Department of Health,Worcestershire Acute Hospitals NHST,2016-10-31,Hearing Aids: Purchase,Audiology WRH,PHONAK UK LTD,20159694,128.82,704007779,2591570403
Department of Health,Worcestershire Acute Hospitals NHST,2016-10-31,AUC Additions,Balance Sheet,MIDLAND COMMERCIAL ELECTRICAL SYSTEMS LTD,20176792,1078,,3556
Department of Health,Worcestershire Acute Hospitals NHST,2016-10-31,SrvcsRecd-Other NHS,CVI 19- DAFs- 2002-03,WORCESTERSHIRE HOSPITAL SPC PLC,20205764,24413.34,726543822,9355
Department of Health,Worcestershire Acute Hospitals NHST,2016-10-31,Prostheses,T&O Medical,JOHNSON & JOHNSON MEDICAL LTD,20225421,375,592926302,16208514
Department of Health,Worcestershire Acute Hospitals NHST,2016-10-31,Prostheses,T&O Medical,JOHNSON & JOHNSON MEDICAL LTD,20225440,750,592926302,16208513
Department of Health,Worcestershire Acute Hospitals NHST,2016-10-31,Laboratory Bottles & Cont,Histology,CELLPATH LTD,20235398,87.3,208646458,16109036
Department of Health,Worcestershire Acute Hospitals NHST,2016-10-31,Materials - Electrical,Accident + Emergency,BUNZL HEALTHCARE,20235419,33.6,286014266,OPI912936Y16
Department of Health,Worcestershire Acute Hospitals NHST,2016-10-31,Med & Surg Equip Disp,Endoscopy,FRESENIUS KABI LTD,20237242,1260,534934726,912744031
Department of Health,Worcestershire Acute Hospitals NHST,2016-10-31,Protective Clothing,Pharmacy,BERENDSEN CLEANROOM SERVICES LTD,20249620,372.94,GB107232747,10002448
Department of Health,Worcestershire Acute Hospitals NHST,2016-10-31,Staff Uniforms & Clothing,HSDU- Multi-Specialty,BERENDSEN CLEANROOM SERVICES LTD,20249623,410,GB107232747,10002287
Department of Health,Worcestershire Acute Hospitals NHST,2016-10-31,Patients Appl: Purchase,Trauma + Orthopaedics WRH,OTTO BOCK HEALTHCARE PLC,20260967,-94.88,228421281,911822352CR
Department of Health,Worcestershire Acute Hospitals NHST,2016-10-31,Engineering Contracts,Engineering- No Special,STEAM PLANT ENGINEERING LTD,20269778,1850,,11800402505
Department of Health,Worcestershire Acute Hospitals NHST,2016-10-31,Bedding & Linen: Non-Disp,Alex Theatre - Scrub,365 HEALTHCARE LTD,20277191,48.41,844466408,60106051
Department of Health,Worcestershire Acute Hospitals NHST,2016-10-31,Stents,Cardiac Cath Lab,TERUMO UK LTD,20293599,300,804941042,3876018479
Department of Health,Worcestershire Acute Hospitals NHST,2016-10-31,Laboratory External Tests,Radiology Med Staff WRH,MEDICA REPORTING LTD,20297418,18001,858701107,8983
Department of Health,Worcestershire Acute Hospitals NHST,2016-10-31,Prostheses - Other,T&O Medical,LIMA ORTHOPAEDICS UK LTD,20297434,1588.75,983881854,RI16004767
Department of Health,Worcestershire Acute Hospitals NHST,2016-10-31,Patients Appl: Purchase,Trauma + Orthopaedics WRH,BEAGLE ORTHOPAEDICS,20297443,309.79,915387017,0000187123
Department of Health,Worcestershire Acute Hospitals NHST,2016-10-31,Med & Surg Equip General,T&O Medical,STRYKER UK LTD,20297629,863.8,787438865,27860253
Department of Health,Worcestershire Acute Hospitals NHST,2016-10-31,Med & Surg Equip General,T&O Medical,STRYKER UK LTD,20297631,1468.08,787438865,27860252
Department of Health,Worcestershire Acute Hospitals NHST,2016-10-31,Patients Appl: Purchase,Trauma + Orthopaedics WRH,BEAGLE ORTHOPAEDICS,20297641,300.8,915387017,0000187249
Department of Health,Worcestershire Acute Hospitals NHST,2016-10-31,Med & Surg Equip General,Theatre,BUNZL HEALTHCARE,20298815,57.02,286014266,OPI917794Y16
Department of Health,Worcestershire Acute Hospitals NHST,2016-10-31,Staff Uniforms & Clothing,Theatre,BUNZL HEALTHCARE,20298815,-9.5,286014266,OPI917794Y16
Department of Health,Worcestershire Acute Hospitals NHST,2016-10-31,Laboratory Reagents,Haematology Blood Bank,ORTHO CLINICAL DIAGNOSTICS,20299927,90.3,538056733,16015987
Department of Health,Worcestershire Acute Hospitals NHST,2016-10-31,Laboratory Reagents,Haematology Blood Bank,ORTHO CLINICAL DIAGNOSTICS,20299929,4491.56,538056733,16016014
Department of Health,Worcestershire Acute Hospitals NHST,2016-10-31,Med & Surg Equip General,T&O Medical,NHS BLOOD & TRANSPLANT,20318563,855,654961603,603832
Department of Health,Worcestershire Acute Hospitals NHST,2016-10-31,Other Operatg Rev Non NHS,Bismark Trial,ARGOS BUSINESS SOLUTIONS,20319141,66.62,145899025,01455169
Department of Health,Worcestershire Acute Hospitals NHST,2016-10-31,Prostheses,T&O Medical,WRIGHT MEDICAL UK LTD,20319234,86.69,677219993,155357RI
Department of Health,Worcestershire Acute Hospitals NHST,2016-10-31,Prostheses,T&O Medical,JOHNSON & JOHNSON MEDICAL LTD,20336121,750,592926302,16216608
Department of Health,Worcestershire Acute Hospitals NHST,2016-10-31,Patients Appl: Purchase,GP Direct Access KGH,DACEY LTD,20388365,93.79,433460177,465770
Department of Health,Worcestershire Acute Hospitals NHST,2016-10-31,Materials - Building,Engineering- No Special,BRAMMER UK LTD,20399804,29.64,305955942,D8022865
Department of Health,Worcestershire Acute Hospitals NHST,2016-10-31,Med & Surg Equip Disp,Dental Surg,DB ORTHODONTICS LTD,20399886,-346,179868778,6000004155
Department of Health,Worcestershire Acute Hospitals NHST,2016-10-31,Med & Surg Equip Disp,Dental Surg,DB ORTHODONTICS LTD,20399896,-346,179868778,6000004156
Department of Health,Worcestershire Acute Hospitals NHST,2016-10-31,Printing Costs,Surgery DMT,RICOH UK LTD,20400640,335.24,,100573710
Department of Health,Worcestershire Acute Hospitals NHST,2016-10-31,Other recvables - Current,Balance Sheet,ARGOS BUSINESS SOLUTIONS,20400648,671.85,145899025,01457492
Department of Health,Worcestershire Acute Hospitals NHST,2016-10-31,Laboratory Culture Media,Pharmacy - No Spec,CHERWELL LABORATORIES LTD,20400665,396.65,121690394,170261
Department of Health,Worcestershire Acute Hospitals NHST,2016-10-31,AUC Additions,Balance Sheet,SJ HAMBLIN,20420461,4430.02,,47
Department of Health,Worcestershire Acute Hospitals NHST,2016-10-31,Laboratory Equipment,Histology,DAKO UK LTD,20420751,3280,873904593,1115191
Department of Health,Worcestershire Acute Hospitals NHST,2016-10-31,Med & Surg Maint Contract,Bowel Scope Screening,OLYMPUS KEYMED,20420771,420.16,250317495,CD2230016
Department of Health,Worcestershire Acute Hospitals NHST,2016-10-31,Laboratory Bottles & Cont,Biochemistry,RICHARDSONS OF LEICESTER LTD,20420772,494.72,114686663,73944
Department of Health,Worcestershire Acute Hospitals NHST,2016-10-31,Med & Surg Equip Disp,Cardiac Cath Lab,ELITECH UK LTD,20423187,74.75,757854282,0044705
Department of Health,Worcestershire Acute Hospitals NHST,2016-10-31,Laboratory Equipment,Histology,DAKO UK LTD,20423307,30,873904593,1115187
Department of Health,Worcestershire Acute Hospitals NHST,2016-10-31,Stocks Finished Goods,Balance Sheet,TAYSIDE NHS BOARD,20427885,386.16,654851416,T0123767
Department of Health,Worcestershire Acute Hospitals NHST,2016-10-31,Med & Surg Equip Disp,Main Theatre,PROMED LTD,20429170,1470,678888050,12041
Department of Health,Worcestershire Acute Hospitals NHST,2016-10-31,Med & Surg Equip Disp,Main Theatre,PROMED LTD,20429173,540,678888050,12040
Department of Health,Worcestershire Acute Hospitals NHST,2016-10-31,X-Ray Equipment Purchase,Radiology Countwide,INHEALTH LTD,20429175,2036.5,787424685,INV000000459
Department of Health,Worcestershire Acute Hospitals NHST,2016-10-31,X-Ray Equipment Purchase,Radiology Countwide,INHEALTH LTD,20429178,906.5,787424685,INV000000443
Department of Health,Worcestershire Acute Hospitals NHST,2016-10-31,Med & Surg Equip General,Ward 17- T+O- Trauma,1ST 4 STORAGE,20429179,153.6,,1105
Department of Health,Worcestershire Acute Hospitals NHST,2016-10-31,Med & Surg Equip General,T&O Medical,JOHNSON & JOHNSON MEDICAL LTD,20429182,-2452.8,592926302,16222125
Department of Health,Worcestershire Acute Hospitals NHST,2016-10-31,Bldg/Eng Equip Maint/Rep,Estates Bewdley Road,B & Q FINANCIAL SERVICES LTD,20429185,103.2,,0741433281
Department of Health,Worcestershire Acute Hospitals NHST,2016-10-31,Bldg/Eng Equip Maint/Rep,Estates Bewdley Road,SCREWFIX DIRECT,20429188,72.42,232555575,0741696444
Department of Health,Worcestershire Acute Hospitals NHST,2016-10-31,Bldg/Eng Equip Maint/Rep,Estates Bewdley Road,SCREWFIX DIRECT,20429190,77.04,232555575,0743175387
Department of Health,Worcestershire Acute Hospitals NHST,2016-10-31,Bldg/Eng Equip Maint/Rep,Estates Bewdley Road,B & Q FINANCIAL SERVICES LTD,20429191,49.2,,0743175395
Department of Health,Worcestershire Acute Hospitals NHST,2016-10-31,Materials - Building,Engineering- No Special,SCREWFIX DIRECT,20429193,119.99,232555575,0743434285
Department of Health,Worcestershire Acute Hospitals NHST,2016-10-31,Dressings,CCU- General Medicine,TJ SMITH & NEPHEW LTD,20429195,112.03,,0915232741
Department of Health,Worcestershire Acute Hospitals NHST,2016-10-31,Med & Surg Equip General,T&O Medical,CONMED LINVATEC UK,20429197,1012.51,685817778,1272994
Department of Health,Worcestershire Acute Hospitals NHST,2016-10-31,Med & Surg Maint Contract,Bowel Scope Screening,OLYMPUS KEYMED,20429200,315.12,250317495,CD2230009
Department of Health,Worcestershire Acute Hospitals NHST,2016-10-31,Stationery,Endoscopy,SUPPLIES TEAM,20429203,51.24,870658790,8478563
Department of Health,Worcestershire Acute Hospitals NHST,2016-10-31,Prostheses,T&O Medical,WRIGHT MEDICAL UK LTD,20429205,64.8,677219993,156096RI
Department of Health,Worcestershire Acute Hospitals NHST,2016-10-31,Prostheses,T&O Medical,WRIGHT MEDICAL UK LTD,20429207,64.8,677219993,156098RI
Department of Health,Worcestershire Acute Hospitals NHST,2016-10-31,Prostheses,T&O Medical,WRIGHT MEDICAL UK LTD,20429209,496.8,677219993,156099RI
Department of Health,Worcestershire Acute Hospitals NHST,2016-10-31,Prostheses,T&O Medical,TJ SMITH AND NEPHEW,20429211,6636.88,,915379523
Department of Health,Worcestershire Acute Hospitals NHST,2016-10-31,Med & Surg Equip Disp,Hazel Elective,MELTEMI LTD,20429213,75.3,,INV1685054
Department of Health,Worcestershire Acute Hospitals NHST,2016-10-31,Materials - Electrical,Post Grad Med Centre Alex,SAVILLE AUDIO VISUAL LTD,20429215,1087.38,475471718,S45SIH02055
Department of Health,Worcestershire Acute Hospitals NHST,2016-10-31,Med & Surg Equip Disp,Cardiac Cath Lab,BOSTON SCIENTIFIC LTD,20429217,151.2,896105403,7161550899
Department of Health,Worcestershire Acute Hospitals NHST,2016-10-31,Stents,Cardiac Cath Lab,BOSTON SCIENTIFIC LTD,20429219,96,896105403,7161550900
Department of Health,Worcestershire Acute Hospitals NHST,2016-10-31,Breast Care Prosthesis,Alex Theatre - Scrub,NAGOR LTD,20429221,-696,942111756,0010001035
Department of Health,Worcestershire Acute Hospitals NHST,2016-10-31,Stationery,Path General,LYRECO UK LTD,20429223,156.67,594371315,6900996780
Department of Health,Worcestershire Acute Hospitals NHST,2016-10-31,Surg Instruments General,Theatre DayCase ECH TCS,WALKER FILTRATION LTD,20429225,1021.8,389626787,18364
Department of Health,Worcestershire Acute Hospitals NHST,2016-10-31,Med & Surg Equip General,Alex Theatre - Scrub,BOSTON SCIENTIFIC LTD,20429227,1321.2,896105403,7161550570
Department of Health,Worcestershire Acute Hospitals NHST,2016-10-31,Sterile Products,Theatre,SQUADRON MEDICAL LTD,20429229,1255.85,398925088,9701623355
Department of Health,Worcestershire Acute Hospitals NHST,2016-10-31,Laboratory Bottles & Cont,Biochemistry,BIO-MEDICAL LABORATORY SUPPLIES LTD,20429233,453.6,868849446,19135
Department of Health,Worcestershire Acute Hospitals NHST,2016-10-31,Med & Surg Equip General,Main Theatre,NAGOR LTD,20429235,261.6,942111756,0010010980
Department of Health,Worcestershire Acute Hospitals NHST,2016-10-31,Med & Surg Equip General,Admin + Sessional Costs,U GROUP LTD,20429237,53,113209125,10230671
Department of Health,Worcestershire Acute Hospitals NHST,2016-10-31,Provisions,Catering Dept-No Spec,PELICAN ROUGE COFFEE SOLUTIONS LTD,20429241,205.56,,160079012
Department of Health,Worcestershire Acute Hospitals NHST,2016-10-31,Prostheses - Other,T&O Medical,LIMA ORTHOPAEDICS UK LTD,20429243,2828.57,983881854,RI16005390
Department of Health,Worcestershire Acute Hospitals NHST,2016-10-31,Med & Surg Equip General,T&O Medical,TJ SMITH & NEPHEW LTD,20430093,184.75,,0915468679
Department of Health,Worcestershire Acute Hospitals NHST,2016-10-31,Med & Surg Equip General,Main Theatre,LEICA MICROSYSTEMS (UK) LTD,20430097,652,290756238,96524158
Department of Health,Worcestershire Acute Hospitals NHST,2016-10-31,Med & Surg Equip General,Theatre,FANNIN (UK) LTD,20430124,537,570099336,9400245852
Department of Health,Worcestershire Acute Hospitals NHST,2016-10-31,Bldg/Eng Equip Maint/Rep,Estates Bewdley Road,PLUMBASE LTD,20430129,45,190172476,019001132428
Department of Health,Worcestershire Acute Hospitals NHST,2016-10-31,AUC Additions,Balance Sheet,SEVERN TRENT WATER LTD,20430135,3800.45,486985565,71801127942309163800
Department of Health,Worcestershire Acute Hospitals NHST,2016-10-31,Breast Care Prosthesis,Main Theatre,NAGOR LTD,20430142,-270.4,942111756,0010001037
Department of Health,Worcestershire Acute Hospitals NHST,2016-10-31,Med & Surg Equip General,Radiology Dept WRH,UNIMED ELECTRODE SUPPLIES,20430159,88,529062742,SIN009839
Department of Health,Worcestershire Acute Hospitals NHST,2016-10-31,Med & Surg Equip General,Radiology Dept Alex,BARD LTD,20430198,287.5,369076714,1493025RT
Department of Health,Worcestershire Acute Hospitals NHST,2016-10-31,Med & Surg Equip General,Theatre DayCase ECH TCS,ANETIC AID LTD,20430214,200,301258992,0000196352
Department of Health,Worcestershire Acute Hospitals NHST,2016-10-31,Med & Surg Equip General,T&O Medical,VACSAX LTD,20430217,112.64,663611343,101384
Department of Health,Worcestershire Acute Hospitals NHST,2016-10-31,Patients Appl: Purchase,GP Direct Access Alex,DACEY LTD,20432927,-116.09,433460177,462814CRCORR
Department of Health,Worcestershire Acute Hospitals NHST,2016-10-31,Patients Appl: Purchase,Trauma + Orthopaed Alex,DACEY LTD,20432928,116.09,433460177,462814DRCORR
Department of Health,Worcestershire Acute Hospitals NHST,2016-10-31,Med & Surg Maint Contract,Endoscopy Alex,OLYMPUS KEYMED,20433867,2505,250317495,CD2230324
Department of Health,Worcestershire Acute Hospitals NHST,2016-10-31,Patients Appl: Purchase,GP Direct Access Worcs,WILLS WIGS LTD,20433868,348,946433801,22105
Department of Health,Worcestershire Acute Hospitals NHST,2016-10-31,Patients Appl: Purchase,General Medicine Alex,WILLS WIGS LTD,20433869,120,946433801,22108
Department of Health,Worcestershire Acute Hospitals NHST,2016-10-31,Patients Appl: Purchase,General Medicine KGH,WILLS WIGS LTD,20433871,120,946433801,22107
Department of Health,Worcestershire Acute Hospitals NHST,2016-10-31,Course Fees,Post Reg Funding,HEALTHCARE CONFERENCES UK LTD,20435691,438,116906711,407164
Department of Health,Worcestershire Acute Hospitals NHST,2016-10-31,External Consultancy Fees,Ethnic Interpreters,PEARL LINGUISTICS LTD,20435692,3191.75,833191733,25541
Department of Health,Worcestershire Acute Hospitals NHST,2016-10-31,Laboratory External Tests,Clinical Haematology- Med,LEEDS TEACHING HOSPITALS NHS TRUST,20435693,167.39,,1410052070
Department of Health,Worcestershire Acute Hospitals NHST,2016-10-31,Laboratory External Tests,Microbiology,ROYAL LIVERPOOL&BROADGREEN UNIVERSITY HOSPITALS NHS TRUST (THE),20435694,125.45,654966000,8610055543
Department of Health,Worcestershire Acute Hospitals NHST,2016-10-31,Laboratory External Tests,Haematology,HEART OF ENGLAND NHS FOUNDATION TRUST,20435695,244.5,654912816,145761
Department of Health,Worcestershire Acute Hospitals NHST,2016-10-31,Laboratory External Tests,Regional Spec (Clin Chem),HEART OF ENGLAND NHS FOUNDATION TRUST,20435695,183.36,654912816,145761
Department of Health,Worcestershire Acute Hospitals NHST,2016-10-31,Laboratory External Tests,Microbiology,UNIVERSITY COLLEGE LONDON HOSPITALS NHS FOUNDATION TRUST,20435696,55.99,654948687,318840
Department of Health,Worcestershire Acute Hospitals NHST,2016-10-31,Laboratory External Tests,Regional Spec (Clin Chem),UNIVERSITY COLLEGE LONDON HOSPITALS NHS FOUNDATION TRUST,20435698,272.7,654948687,318842
Department of Health,Worcestershire Acute Hospitals NHST,2016-10-31,Office Equipment,Main Theatre,RICOH UK LTD,20435700,333.1,,100637786
Department of Health,Worcestershire Acute Hospitals NHST,2016-10-31,Printing Costs,Trust Communications,UNIVERSITY HOSPITAL BIRMINGHAM NHS FOUNDATION TRUST,20435702,216,654965101,OPT017294
Department of Health,Worcestershire Acute Hospitals NHST,2016-10-31,Laboratory External Tests,Oncology Medical Staff,GENOMIC HEALTH UK LTD,20435704,3240,113005973,CR022558201608
Department of Health,Worcestershire Acute Hospitals NHST,2016-10-31,Laboratory External Tests,Oncology Medical Staff,GENOMIC HEALTH UK LTD,20435706,1620,113005973,CR023165201608
Department of Health,Worcestershire Acute Hospitals NHST,2016-10-31,Laboratory External Tests,Oncology Medical Staff,GENOMIC HEALTH UK LTD,20435707,1620,113005973,CR017842
Department of Health,Worcestershire Acute Hospitals NHST,2016-10-31,Med & Surg Equip General,Main Theatre,NAGOR LTD,20435708,-209.28,942111756,0010000912
Department of Health,Worcestershire Acute Hospitals NHST,2016-10-31,Med & Surg Equip General,Main Theatre,NAGOR LTD,20435709,-648.96,942111756,0010000916
Department of Health,Worcestershire Acute Hospitals NHST,2016-10-31,Patients Appl: Purchase,Trauma + Orthopaedics WRH,OSSUR UK,20435814,-429.36,572395027,SCUK031170
Department of Health,Worcestershire Acute Hospitals NHST,2016-10-31,Med Equip Additions,Balance Sheet,COMPUTACENTER (UK) LTD,20435821,12718.9,490334648,3780045113
Department of Health,Worcestershire Acute Hospitals NHST,2016-10-31,Med & Surg Equip Disp,Main Theatre,B BRAUN MEDICAL LTD,20435825,2233.44,,0328317162
Department of Health,Worcestershire Acute Hospitals NHST,2016-10-31,Staff Uniforms & Clothing,Estates-No Spec,ARCO LTD,20435831,213.41,166911546,928225987
Department of Health,Worcestershire Acute Hospitals NHST,2016-10-31,Med & Surg Equip Disp,Theatre,MERIT MEDICAL UK LTD,20435836,390,645811531,632438
Department of Health,Worcestershire Acute Hospitals NHST,2016-10-31,Med & Surg Equip Disp,Cardiac Cath Lab,MERIT MEDICAL UK LTD,20435840,1102.5,645811531,632541
Department of Health,Worcestershire Acute Hospitals NHST,2016-10-31,Med & Surg Equip Disp,Cardiac Cath Lab,BOSTON SCIENTIFIC LTD,20435843,151.2,896105403,7161551490
Department of Health,Worcestershire Acute Hospitals NHST,2016-10-31,Primary Care Trst Revenue,Vascular Medics,MEDTRONIC LTD,20435848,7800,467254526,1051531395
Department of Health,Worcestershire Acute Hospitals NHST,2016-10-31,Med & Surg Equip General,T&O Medical,JOHNSON & JOHNSON MEDICAL LTD,20435852,1116,592926302,16225756
Department of Health,Worcestershire Acute Hospitals NHST,2016-10-31,Med & Surg Equip Disp,Radiology Dept WRH,BARD LTD,20435869,2325,369076714,1493388RT
Department of Health,Worcestershire Acute Hospitals NHST,2016-10-31,Stents,Cardiac Cath Lab,BOSTON SCIENTIFIC LTD,20435874,144,896105403,7161551491
Department of Health,Worcestershire Acute Hospitals NHST,2016-10-31,Stents,Radiology Dept WRH,MEDTRONIC LTD,20435877,182.4,467254526,1051531398
Department of Health,Worcestershire Acute Hospitals NHST,2016-10-31,Med & Surg Equip Disp,Radiology Dept WRH,BOSTON SCIENTIFIC LTD,20435879,612,896105403,7161551489
Department of Health,Worcestershire Acute Hospitals NHST,2016-10-31,Stents,Radiology Dept WRH,BOSTON SCIENTIFIC LTD,20435879,180,896105403,7161551489
Department of Health,Worcestershire Acute Hospitals NHST,2016-10-31,Stationery,Millbrook Suite,LYRECO UK LTD,20435885,31.8,594371315,6900996911
Department of Health,Worcestershire Acute Hospitals NHST,2016-10-31,Stationery,Med Recs Call Centre,LYRECO UK LTD,20435887,203.94,594371315,6900996910
Department of Health,Worcestershire Acute Hospitals NHST,2016-10-31,Med & Surg Equip Disp,Cardiac Cath Lab,B BRAUN MEDICAL LTD,20436965,672,,0328317161
Department of Health,Worcestershire Acute Hospitals NHST,2016-10-31,Computer Hardware Purch,Information,COMPUTACENTER (UK) LTD,20436966,2249.88,490334648,3780045111
Department of Health,Worcestershire Acute Hospitals NHST,2016-10-31,Med & Surg Equip General,Main Theatre,ROBERTS SURGICAL HEALTHCARE LTD,20436967,304.14,551371263,35993
Department of Health,Worcestershire Acute Hospitals NHST,2016-10-31,Laboratory Equipment,Pharmacy - No Spec,BELL ISOLATION SYSTEMS LTD,20436968,390,774893959,7975
Department of Health,Worcestershire Acute Hospitals NHST,2016-10-31,WDC Revenue,ENT Clinic (Linden Suite),SHEFFMED TRADE SERVICES LTD,20436969,405.6,763841901,44790
Department of Health,Worcestershire Acute Hospitals NHST,2016-10-31,Surg Instruments General,T&O Medical,JOHNSON & JOHNSON MEDICAL LTD,20436970,197.5,592926302,16225064
Department of Health,Worcestershire Acute Hospitals NHST,2016-10-31,Sterile Products,Alex Theatre - Scrub,SQUADRON MEDICAL LTD,20436971,177.9,398925088,9701624393
Department of Health,Worcestershire Acute Hospitals NHST,2016-10-31,Patients Appl: Purchase,General Medicine Worcs,EMBRACE,20436975,78,,NHS161
Department of Health,Worcestershire Acute Hospitals NHST,2016-10-31,Stents,Radiology Dept WRH,MEDTRONIC LTD,20436976,564,467254526,1051531399
Department of Health,Worcestershire Acute Hospitals NHST,2016-10-31,Stationery,TSSU,LYRECO UK LTD,20436981,95.41,594371315,6900996916
Department of Health,Worcestershire Acute Hospitals NHST,2016-10-31,Stationery,Laurel Unit 2,LYRECO UK LTD,20436985,31.98,594371315,6900996917
Department of Health,Worcestershire Acute Hospitals NHST,2016-10-31,Med & Surg Equip General,T&O Medical,TJ SMITH & NEPHEW LTD,20436988,522,,0915470605
Department of Health,Worcestershire Acute Hospitals NHST,2016-10-31,Stationery,Breast Screening TCS,NEOPOST LTD,20439049,474.24,GB597265489,91988447
Department of Health,Worcestershire Acute Hospitals NHST,2016-10-31,AUC Additions,Balance Sheet,RAPID CLIMATE CONTROL LTD,20439050,491.4,311924680,13920116
Department of Health,Worcestershire Acute Hospitals NHST,2016-10-31,Surg Instruments General,T&O Medical,TJ SMITH AND NEPHEW,20439051,2281.9,,0915343673
Department of Health,Worcestershire Acute Hospitals NHST,2016-10-31,Med & Surg Equip Disp,Dental Laboratory,UWIC COMPANY LTD,20439052,97.2,542915736,8010862
Department of Health,Worcestershire Acute Hospitals NHST,2016-10-31,Payt Rec On A/C Susp <1Yr,Balance Sheet,ONE-OFF SUPPLIER,20441948,214.92,,ARREFUNDDM26924
Department of Health,Worcestershire Acute Hospitals NHST,2016-10-31,Payt Rec On A/C Susp <1Yr,Balance Sheet,ONE-OFF SUPPLIER,20441955,1020,,ARREFUNDDM26914
Department of Health,Worcestershire Acute Hospitals NHST,2016-10-31,Contr Other External,Dir of HR,HCL MANAGED SERVICES LTD,20453281,45000,,00020133
Department of Health,Worcestershire Acute Hospitals NHST,2016-10-31,SrvcsRecd-Other NHS,WRI PTS,WEST MIDLANDS AMBULANCE SERVICE NHS TRUST,20453288,141.9,654950708,E0004534
Department of Health,Worcestershire Acute Hospitals NHST,2016-10-31,Furniture & Fittings,Ward 12 Medicine,1ST CALL MOBILITY,20453294,1362,802644060,S42004
Department of Health,Worcestershire Acute Hospitals NHST,2016-10-31,External Consultancy Fees,Ethnic Interpreters,A TO Z INTERPRETING & TRANSLATION,20453301,131.76,,180668WH
Department of Health,Worcestershire Acute Hospitals NHST,2016-10-31,External Consultancy Fees,Deaf Direct,DEAF DIRECT,20453305,1405,,5427
Department of Health,Worcestershire Acute Hospitals NHST,2016-10-31,Agency Admin & Clerical,General Surg Medical,MEDISEC UK LTD,20453311,389.88,487217029,161923
Department of Health,Worcestershire Acute Hospitals NHST,2016-10-31,Agency Admin & Clerical,T&O Medical,PEACH RECRUITMENT,20453318,301.6,793238990,28004
Department of Health,Worcestershire Acute Hospitals NHST,2016-10-31,Locum SPR,General Surg Medical,RM MEDICS LTD,20453325,1211.42,,115710
Department of Health,Worcestershire Acute Hospitals NHST,2016-10-31,Office Equipment,T&O Medical,RICOH UK LTD,20453341,75.36,,100639748
Department of Health,Worcestershire Acute Hospitals NHST,2016-10-31,Patients Appl: Purchase,General Medicine Worcs,EMBRACE,20453348,90,,NHS158
Department of Health,Worcestershire Acute Hospitals NHST,2016-10-31,Locum Senior House Offr,General Surg Medical,RM MEDICS LTD,20453361,1801.27,,115935
Department of Health,Worcestershire Acute Hospitals NHST,2016-10-31,Locum Senior House Offr,General Surg Medical,RM MEDICS LTD,20453369,1773.43,,115934
Department of Health,Worcestershire Acute Hospitals NHST,2016-10-31,Agency Prof & Tech,Vascular Medics,GLOBE LOCUMS LTD,20453375,1130.69,,62093
Department of Health,Worcestershire Acute Hospitals NHST,2016-10-31,Locum SPR,General Surg Medical,RM MEDICS LTD,20453382,1910.17,,116019
Department of Health,Worcestershire Acute Hospitals NHST,2016-10-31,Medical Gases,Porters- No Spec,BOC LTD,20453388,193.24,226556555,3037798118
Department of Health,Worcestershire Acute Hospitals NHST,2016-10-31,Laboratory External Tests,Microbiology,PUBLIC HEALTH ENGLAND,20453394,227.34,888849628,6235649
Department of Health,Worcestershire Acute Hospitals NHST,2016-10-31,Laboratory External Tests,Microbiology,PUBLIC HEALTH ENGLAND,20453399,56.14,888849628,6235648
Department of Health,Worcestershire Acute Hospitals NHST,2016-10-31,Laboratory External Tests,Microbiology,PUBLIC HEALTH ENGLAND,20453405,51.66,888849628,6235651
Department of Health,Worcestershire Acute Hospitals NHST,2016-10-31,Phone Instal & Maint,Trust Communications,LIFE CHANNEL GROUP LTD,20453411,6500,,7424
Department of Health,Worcestershire Acute Hospitals NHST,2016-10-31,Dressings,Ward 1 KTC,ASPEN MEDICAL EUROPE LTD,20453417,100.8,111150247,899887
Department of Health,Worcestershire Acute Hospitals NHST,2016-10-31,Med & Surg Equip General,ICCU - Alex,THERAPY EQUIPMENT LTD,20453422,210.6,388707304,INV46734
Department of Health,Worcestershire Acute Hospitals NHST,2016-10-31,Patients Appl: Repairs,GP Direct Access Worcs,DACEY LTD,20453427,32.83,433460177,460127
Department of Health,Worcestershire Acute Hospitals NHST,2016-10-31,Medical Gases,Portering,BOC LTD,20453432,94.74,226556555,3037817501
Department of Health,Worcestershire Acute Hospitals NHST,2016-10-31,Medical Gases,Portering,BOC LTD,20453435,143.39,226556555,3037821512
Department of Health,Worcestershire Acute Hospitals NHST,2016-10-31,SrvcsRecd-Other NHS,WRI PTS,WEST MIDLANDS AMBULANCE SERVICE NHS TRUST,20453438,-141.9,654950708,Z0004891
Department of Health,Worcestershire Acute Hospitals NHST,2016-10-31,Medical Gases,Porters- No Spec,BOC LTD,20453441,196.38,226556555,3037817496
Department of Health,Worcestershire Acute Hospitals NHST,2016-10-31,Stocks Finished Goods,Balance Sheet,OXFORD HEALTH NHS FOUNDATION TRUST,20453447,609.91,654935896,130052
Department of Health,Worcestershire Acute Hospitals NHST,2016-10-31,Stocks Finished Goods,Balance Sheet,OXFORD HEALTH NHS FOUNDATION TRUST,20453460,379.92,654935896,127680
Department of Health,Worcestershire Acute Hospitals NHST,2016-10-31,Laboratory External Tests,Regional Spec (Clin Chem),VIAPATH ANALYTICS LLP,20453463,70,201216183,91304073
Department of Health,Worcestershire Acute Hospitals NHST,2016-10-31,Laboratory External Tests,Regional Spec (Clin Chem),VIAPATH ANALYTICS LLP,20453466,280,201216183,91303758
Department of Health,Worcestershire Acute Hospitals NHST,2016-10-31,Dietetic Products,Beech Ward 1,AAH PHARMACEUTICALS LTD,20453479,60.16,546573322,81386605C
Department of Health,Worcestershire Acute Hospitals NHST,2016-10-31,Provisions,Non Patient Catering - CHEC,BIDVEST FOODSERVICE,20453496,589.01,GB0643994692,69339227
Department of Health,Worcestershire Acute Hospitals NHST,2016-10-31,Provisions,Non Patient Catering - CHEC,BIDVEST FOODSERVICE,20453499,261.35,GB0643994692,69261761
Department of Health,Worcestershire Acute Hospitals NHST,2016-10-31,Provisions,Non Patient Catering - CHEC,BIDVEST FOODSERVICE,20453502,263.21,GB0643994692,69301541
Department of Health,Worcestershire Acute Hospitals NHST,2016-10-31,Provisions,Catering (Patients),REFRESHMENT SYSTEMS LTD,20453508,458.4,606982321,85932
Department of Health,Worcestershire Acute Hospitals NHST,2016-10-31,Med & Surg Equip General,Main Theatre,TNT UK LTD,20453511,26.53,354715057,3178194
Department of Health,Worcestershire Acute Hospitals NHST,2016-10-31,Med & Surg Equip General,Technical Serv Dept,TNT UK LTD,20453511,26.54,354715057,3178194
Department of Health,Worcestershire Acute Hospitals NHST,2016-10-31,Provisions,Catering (Patients),REFRESHMENT SYSTEMS LTD,20453514,462.4,606982321,83628
Department of Health,Worcestershire Acute Hospitals NHST,2016-10-31,Computer Hardware Purch,TB Nursing TCS,MIDLAND COMMERCIAL ELECTRICAL SYSTEMS LTD,20454507,228,,3671
Department of Health,Worcestershire Acute Hospitals NHST,2016-10-31,Prostheses,T&O Medical,ZIMMER LTD,20454508,660,GB332744662,2011603045
Department of Health,Worcestershire Acute Hospitals NHST,2016-10-31,X-Ray Film & Chemicals,Radiology Dept WRH,BRACCO UK LTD,20454509,2100,761495411,1603113836
Department of Health,Worcestershire Acute Hospitals NHST,2016-10-31,Anaesthetics Accessories,Respiratory Support,FISHER & PAYKEL HEALTHCARE LTD,20454510,244.8,,10314255
Department of Health,Worcestershire Acute Hospitals NHST,2016-10-31,Anaesthetics Accessories,Respiratory Support,FISHER & PAYKEL HEALTHCARE LTD,20454511,180,,10314119
Department of Health,Worcestershire Acute Hospitals NHST,2016-10-31,X-Ray Film & Chemicals,Radiology Dept Alex,MALLINCKRODT UK COMMERCIAL LTD,20454513,6264,754944202,RI10022152
Department of Health,Worcestershire Acute Hospitals NHST,2016-10-31,Stents,Cardiac Cath Lab,BIOSENSORS EUROPE SA,20454514,1100,,930068416
Department of Health,Worcestershire Acute Hospitals NHST,2016-10-31,Med & Surg Equip Disp,Cardiac Cath Lab,TERUMO UK LTD,20454516,225.6,804941042,3876019919
Department of Health,Worcestershire Acute Hospitals NHST,2016-10-31,Anaesthetics Accessories,Main Theatre,MAQUET LTD,20454518,326.4,468850893,3129031340
Department of Health,Worcestershire Acute Hospitals NHST,2016-10-31,Stents,Cardiac Cath Lab,BIOSENSORS EUROPE SA,20454520,1550,,930068538
Department of Health,Worcestershire Acute Hospitals NHST,2016-10-31,Laboratory Chemicals,Haematology Blood Bank,SUSSEX BIOLOGICALS LTD,20454521,348,,1600826
Department of Health,Worcestershire Acute Hospitals NHST,2016-10-31,Med & Surg Equip General,Opthalmic Theatres Alex,BEAVER-VISITEC INTERNATIONAL SALES LTD,20454523,564,,CD16029538
Department of Health,Worcestershire Acute Hospitals NHST,2016-10-31,Patients Appl: Purchase,Trauma + Orthopaed Alex,BEAGLE ORTHOPAEDICS,20454526,407.09,915387017,0000188297
Department of Health,Worcestershire Acute Hospitals NHST,2016-10-31,Med & Surg Equip General,Radiology Dept Alex,CAREFUSION,20454529,588,,INV183863
Department of Health,Worcestershire Acute Hospitals NHST,2016-10-31,Breast Care Prosthesis,Breast Care,AMOENA UK LTD,20454532,102,522312593,OP0392699
Department of Health,Worcestershire Acute Hospitals NHST,2016-10-31,Stents,Cardiac Cath Lab,TERUMO UK LTD,20454535,288,804941042,3876019918
Department of Health,Worcestershire Acute Hospitals NHST,2016-10-31,Computer Hardware Purch,Pharmacy,COMPUTACENTER (UK) LTD,20454538,488.42,490334648,3880964118
Department of Health,Worcestershire Acute Hospitals NHST,2016-10-31,Packing & Storage,Pharmacy - No Spec,POLYBAGS LTD,20454541,105.6,226504973,I0756991
Department of Health,Worcestershire Acute Hospitals NHST,2016-10-31,Med & Surg Equip General,NICU- Paeds,ARDO MEDICAL LTD,20454544,357,862486006,1232270
Department of Health,Worcestershire Acute Hospitals NHST,2016-10-31,Surg Instruments General,Main Theatre,PELICAN FEMININE HEALTHCARE LTD,20454548,71.14,806634432,OPI091013
Department of Health,Worcestershire Acute Hospitals NHST,2016-10-31,Laboratory Equipment,Haematology Blood Bank,OCTAPHARMA LTD,20454550,1912.5,585216330,83069
Department of Health,Worcestershire Acute Hospitals NHST,2016-10-31,Laboratory Equipment,Haematology Blood Bank,OCTAPHARMA LTD,20454553,1275,585216330,83074
Department of Health,Worcestershire Acute Hospitals NHST,2016-10-31,Med & Surg Equip General,Alex Theatre - Scrub,NAGOR LTD,20454555,194.4,942111756,0010011193
Department of Health,Worcestershire Acute Hospitals NHST,2016-10-31,Vending Machine Supplies,Catering Dept-No Spec,REFRESHMENT SYSTEMS LTD,20454558,347,606982321,87553
Department of Health,Worcestershire Acute Hospitals NHST,2016-10-31,Vending Machine Supplies,Catering Dept-No Spec,REFRESHMENT SYSTEMS LTD,20454561,159.36,606982321,86974
Department of Health,Worcestershire Acute Hospitals NHST,2016-10-31,Med & Surg Equip General,T&O Medical,STRYKER UK LTD,20454564,821.52,787438865,27868533
Department of Health,Worcestershire Acute Hospitals NHST,2016-10-31,Med & Surg Equip General,T&O Medical,STRYKER UK LTD,20454567,43.08,787438865,27868534
Department of Health,Worcestershire Acute Hospitals NHST,2016-10-31,Med & Surg Equip General,T&O Medical,STRYKER UK LTD,20454569,360,787438865,27868535
Department of Health,Worcestershire Acute Hospitals NHST,2016-10-31,Prostheses - Hips,T&O Medical,STRYKER UK LTD,20454571,518.28,787438865,27868527
Department of Health,Worcestershire Acute Hospitals NHST,2016-10-31,Prostheses - Hips,T&O Medical,STRYKER UK LTD,20454572,821.52,787438865,27868528
Department of Health,Worcestershire Acute Hospitals NHST,2016-10-31,Agency Prof & Tech,Audiology- Alex,MAXXIMA LTD,20456182,954.18,778097473,148770-30-SEP-2016
Department of Health,Worcestershire Acute Hospitals NHST,2016-10-31,Stocks Finished Goods,Balance Sheet,TJ SMITH & NEPHEW LTD,20456184,251.42,,148768-30-SEP-2016
Department of Health,Worcestershire Acute Hospitals NHST,2016-10-31,External Consultancy Fees,Occupational Health,L WILLS,20456185,1715,,148769-30-SEP-2016
Department of Health,Worcestershire Acute Hospitals NHST,2016-10-31,Taxi & Other Vehicle Hire,Bereavement Service,THOMAS BROTHERS,20456187,1700,,148772-30-SEP-2016
Department of Health,Worcestershire Acute Hospitals NHST,2016-10-31,Printing Costs,Car Park Scheme- No Spec,ONE-OFF SUPPLIER,20456189,161.94,,148773-03-OCT-2016
Department of Health,Worcestershire Acute Hospitals NHST,2016-10-31,Funeral Expenses,Bereavement Service,INSPIRE HEALTHCARE SERVICES,20456191,466,,148798-03-OCT-2016
Department of Health,Worcestershire Acute Hospitals NHST,2016-10-31,Funeral Expenses,Bereavement Service,INSPIRE HEALTHCARE SERVICES,20456193,466,,148799-03-OCT-2016
Department of Health,Worcestershire Acute Hospitals NHST,2016-10-31,Provisions,Catering Dept-No Spec,WELLS FARM DAIRY,20456195,1018.24,,148777-03-OCT-2016
Department of Health,Worcestershire Acute Hospitals NHST,2016-10-31,Provisions,Catering Dept-No Spec,WELLS FARM DAIRY,20456196,949.48,,148778-03-OCT-2016
Department of Health,Worcestershire Acute Hospitals NHST,2016-10-31,Provisions,Catering Dept-No Spec,WELLS FARM DAIRY,20456197,958.91,,148779-03-OCT-2016
Department of Health,Worcestershire Acute Hospitals NHST,2016-10-31,Provisions,Catering Dept-No Spec,WELLS FARM DAIRY,20456198,892.36,,148780-03-OCT-2016
Department of Health,Worcestershire Acute Hospitals NHST,2016-10-31,Provisions,Catering Dept-No Spec,WELLS FARM DAIRY,20456199,1003.26,,148781-03-OCT-2016
Department of Health,Worcestershire Acute Hospitals NHST,2016-10-31,Provisions,Catering Dept-No Spec,WELLS FARM DAIRY,20456200,1003.26,,148782-03-OCT-2016
Department of Health,Worcestershire Acute Hospitals NHST,2016-10-31,Provisions,Catering Dept-No Spec,WELLS FARM DAIRY,20456201,991.71,,148783-03-OCT-2016
Department of Health,Worcestershire Acute Hospitals NHST,2016-10-31,Provisions,Catering Dept-No Spec,WELLS FARM DAIRY,20456202,871.24,,148784-03-OCT-2016
Department of Health,Worcestershire Acute Hospitals NHST,2016-10-31,Provisions,Catering Dept-No Spec,WELLS FARM DAIRY,20456203,1002.44,,148785-03-OCT-2016
Department of Health,Worcestershire Acute Hospitals NHST,2016-10-31,Provisions,Catering Dept-No Spec,WELLS FARM DAIRY,20456204,946.14,,148786-03-OCT-2016
Department of Health,Worcestershire Acute Hospitals NHST,2016-10-31,Provisions,Catering Dept-No Spec,WELLS FARM DAIRY,20456205,1002.44,,148787-03-OCT-2016
Department of Health,Worcestershire Acute Hospitals NHST,2016-10-31,Provisions,Catering Dept-No Spec,WELLS FARM DAIRY,20456206,1002.44,,148788-03-OCT-2016
Department of Health,Worcestershire Acute Hospitals NHST,2016-10-31,Provisions,Catering Dept-No Spec,WELLS FARM DAIRY,20456207,990.74,,148789-03-OCT-2016
Department of Health,Worcestershire Acute Hospitals NHST,2016-10-31,Provisions,Catering Dept-No Spec,WELLS FARM DAIRY,20456208,1028.84,,148790-03-OCT-2016
Department of Health,Worcestershire Acute Hospitals NHST,2016-10-31,Provisions,Catering Dept-No Spec,WELLS FARM DAIRY,20456209,873.07,,148791-03-OCT-2016
Department of Health,Worcestershire Acute Hospitals NHST,2016-10-31,Provisions,Catering Dept-No Spec,WELLS FARM DAIRY,20456210,905.92,,148792-03-OCT-2016
Department of Health,Worcestershire Acute Hospitals NHST,2016-10-31,Provisions,Catering Dept-No Spec,WELLS FARM DAIRY,20456211,907.72,,148793-03-OCT-2016
Department of Health,Worcestershire Acute Hospitals NHST,2016-10-31,Provisions,Catering Dept-No Spec,WELLS FARM DAIRY,20456212,905.92,,148794-03-OCT-2016
Department of Health,Worcestershire Acute Hospitals NHST,2016-10-31,Provisions,Catering Dept-No Spec,WELLS FARM DAIRY,20456213,901.86,,148795-03-OCT-2016
Department of Health,Worcestershire Acute Hospitals NHST,2016-10-31,Provisions,Catering Dept-No Spec,WELLS FARM DAIRY,20456214,968.38,,148796-03-OCT-2016
Department of Health,Worcestershire Acute Hospitals NHST,2016-10-31,Provisions,Catering Dept-No Spec,WELLS FARM DAIRY,20456215,965.04,,148797-03-OCT-2016
Department of Health,Worcestershire Acute Hospitals NHST,2016-10-31,Provisions,Catering Dept-No Spec,WELLS FARM DAIRY,20456216,1001.32,,148776-03-OCT-2016
Department of Health,Worcestershire Acute Hospitals NHST,2016-10-31,Provisions,Catering Dept-No Spec,WELLS FARM DAIRY,20456217,998.52,,148774-03-OCT-2016
Department of Health,Worcestershire Acute Hospitals NHST,2016-10-31,Provisions,Catering Dept-No Spec,WELLS FARM DAIRY,20456218,927.86,,148775-03-OCT-2016
Department of Health,Worcestershire Acute Hospitals NHST,2016-10-31,Med & Surg Equip General,Diabetic Nursing TCS,ANIMAS UK & IRELAND,20456273,5040,538056733,422419KI10659
Department of Health,Worcestershire Acute Hospitals NHST,2016-10-31,Bldg/Eng Equip Maint Cont,Estates Bewdley Road,UNIVERSAL HEAT TRANSFER LTD,20456276,1495,660737820,18046
Department of Health,Worcestershire Acute Hospitals NHST,2016-10-31,Bldg/Eng Equip Maint Cont,Estates Bewdley Road,UNIVERSAL HEAT TRANSFER LTD,20456280,1100,660737820,18047
Department of Health,Worcestershire Acute Hospitals NHST,2016-10-31,Furniture & Fittings,Dermatology,SUPREMA CONCEPTS LTD,20456282,1904.28,,3767
Department of Health,Worcestershire Acute Hospitals NHST,2016-10-31,X-Ray Equipment Purchase,Radiology Countwide,INHEALTH LTD,20456289,1299.5,787424685,INV000000464
Department of Health,Worcestershire Acute Hospitals NHST,2016-10-31,Patients Appl: Purchase,Trauma + Orthopaedics WRH,OSSUR UK,20456292,-429.36,572395027,SCUK031204
Department of Health,Worcestershire Acute Hospitals NHST,2016-10-31,Med & Surg Equip General,Main Theatre,TJ SMITH AND NEPHEW,20456297,1635,,0915468486
Department of Health,Worcestershire Acute Hospitals NHST,2016-10-31,Med & Surg Equip General,Theatre DayCase ECH TCS,FEMCARE-NIKOMED LTD,20456299,1061.7,844281229,33462
Department of Health,Worcestershire Acute Hospitals NHST,2016-10-31,Med & Surg Equip Disp,Dental Laboratory,DB ORTHODONTICS LTD,20456300,229.8,179868778,3000083497
Department of Health,Worcestershire Acute Hospitals NHST,2016-10-31,Materials - Electrical,Technical Serv- No Spec,CARDIAC SERVICES UK LTD,20456302,192,252414977,GINV247405
Department of Health,Worcestershire Acute Hospitals NHST,2016-10-31,Bedding & Linen: Disp,Alex Theatre - Scrub,365 HEALTHCARE LTD,20456305,105.77,844466408,6010844
Department of Health,Worcestershire Acute Hospitals NHST,2016-10-31,Med & Surg Equip Disp,Cardiopulmonary,RADIOMETER LTD,20456306,383.76,479658376,439912
Department of Health,Worcestershire Acute Hospitals NHST,2016-10-31,Prostheses,T&O Medical,WRIGHT MEDICAL UK LTD,20456310,80.03,677219993,156180RI
Department of Health,Worcestershire Acute Hospitals NHST,2016-10-31,NonRes Bldg Additions,Balance Sheet,DAKRO ENVIRONMENTAL LTD,20456312,64,729385106,0000065547
Department of Health,Worcestershire Acute Hospitals NHST,2016-10-31,NonRes Bldg Additions,Balance Sheet,DAKRO ENVIRONMENTAL LTD,20456313,64,729385106,0000065548
Department of Health,Worcestershire Acute Hospitals NHST,2016-10-31,Med & Surg Equip Disp,Theatre,OLYMPUS KEYMED,20456314,95.33,250317495,CD2230905
Department of Health,Worcestershire Acute Hospitals NHST,2016-10-31,Med & Surg Equip Disp,Dental Laboratory,TECHNOVENT LTD,20456316,161.94,545583716,109549
Department of Health,Worcestershire Acute Hospitals NHST,2016-10-31,Prostheses,T&O Medical,WRIGHT MEDICAL UK LTD,20456318,129.6,677219993,156179RI
Department of Health,Worcestershire Acute Hospitals NHST,2016-10-31,Computer Maintenance,Computacenter,COMPUTACENTER (UK) LTD,20456320,118674,490334648,3780045108
Department of Health,Worcestershire Acute Hospitals NHST,2016-10-31,Ext Contr Laundry,Pharmacy - No Spec,BERENDSEN CLEANROOM SERVICES LTD,20456323,525.52,GB107232747,10002768
Department of Health,Worcestershire Acute Hospitals NHST,2016-10-31,Staff Uniforms & Clothing,TSSU,BERENDSEN CLEANROOM SERVICES LTD,20456326,314.26,GB107232747,10002792
Department of Health,Worcestershire Acute Hospitals NHST,2016-10-31,Rent,Alex Vanguard Theatre,VANGUARD HEALTHCARE SOLUTIONS LTD,20456330,31752,945604316,12417
Department of Health,Worcestershire Acute Hospitals NHST,2016-10-31,Materials - Electrical,Countywide Infection Control Nursing,BUNZL HEALTHCARE,20456332,50.4,286014266,OPI933853Y16
Department of Health,Worcestershire Acute Hospitals NHST,2016-10-31,Staff Uniforms & Clothing,TSSU,BERENDSEN CLEANROOM SERVICES LTD,20456335,301.76,GB107232747,10002770
Department of Health,Worcestershire Acute Hospitals NHST,2016-10-31,Laboratory Chemicals,Haematology Blood Bank,LABCOLD LTD,20456338,428.4,205312124,378991
Department of Health,Worcestershire Acute Hospitals NHST,2016-10-31,Cleaning Materials,TSSU,BUNZL HEALTHCARE,20456339,98.4,286014266,OPI933855Y16
Department of Health,Worcestershire Acute Hospitals NHST,2016-10-31,Surg Instruments General,TSSU,BUNZL HEALTHCARE,20456339,842.94,286014266,OPI933855Y16
Department of Health,Worcestershire Acute Hospitals NHST,2016-10-31,Stents,Radiology Dept WRH,BIOTRONIK UK LTD,20456342,642,245521378,513048355
Department of Health,Worcestershire Acute Hospitals NHST,2016-10-31,Med & Surg Equip Repair,Other Pass Throughs,BUNZL HEALTHCARE,20456346,100.8,286014266,OPI933854Y16
Department of Health,Worcestershire Acute Hospitals NHST,2016-10-31,Catering Equip Disposable,Catering Dept-No Spec,NOBISCO LTD,20456349,76.56,,449828
Department of Health,Worcestershire Acute Hospitals NHST,2016-10-31,Med & Surg Equip Disp,Outpats- Multi-Spec Alex,THD (UK) LTD,20456352,1200,939427193,7928
Department of Health,Worcestershire Acute Hospitals NHST,2016-10-31,Med & Surg Equip General,Theatre,INTERSURGICAL LTD,20456355,164.16,688982252,1256032
Department of Health,Worcestershire Acute Hospitals NHST,2016-10-31,Med & Surg Equip General,Theatre,INTERSURGICAL LTD,20456357,820.8,688982252,1255766
Department of Health,Worcestershire Acute Hospitals NHST,2016-10-31,Med & Surg Equip Disp,Outpats- Multi-Spec Alex,THD (UK) LTD,20456359,1200,939427193,7920
Department of Health,Worcestershire Acute Hospitals NHST,2016-10-31,Med & Surg Equip Disp,Radiology Dept WRH,MERIT MEDICAL UK LTD,20456361,240,645811531,632599
Department of Health,Worcestershire Acute Hospitals NHST,2016-10-31,Med & Surg Equip Disp,Ophthalmic Nursing,AMO UK LTD,20456362,234,795110036,1057962072
Department of Health,Worcestershire Acute Hospitals NHST,2016-10-31,Med & Surg Equip General,Alex Anaes & Recover,WELCH ALLYN UK LTD,20456363,3240,533124384,9000270480
Department of Health,Worcestershire Acute Hospitals NHST,2016-10-31,Materials - Electrical,Paeds Medics WRH,BUSINESS DICTATION LTD,20456391,100.19,425147370,229827
Department of Health,Worcestershire Acute Hospitals NHST,2016-10-31,Stents,Cardiac Cath Lab,AQUILANT INTERVENTIONAL,20456392,1284,413939935,I738668
Department of Health,Worcestershire Acute Hospitals NHST,2016-10-31,Provisions,Catering Dept-No Spec,BRAKE BROS LTD,20456393,2527.2,202935388,780593000
Department of Health,Worcestershire Acute Hospitals NHST,2016-10-31,Provisions,Catering Dept-No Spec,BIDVEST FOODSERVICE,20456394,882.16,GB0643994692,69339096
Department of Health,Worcestershire Acute Hospitals NHST,2016-10-31,Provisions,Catering (Patients),BIDVEST FOODSERVICE,20456395,291.86,GB0643994692,69322008
Department of Health,Worcestershire Acute Hospitals NHST,2016-10-31,Provisions,Catering Dept-No Spec,BIDVEST FOODSERVICE,20456396,1140.13,GB0643994692,69321601
Department of Health,Worcestershire Acute Hospitals NHST,2016-10-31,Provisions,Catering Dept-No Spec,BIDVEST FOODSERVICE,20456397,753.98,GB0643994692,69278990
Department of Health,Worcestershire Acute Hospitals NHST,2016-10-31,Provisions,Catering Dept-No Spec,BIDVEST FOODSERVICE,20456398,908.79,GB0643994692,69261695
Department of Health,Worcestershire Acute Hospitals NHST,2016-10-31,Provisions,Catering Dept-No Spec,BIDVEST FOODSERVICE,20456399,83.52,GB0643994692,65758092
Department of Health,Worcestershire Acute Hospitals NHST,2016-10-31,Provisions,Catering Dept-No Spec,BIDVEST FOODSERVICE,20456402,49.4,GB0643994692,69280311
Department of Health,Worcestershire Acute Hospitals NHST,2016-10-31,Provisions,Catering Dept-No Spec,BIDVEST FOODSERVICE,20456403,502.33,GB0643994692,69301179
Department of Health,Worcestershire Acute Hospitals NHST,2016-10-31,Provisions,Catering Dept-No Spec,BIDVEST FOODSERVICE,20456404,117.09,GB0643994692,69301608
Department of Health,Worcestershire Acute Hospitals NHST,2016-10-31,Provisions,Catering Dept-No Spec,BIDVEST FOODSERVICE,20456405,-29.71,GB0643994692,98824155
Department of Health,Worcestershire Acute Hospitals NHST,2016-10-31,Provisions,Catering Dept-No Spec,BIDVEST FOODSERVICE,20456406,135.84,GB0643994692,69261678
Department of Health,Worcestershire Acute Hospitals NHST,2016-10-31,NonRes Bldg Additions,Balance Sheet,DAKRO ENVIRONMENTAL LTD,20456407,45,729385106,0000065549
Department of Health,Worcestershire Acute Hospitals NHST,2016-10-31,Contr Refuse & Clin Waste,Estates Bewdley Road,REGENR8 LTD,20456408,205,,4828
Department of Health,Worcestershire Acute Hospitals NHST,2016-10-31,IT Additions,Balance Sheet,COMPUTACENTER (UK) LTD,20456409,11452.93,490334648,3780045110
Department of Health,Worcestershire Acute Hospitals NHST,2016-10-31,Surg Instruments General,Endoscopy,ERBE MEDICAL UK LTD,20456410,1048.25,675321727,55529
Department of Health,Worcestershire Acute Hospitals NHST,2016-10-31,Med & Surg Maint Contract,Main Theatre,LEICA MICROSYSTEMS (UK) LTD,20456411,2491.56,290756238,96527779
Department of Health,Worcestershire Acute Hospitals NHST,2016-10-31,Med & Surg Equip General,NICU- Paeds,INSPIRATION HEALTHCARE LTD,20456412,635.4,816709809,SI166007131
Department of Health,Worcestershire Acute Hospitals NHST,2016-10-31,Prostheses - Other,T&O Medical,ORTHO SOLUTIONS LTD,20456413,128.4,794553192,0000159137
Department of Health,Worcestershire Acute Hospitals NHST,2016-10-31,Staff Uniforms & Clothing,HSDU- Multi-Specialty,BERENDSEN CLEANROOM SERVICES LTD,20456414,492,GB107232747,10002777
Department of Health,Worcestershire Acute Hospitals NHST,2016-10-31,Staff Uniforms & Clothing,HSDU- Multi-Specialty,BERENDSEN CLEANROOM SERVICES LTD,20456415,740.41,GB107232747,10002778
Department of Health,Worcestershire Acute Hospitals NHST,2016-10-31,Patients Appl: Purchase,GP Direct Access Alex,BEAGLE ORTHOPAEDICS,20456417,85.04,915387017,0000188298
Department of Health,Worcestershire Acute Hospitals NHST,2016-10-31,Bldg/Eng Equip Maint/Rep,Estates Bewdley Road,WALLS&CEILINGS LTD,20456421,65.06,,OPI345622
Department of Health,Worcestershire Acute Hospitals NHST,2016-10-31,Bldg/Eng Equip Maint/Rep,Estates Bewdley Road,WALLS&CEILINGS LTD,20456423,130.14,,OPI345623
Department of Health,Worcestershire Acute Hospitals NHST,2016-10-31,Med & Surg Equip Repair,Theatre,ROBERTS SURGICAL HEALTHCARE LTD,20456428,55.2,551371263,35990
Department of Health,Worcestershire Acute Hospitals NHST,2016-10-31,X-Ray Equipment Purchase,Radiotherapy WRH,TOC,20456431,46.74,601053112-1,0000237734
Department of Health,Worcestershire Acute Hospitals NHST,2016-10-31,Materials - Electrical,ECG,BUNZL HEALTHCARE,20456434,46.8,286014266,OPI933852Y16
Department of Health,Worcestershire Acute Hospitals NHST,2016-10-31,Med & Surg Equip General,Ophthalmic OP Nursing,ALTOMED LTD,20456435,390.6,178872994,317355
Department of Health,Worcestershire Acute Hospitals NHST,2016-10-31,Med & Surg Equip General,NICU- Paeds,ARDO MEDICAL LTD,20456440,378,862486006,1232271
Department of Health,Worcestershire Acute Hospitals NHST,2016-10-31,Laboratory Test Kits,Microbiology,APACOR LTD,20456442,571.2,739759176,14794
Department of Health,Worcestershire Acute Hospitals NHST,2016-10-31,Commercial Sector,Pharmacy,BERENDSEN CLEANROOM SERVICES LTD,20456447,498.43,GB107232747,10002782
Department of Health,Worcestershire Acute Hospitals NHST,2016-10-31,Commercial Sector,Pharmacy,BERENDSEN CLEANROOM SERVICES LTD,20456449,447.53,GB107232747,10002781
Department of Health,Worcestershire Acute Hospitals NHST,2016-10-31,NonRes Bldg Additions,Balance Sheet,DAKRO ENVIRONMENTAL LTD,20456452,1765.83,729385106,0000065311
Department of Health,Worcestershire Acute Hospitals NHST,2016-10-31,Surg Instruments Disp,Theatre DayCase ECH TCS,LABORIE MEDICAL TECHNOLOGIES EUROPE LTD,20456454,574.8,,441406946
Department of Health,Worcestershire Acute Hospitals NHST,2016-10-31,Med & Surg Equip General,T&O Medical,FANNIN (UK) LTD,20456457,644.4,570099336,9400246070
Department of Health,Worcestershire Acute Hospitals NHST,2016-10-31,Surg Instruments Disp,Gynaecology- 23 beds,DTR MEDICAL LTD,20456460,174.6,800410205,177366
Department of Health,Worcestershire Acute Hospitals NHST,2016-10-31,Cleaning Materials,Domestics-No Spec,NOBISCO LTD,20456463,248.64,,449829
Department of Health,Worcestershire Acute Hospitals NHST,2016-10-31,Med & Surg Equip Disp,Outpats- Multi-Spec Alex,THD (UK) LTD,20456466,780,939427193,7929
Department of Health,Worcestershire Acute Hospitals NHST,2016-10-31,Vending Machine Supplies,Catering Dept-No Spec,REFRESHMENT SYSTEMS LTD,20456468,472.87,606982321,84100
Department of Health,Worcestershire Acute Hospitals NHST,2016-10-31,Vending Machine Supplies,Catering Dept-No Spec,REFRESHMENT SYSTEMS LTD,20456470,108.46,606982321,83924
Department of Health,Worcestershire Acute Hospitals NHST,2016-10-31,Sterile Products,TSSU,HYGIENA INTERNATIONAL,20456472,198,780004364,39685
Department of Health,Worcestershire Acute Hospitals NHST,2016-10-31,Med & Surg Equip Disp,Outpats- Multi-Spec Alex,THD (UK) LTD,20456475,780,939427193,7919
Department of Health,Worcestershire Acute Hospitals NHST,2016-10-31,Med & Surg Equip General,Alex Theatre - Scrub,INTERSURGICAL LTD,20456479,243,688982252,1255524
Department of Health,Worcestershire Acute Hospitals NHST,2016-10-31,Patients Appl: Purchase,Orthopaedic Centre,TALAR MADE LTD,20456482,43.52,806199026,152634
Department of Health,Worcestershire Acute Hospitals NHST,2016-10-31,Equip Maint Contracts,ECG,NHS SUPPLY CHAIN,20456485,8940.99,654434729,2017002824
Department of Health,Worcestershire Acute Hospitals NHST,2016-10-31,Med & Surg Equip Disp,Cardiac Cath Lab,TELEFLEX MEDICAL,20456487,390,765368296,0989523167
Department of Health,Worcestershire Acute Hospitals NHST,2016-10-31,Anaesthetics Accessories,Main Theatre,TELEFLEX MEDICAL,20456490,356.4,765368296,0989523166
Department of Health,Worcestershire Acute Hospitals NHST,2016-10-31,Med & Surg Equip General,Radiology Dept Alex,CASMED INTERNATIONAL LTD,20456493,116.32,676195103,3151781
Department of Health,Worcestershire Acute Hospitals NHST,2016-10-31,Anaesthetics Accessories,Respiratory Support,PHILIPS RESPIRONICS UK,20456495,490.2,407850060-1,932383323
Department of Health,Worcestershire Acute Hospitals NHST,2016-10-31,Med & Surg Equip Disp,SIFT- (Birm) Alex,CANONBURY PRODUCTS LTD,20456498,72.6,393786102,INV756648
Department of Health,Worcestershire Acute Hospitals NHST,2016-10-31,Patients Appl: Purchase,GP Direct Access Worcs,CANONBURY PRODUCTS LTD,20456501,49.78,393786102,INV756258
Department of Health,Worcestershire Acute Hospitals NHST,2016-10-31,Engineering Contracts,Building- No Spec,HARROLD JONES SERVICES,20456503,1264,,31586
Department of Health,Worcestershire Acute Hospitals NHST,2016-10-31,Bldg/Eng Equip Maint Cont,Estates Bewdley Road,HARROLD JONES SERVICES,20456506,1337,,31600
Department of Health,Worcestershire Acute Hospitals NHST,2016-10-31,Staff Uniforms & Clothing,Linen Serv- No Spec,MELTEMI LTD,20456508,75.3,,INV1685515
Department of Health,Worcestershire Acute Hospitals NHST,2016-10-31,Stocks Finished Goods,Balance Sheet,MANX HEALTHCARE,20456805,43.06,945693674,0000061872
Department of Health,Worcestershire Acute Hospitals NHST,2016-10-31,Stocks Finished Goods,Balance Sheet,POLAR SPEED DISTRIBUTION LTD,20456806,6000,849745765,0000306754
Department of Health,Worcestershire Acute Hospitals NHST,2016-10-31,Stocks Finished Goods,Balance Sheet,TILLOMED LABORATORIES LTD,20456807,33.6,563645523,0000410071
Department of Health,Worcestershire Acute Hospitals NHST,2016-10-31,Stocks Finished Goods,Balance Sheet,MIDOPTIC LTD,20456808,104.4,353419752,0000510305
Department of Health,Worcestershire Acute Hospitals NHST,2016-10-31,Stocks Finished Goods,Balance Sheet,AAH PHARMACEUTICALS LTD,20456809,-29.7,546573322,03379365U
Department of Health,Worcestershire Acute Hospitals NHST,2016-10-31,Stocks Finished Goods,Balance Sheet,AAH PHARMACEUTICALS LTD,20456814,-120.41,546573322,03446622T
Department of Health,Worcestershire Acute Hospitals NHST,2016-10-31,Stocks Finished Goods,Balance Sheet,BAUSCH&LOMB UK,20456817,187.2,609030374,06013246
Department of Health,Worcestershire Acute Hospitals NHST,2016-10-31,Stocks Finished Goods,Balance Sheet,BAUSCH&LOMB UK,20456818,1396.8,609030374,06014885
Department of Health,Worcestershire Acute Hospitals NHST,2016-10-31,Stocks Finished Goods,Balance Sheet,BAUSCH&LOMB UK,20456819,100.8,609030374,06016194
Department of Health,Worcestershire Acute Hospitals NHST,2016-10-31,Stocks Finished Goods,Balance Sheet,BAUSCH&LOMB UK,20456820,446.4,609030374,06021464
Department of Health,Worcestershire Acute Hospitals NHST,2016-10-31,Stocks Finished Goods,Balance Sheet,BAUSCH&LOMB UK,20456821,446.4,609030374,06022390
Department of Health,Worcestershire Acute Hospitals NHST,2016-10-31,Stocks Finished Goods,Balance Sheet,BRISTOL MYERS SQUIBB PHARMACEUTICALS LTD,20456822,1605.58,163542667,100559242
Department of Health,Worcestershire Acute Hospitals NHST,2016-10-31,Stocks Finished Goods,Balance Sheet,BRISTOL MYERS SQUIBB PHARMACEUTICALS LTD,20456823,802.79,163542667,100559972
Department of Health,Worcestershire Acute Hospitals NHST,2016-10-31,Stocks Finished Goods,Balance Sheet,BRISTOL MYERS SQUIBB PHARMACEUTICALS LTD,20456824,1625.66,163542667,100560235
Department of Health,Worcestershire Acute Hospitals NHST,2016-10-31,Stocks Finished Goods,Balance Sheet,BRISTOL MYERS SQUIBB PHARMACEUTICALS LTD,20456825,3005.95,163542667,100560305
Department of Health,Worcestershire Acute Hospitals NHST,2016-10-31,Stocks Finished Goods,Balance Sheet,BRISTOL MYERS SQUIBB PHARMACEUTICALS LTD,20456826,609.62,163542667,100560746
Department of Health,Worcestershire Acute Hospitals NHST,2016-10-31,Stocks Finished Goods,Balance Sheet,BRISTOL MYERS SQUIBB PHARMACEUTICALS LTD,20456827,1219.25,163542667,100561061
Department of Health,Worcestershire Acute Hospitals NHST,2016-10-31,Stocks Finished Goods,Balance Sheet,BRISTOL MYERS SQUIBB PHARMACEUTICALS LTD,20456828,6509.14,163542667,100561230
Department of Health,Worcestershire Acute Hospitals NHST,2016-10-31,Stocks Finished Goods,Balance Sheet,BRISTOL MYERS SQUIBB PHARMACEUTICALS LTD,20456829,7898.4,163542667,100561310
Department of Health,Worcestershire Acute Hospitals NHST,2016-10-31,Stocks Finished Goods,Balance Sheet,CHIESI LTD,20456830,3240,686750782,1016005331
Department of Health,Worcestershire Acute Hospitals NHST,2016-10-31,Stocks Finished Goods,Balance Sheet,HELAPET LTD,20456831,770.06,404036109,102084
Department of Health,Worcestershire Acute Hospitals NHST,2016-10-31,Stocks Finished Goods,Balance Sheet,SPECIALS LABORATORY LTD,20456832,132,733864905,1053809
Department of Health,Worcestershire Acute Hospitals NHST,2016-10-31,Stocks Finished Goods,Balance Sheet,NORGINE PHARMACEUTICALS LTD,20456833,42.12,722705650,12138147
Department of Health,Worcestershire Acute Hospitals NHST,2016-10-31,Stocks Finished Goods,Balance Sheet,ROCHE PRODUCTS LTD,20456834,45877.44,600358871,1321890609
Department of Health,Worcestershire Acute Hospitals NHST,2016-10-31,Stocks Finished Goods,Balance Sheet,ROCHE PRODUCTS LTD,20456835,4872,600358871,1321891055
Department of Health,Worcestershire Acute Hospitals NHST,2016-10-31,Stocks Finished Goods,Balance Sheet,ROCHE PRODUCTS LTD,20456836,29469.72,600358871,1321891976
Department of Health,Worcestershire Acute Hospitals NHST,2016-10-31,Stocks Finished Goods,Balance Sheet,ROCHE PRODUCTS LTD,20456837,27996.48,600358871,1321893005
Department of Health,Worcestershire Acute Hospitals NHST,2016-10-31,Stocks Finished Goods,Balance Sheet,ROCHE PRODUCTS LTD,20456838,14370,600358871,1321894049
Department of Health,Worcestershire Acute Hospitals NHST,2016-10-31,Stocks Finished Goods,Balance Sheet,ROCHE PRODUCTS LTD,20456839,6107.02,600358871,1321895464
Department of Health,Worcestershire Acute Hospitals NHST,2016-10-31,Stocks Finished Goods,Balance Sheet,ROCHE PRODUCTS LTD,20456840,2893.82,600358871,1321895786
Department of Health,Worcestershire Acute Hospitals NHST,2016-10-31,Stocks Finished Goods,Balance Sheet,ROCHE PRODUCTS LTD,20456841,10477.8,600358871,1321896476
Department of Health,Worcestershire Acute Hospitals NHST,2016-10-31,Stocks Finished Goods,Balance Sheet,ROCHE PRODUCTS LTD,20456842,5605.06,600358871,1321896512
Department of Health,Worcestershire Acute Hospitals NHST,2016-10-31,Stocks Finished Goods,Balance Sheet,INVITECH LTD,20456843,491.4,936830796,134969
Department of Health,Worcestershire Acute Hospitals NHST,2016-10-31,Stocks Finished Goods,Balance Sheet,MACO PHARMA UK LTD,20456845,490.32,626877105,16007854
Department of Health,Worcestershire Acute Hospitals NHST,2016-10-31,Stocks Finished Goods,Balance Sheet,MACO PHARMA UK LTD,20456846,357.6,626877105,16007862
Department of Health,Worcestershire Acute Hospitals NHST,2016-10-31,Stocks Finished Goods,Balance Sheet,MACO PHARMA UK LTD,20456847,239.04,626877105,16007924
Department of Health,Worcestershire Acute Hospitals NHST,2016-10-31,Stocks Finished Goods,Balance Sheet,MACO PHARMA UK LTD,20456848,478.08,626877105,16007935
Department of Health,Worcestershire Acute Hospitals NHST,2016-10-31,Stocks Finished Goods,Balance Sheet,MACO PHARMA UK LTD,20456849,2243.28,626877105,16008012
Department of Health,Worcestershire Acute Hospitals NHST,2016-10-31,Stocks Finished Goods,Balance Sheet,MACO PHARMA UK LTD,20456850,774.43,626877105,16008016
Department of Health,Worcestershire Acute Hospitals NHST,2016-10-31,Stocks Finished Goods,Balance Sheet,MACO PHARMA UK LTD,20456851,669.31,626877105,16008045
Department of Health,Worcestershire Acute Hospitals NHST,2016-10-31,Stocks Finished Goods,Balance Sheet,MACO PHARMA UK LTD,20456852,113.76,626877105,16008077
Department of Health,Worcestershire Acute Hospitals NHST,2016-10-31,Stocks Finished Goods,Balance Sheet,MACO PHARMA UK LTD,20456853,500.64,626877105,16008126
Department of Health,Worcestershire Acute Hospitals NHST,2016-10-31,Stocks Finished Goods,Balance Sheet,MACO PHARMA UK LTD,20456854,84,626877105,16008167
Department of Health,Worcestershire Acute Hospitals NHST,2016-10-31,Stocks Finished Goods,Balance Sheet,MACO PHARMA UK LTD,20456855,637.92,626877105,16008188
Department of Health,Worcestershire Acute Hospitals NHST,2016-10-31,Stocks Finished Goods,Balance Sheet,MACO PHARMA UK LTD,20456856,478.08,626877105,16008236
Department of Health,Worcestershire Acute Hospitals NHST,2016-10-31,Stocks Finished Goods,Balance Sheet,MACO PHARMA UK LTD,20456857,3172.4,626877105,16008285
Department of Health,Worcestershire Acute Hospitals NHST,2016-10-31,Stocks Finished Goods,Balance Sheet,MACO PHARMA UK LTD,20456858,78,626877105,16008293
Department of Health,Worcestershire Acute Hospitals NHST,2016-10-31,Stocks Finished Goods,Balance Sheet,MACO PHARMA UK LTD,20456859,329.28,626877105,16008328
Department of Health,Worcestershire Acute Hospitals NHST,2016-10-31,Stocks Finished Goods,Balance Sheet,MACO PHARMA UK LTD,20456860,648,626877105,16008334
Department of Health,Worcestershire Acute Hospitals NHST,2016-10-31,Stocks Finished Goods,Balance Sheet,MACO PHARMA UK LTD,20456861,39,626877105,16008361
Department of Health,Worcestershire Acute Hospitals NHST,2016-10-31,Stocks Finished Goods,Balance Sheet,MACO PHARMA UK LTD,20456862,255.46,626877105,16008382
Department of Health,Worcestershire Acute Hospitals NHST,2016-10-31,Stocks Finished Goods,Balance Sheet,MACO PHARMA UK LTD,20456863,1855.15,626877105,16008708
Department of Health,Worcestershire Acute Hospitals NHST,2016-10-31,Stocks Finished Goods,Balance Sheet,MACO PHARMA UK LTD,20456864,478.08,626877105,16008719
Department of Health,Worcestershire Acute Hospitals NHST,2016-10-31,Stocks Finished Goods,Balance Sheet,MACO PHARMA UK LTD,20456865,648,626877105,16008790
Department of Health,Worcestershire Acute Hospitals NHST,2016-10-31,Stocks Finished Goods,Balance Sheet,MACO PHARMA UK LTD,20456866,1691.28,626877105,16008806
Department of Health,Worcestershire Acute Hospitals NHST,2016-10-31,Stocks Finished Goods,Balance Sheet,MACO PHARMA UK LTD,20456867,524.16,626877105,16008808
Department of Health,Worcestershire Acute Hospitals NHST,2016-10-31,Stocks Finished Goods,Balance Sheet,MACO PHARMA UK LTD,20456868,669.31,626877105,16008828
Department of Health,Worcestershire Acute Hospitals NHST,2016-10-31,Stocks Finished Goods,Balance Sheet,MACO PHARMA UK LTD,20456869,554.52,626877105,16008953
Department of Health,Worcestershire Acute Hospitals NHST,2016-10-31,Stocks Finished Goods,Balance Sheet,MACO PHARMA UK LTD,20456870,248.04,626877105,16008975
Department of Health,Worcestershire Acute Hospitals NHST,2016-10-31,Stocks Finished Goods,Balance Sheet,DRUGSRUS LTD,20456871,187.98,GB138277884,1609552
Department of Health,Worcestershire Acute Hospitals NHST,2016-10-31,Stocks Finished Goods,Balance Sheet,BAXTER HEALTHCARE LTD,20456872,619.44,103222439,16173999
Department of Health,Worcestershire Acute Hospitals NHST,2016-10-31,Stocks Finished Goods,Balance Sheet,BAXTER HEALTHCARE LTD,20456873,86.7,103222439,16180371
Department of Health,Worcestershire Acute Hospitals NHST,2016-10-31,Stocks Finished Goods,Balance Sheet,BAXTER HEALTHCARE LTD,20456874,591.84,103222439,16181238
Department of Health,Worcestershire Acute Hospitals NHST,2016-10-31,Stocks Finished Goods,Balance Sheet,BAXTER HEALTHCARE LTD,20456875,188,103222439,16182150
Department of Health,Worcestershire Acute Hospitals NHST,2016-10-31,Stocks Finished Goods,Balance Sheet,BAXTER HEALTHCARE LTD,20456876,110.4,103222439,16182675
Department of Health,Worcestershire Acute Hospitals NHST,2016-10-31,Stocks Finished Goods,Balance Sheet,BAXTER HEALTHCARE LTD,20456877,1094,103222439,16182836
Department of Health,Worcestershire Acute Hospitals NHST,2016-10-31,Stocks Finished Goods,Balance Sheet,BAXTER HEALTHCARE LTD,20456878,197.28,103222439,16183420
Department of Health,Worcestershire Acute Hospitals NHST,2016-10-31,Stocks Finished Goods,Balance Sheet,BAXTER HEALTHCARE LTD,20456879,422.16,103222439,16184123
Department of Health,Worcestershire Acute Hospitals NHST,2016-10-31,Stocks Finished Goods,Balance Sheet,BAXTER HEALTHCARE LTD,20456880,2894.4,103222439,16184124
Department of Health,Worcestershire Acute Hospitals NHST,2016-10-31,Stocks Finished Goods,Balance Sheet,BAXTER HEALTHCARE LTD,20456881,928.8,103222439,16184487
Department of Health,Worcestershire Acute Hospitals NHST,2016-10-31,Stocks Finished Goods,Balance Sheet,BAXTER HEALTHCARE LTD,20456882,2026.2,103222439,16184488
Department of Health,Worcestershire Acute Hospitals NHST,2016-10-31,Stocks Finished Goods,Balance Sheet,BAXTER HEALTHCARE LTD,20456883,928.8,103222439,16184489
Department of Health,Worcestershire Acute Hospitals NHST,2016-10-31,Stocks Finished Goods,Balance Sheet,BAXTER HEALTHCARE LTD,20456884,1390.08,103222439,16184490
Department of Health,Worcestershire Acute Hospitals NHST,2016-10-31,Stocks Finished Goods,Balance Sheet,BAXTER HEALTHCARE LTD,20456885,2082,103222439,16184491
Department of Health,Worcestershire Acute Hospitals NHST,2016-10-31,Stocks Finished Goods,Balance Sheet,BAXTER HEALTHCARE LTD,20456886,1672.8,103222439,16184492
Department of Health,Worcestershire Acute Hospitals NHST,2016-10-31,Stocks Finished Goods,Balance Sheet,BAXTER HEALTHCARE LTD,20456887,1710,103222439,16184493
Department of Health,Worcestershire Acute Hospitals NHST,2016-10-31,Stocks Finished Goods,Balance Sheet,BAXTER HEALTHCARE LTD,20456888,1375.2,103222439,16184494
Department of Health,Worcestershire Acute Hospitals NHST,2016-10-31,Stocks Finished Goods,Balance Sheet,BAXTER HEALTHCARE LTD,20456889,1598.4,103222439,16184495
Department of Health,Worcestershire Acute Hospitals NHST,2016-10-31,Stocks Finished Goods,Balance Sheet,BAXTER HEALTHCARE LTD,20456890,1390.08,103222439,16184496
Department of Health,Worcestershire Acute Hospitals NHST,2016-10-31,Stocks Finished Goods,Balance Sheet,BAXTER HEALTHCARE LTD,20456891,2035.5,103222439,16184497
Department of Health,Worcestershire Acute Hospitals NHST,2016-10-31,Stocks Finished Goods,Balance Sheet,BAXTER HEALTHCARE LTD,20456892,2128.5,103222439,16184497.
Department of Health,Worcestershire Acute Hospitals NHST,2016-10-31,Stocks Finished Goods,Balance Sheet,JOHNSON & JOHNSON MEDICAL LTD,20456893,108.86,592926302,16202910-RI1
Department of Health,Worcestershire Acute Hospitals NHST,2016-10-31,Stocks Finished Goods,Balance Sheet,FORUM HEALTH PRODUCTS LTD,20456894,1282.56,,183002/KRD
Department of Health,Worcestershire Acute Hospitals NHST,2016-10-31,Stocks Finished Goods,Balance Sheet,FORUM HEALTH PRODUCTS LTD,20456895,641.28,,183809/KRD
Department of Health,Worcestershire Acute Hospitals NHST,2016-10-31,Stocks Finished Goods,Balance Sheet,FORUM HEALTH PRODUCTS LTD,20456896,641.28,,184188/KRD
Department of Health,Worcestershire Acute Hospitals NHST,2016-10-31,Stocks Finished Goods,Balance Sheet,BAYER PLC,20456897,52440,641958611,187427034
Department of Health,Worcestershire Acute Hospitals NHST,2016-10-31,Stocks Finished Goods,Balance Sheet,BAYER PLC,20456898,52440,641958611,187428122
Department of Health,Worcestershire Acute Hospitals NHST,2016-10-31,Stocks Finished Goods,Balance Sheet,BAYER PLC,20456899,10488,641958611,187428344
Department of Health,Worcestershire Acute Hospitals NHST,2016-10-31,Stocks Finished Goods,Balance Sheet,MAWDSLEY BROOKS & CO LTD,20456900,112.37,145099751,190916
Department of Health,Worcestershire Acute Hospitals NHST,2016-10-31,Stocks Finished Goods,Balance Sheet,ITH PHARMA,20456901,271.2,932160746,198366
Department of Health,Worcestershire Acute Hospitals NHST,2016-10-31,Stocks Finished Goods,Balance Sheet,ITH PHARMA,20456902,84,932160746,198367
Department of Health,Worcestershire Acute Hospitals NHST,2016-10-31,Stocks Finished Goods,Balance Sheet,ITH PHARMA,20456903,714,932160746,198907
Department of Health,Worcestershire Acute Hospitals NHST,2016-10-31,Stocks Finished Goods,Balance Sheet,ITH PHARMA,20456904,6860.82,932160746,199510
Department of Health,Worcestershire Acute Hospitals NHST,2016-10-31,Stocks Finished Goods,Balance Sheet,ITH PHARMA,20456905,60.6,932160746,199511
Department of Health,Worcestershire Acute Hospitals NHST,2016-10-31,Stocks Finished Goods,Balance Sheet,ITH PHARMA,20456906,8689.68,932160746,199730
Department of Health,Worcestershire Acute Hospitals NHST,2016-10-31,Stocks Finished Goods,Balance Sheet,ITH PHARMA,20456907,7578,932160746,199923
Department of Health,Worcestershire Acute Hospitals NHST,2016-10-31,Stocks Finished Goods,Balance Sheet,ITH PHARMA,20456908,121.2,932160746,200141
Department of Health,Worcestershire Acute Hospitals NHST,2016-10-31,Stocks Finished Goods,Balance Sheet,ITH PHARMA,20456909,103.2,932160746,200148
Department of Health,Worcestershire Acute Hospitals NHST,2016-10-31,Stocks Finished Goods,Balance Sheet,ITH PHARMA,20456910,271.2,932160746,200159
Department of Health,Worcestershire Acute Hospitals NHST,2016-10-31,Stocks Finished Goods,Balance Sheet,ITH PHARMA,20456911,103.2,932160746,200201
Department of Health,Worcestershire Acute Hospitals NHST,2016-10-31,Stocks Finished Goods,Balance Sheet,ITH PHARMA,20456912,62.4,932160746,200317
Department of Health,Worcestershire Acute Hospitals NHST,2016-10-31,Stocks Finished Goods,Balance Sheet,ITH PHARMA,20456913,7558.8,932160746,200459
Department of Health,Worcestershire Acute Hospitals NHST,2016-10-31,Stocks Finished Goods,Balance Sheet,ITH PHARMA,20456914,104.76,932160746,200460
Department of Health,Worcestershire Acute Hospitals NHST,2016-10-31,Stocks Finished Goods,Balance Sheet,ITH PHARMA,20456915,1997.65,932160746,200669
Department of Health,Worcestershire Acute Hospitals NHST,2016-10-31,Stocks Finished Goods,Balance Sheet,ITH PHARMA,20456916,2308.85,932160746,200670
Department of Health,Worcestershire Acute Hospitals NHST,2016-10-31,Stocks Finished Goods,Balance Sheet,ITH PHARMA,20456917,271.2,932160746,200680
Department of Health,Worcestershire Acute Hospitals NHST,2016-10-31,Stocks Finished Goods,Balance Sheet,ITH PHARMA,20456918,6508.38,932160746,200914
Department of Health,Worcestershire Acute Hospitals NHST,2016-10-31,Stocks Finished Goods,Balance Sheet,TEVA UK LTD,20456920,676.8,675217228,2310473199
Department of Health,Worcestershire Acute Hospitals NHST,2016-10-31,Stocks Finished Goods,Balance Sheet,TEVA UK LTD,20456921,676.8,675217228,2310473875
Department of Health,Worcestershire Acute Hospitals NHST,2016-10-31,Stocks Finished Goods,Balance Sheet,TEVA UK LTD,20456922,676.8,675217228,2310477737
Department of Health,Worcestershire Acute Hospitals NHST,2016-10-31,Stocks Finished Goods,Balance Sheet,PHOENIX HEALTHCARE DISTRIBUTION LTD,20456923,409.96,109898228,24045729
Department of Health,Worcestershire Acute Hospitals NHST,2016-10-31,Stocks Finished Goods,Balance Sheet,MERZ PHARMA UK LTD,20456924,862.94,843234246,282093583
Department of Health,Worcestershire Acute Hospitals NHST,2016-10-31,Stocks Finished Goods,Balance Sheet,PHOENIX HEALTHCARE DISTRIBUTION LTD,20456926,426.15,109898228,29788619
Department of Health,Worcestershire Acute Hospitals NHST,2016-10-31,Stocks Finished Goods,Balance Sheet,MAWDSLEY BROOKS & CO LTD,20456927,92.11,145099751,302614
Department of Health,Worcestershire Acute Hospitals NHST,2016-10-31,Stocks Finished Goods,Balance Sheet,PHOENIX HEALTHCARE DISTRIBUTION LTD,20456928,1648.72,109898228,30424209
Department of Health,Worcestershire Acute Hospitals NHST,2016-10-31,Stocks Finished Goods,Balance Sheet,PHOENIX HEALTHCARE DISTRIBUTION LTD,20456930,700.67,109898228,30909429
Department of Health,Worcestershire Acute Hospitals NHST,2016-10-31,Stocks Finished Goods,Balance Sheet,PHOENIX HEALTHCARE DISTRIBUTION LTD,20456931,1288.45,109898228,31101529
Department of Health,Worcestershire Acute Hospitals NHST,2016-10-31,Stocks Finished Goods,Balance Sheet,PHOENIX HEALTHCARE DISTRIBUTION LTD,20456932,135.72,109898228,31287029
Department of Health,Worcestershire Acute Hospitals NHST,2016-10-31,Stocks Finished Goods,Balance Sheet,MAWDSLEY BROOKS & CO LTD,20456933,199.26,145099751,313279
Department of Health,Worcestershire Acute Hospitals NHST,2016-10-31,Stocks Finished Goods,Balance Sheet,MAWDSLEY BROOKS & CO LTD,20456934,2951.04,145099751,313687
Department of Health,Worcestershire Acute Hospitals NHST,2016-10-31,Stocks Finished Goods,Balance Sheet,MAWDSLEY BROOKS & CO LTD,20456935,60.48,145099751,314041
Department of Health,Worcestershire Acute Hospitals NHST,2016-10-31,Stocks Finished Goods,Balance Sheet,MAWDSLEY BROOKS & CO LTD,20456936,55.08,145099751,314169
Department of Health,Worcestershire Acute Hospitals NHST,2016-10-31,Stocks Finished Goods,Balance Sheet,MAWDSLEY BROOKS & CO LTD,20456937,30.72,145099751,314329
Department of Health,Worcestershire Acute Hospitals NHST,2016-10-31,Stocks Finished Goods,Balance Sheet,MAWDSLEY BROOKS & CO LTD,20456938,32.4,145099751,314417
Department of Health,Worcestershire Acute Hospitals NHST,2016-10-31,Stocks Finished Goods,Balance Sheet,MAWDSLEY BROOKS & CO LTD,20456939,553.92,145099751,314438
Department of Health,Worcestershire Acute Hospitals NHST,2016-10-31,Stocks Finished Goods,Balance Sheet,MAWDSLEY BROOKS & CO LTD,20456940,114,145099751,314754
Department of Health,Worcestershire Acute Hospitals NHST,2016-10-31,Stocks Finished Goods,Balance Sheet,MAWDSLEY BROOKS & CO LTD,20456941,181.2,145099751,314864
Department of Health,Worcestershire Acute Hospitals NHST,2016-10-31,Stocks Finished Goods,Balance Sheet,MAWDSLEY BROOKS & CO LTD,20456942,147.72,145099751,314887
Department of Health,Worcestershire Acute Hospitals NHST,2016-10-31,Stocks Finished Goods,Balance Sheet,MAWDSLEY BROOKS & CO LTD,20456943,174.24,145099751,314932
Department of Health,Worcestershire Acute Hospitals NHST,2016-10-31,Stocks Finished Goods,Balance Sheet,MAWDSLEY BROOKS & CO LTD,20456944,69.48,145099751,314933
Department of Health,Worcestershire Acute Hospitals NHST,2016-10-31,Stocks Finished Goods,Balance Sheet,MAWDSLEY BROOKS & CO LTD,20456945,810,145099751,315016
Department of Health,Worcestershire Acute Hospitals NHST,2016-10-31,Stocks Finished Goods,Balance Sheet,MAWDSLEY BROOKS & CO LTD,20456946,558,145099751,315054
Department of Health,Worcestershire Acute Hospitals NHST,2016-10-31,Stocks Finished Goods,Balance Sheet,MAWDSLEY BROOKS & CO LTD,20456947,375.72,145099751,316406
Department of Health,Worcestershire Acute Hospitals NHST,2016-10-31,Stocks Finished Goods,Balance Sheet,MAWDSLEY BROOKS & CO LTD,20456948,47.52,145099751,316584
Department of Health,Worcestershire Acute Hospitals NHST,2016-10-31,Stocks Finished Goods,Balance Sheet,AGUETTANT LTD,20456949,660.57,832649416,31726
Department of Health,Worcestershire Acute Hospitals NHST,2016-10-31,Stocks Finished Goods,Balance Sheet,PHOENIX HEALTHCARE DISTRIBUTION LTD,20456950,265.36,109898228,31734949
Department of Health,Worcestershire Acute Hospitals NHST,2016-10-31,Stocks Finished Goods,Balance Sheet,MAWDSLEY BROOKS & CO LTD,20456951,46.32,145099751,317497
Department of Health,Worcestershire Acute Hospitals NHST,2016-10-31,Stocks Finished Goods,Balance Sheet,MAWDSLEY BROOKS & CO LTD,20456952,437.14,145099751,317655
Department of Health,Worcestershire Acute Hospitals NHST,2016-10-31,Stocks Finished Goods,Balance Sheet,MAWDSLEY BROOKS & CO LTD,20456953,1873.44,145099751,317696
Department of Health,Worcestershire Acute Hospitals NHST,2016-10-31,Stocks Finished Goods,Balance Sheet,AGUETTANT LTD,20456954,451,832649416,31793
Department of Health,Worcestershire Acute Hospitals NHST,2016-10-31,Stocks Finished Goods,Balance Sheet,MAWDSLEY BROOKS & CO LTD,20456955,38.64,145099751,318274
Department of Health,Worcestershire Acute Hospitals NHST,2016-10-31,Stocks Finished Goods,Balance Sheet,AGUETTANT LTD,20456956,451,832649416,31854
Department of Health,Worcestershire Acute Hospitals NHST,2016-10-31,Stocks Finished Goods,Balance Sheet,AGUETTANT LTD,20456957,829.44,832649416,31949
Department of Health,Worcestershire Acute Hospitals NHST,2016-10-31,Stocks Finished Goods,Balance Sheet,PHOENIX HEALTHCARE DISTRIBUTION LTD,20456958,1299.49,109898228,32018289
Department of Health,Worcestershire Acute Hospitals NHST,2016-10-31,Stocks Finished Goods,Balance Sheet,PHOENIX HEALTHCARE DISTRIBUTION LTD,20456959,300,109898228,32038669
Department of Health,Worcestershire Acute Hospitals NHST,2016-10-31,Stocks Finished Goods,Balance Sheet,PHOENIX HEALTHCARE DISTRIBUTION LTD,20456960,1301.17,109898228,32091909
Department of Health,Worcestershire Acute Hospitals NHST,2016-10-31,Stocks Finished Goods,Balance Sheet,AGUETTANT LTD,20456961,986.88,832649416,32243
Department of Health,Worcestershire Acute Hospitals NHST,2016-10-31,Stocks Finished Goods,Balance Sheet,IDIS LTD,20456962,1808.34,700513982,3231126
Department of Health,Worcestershire Acute Hospitals NHST,2016-10-31,Stocks Finished Goods,Balance Sheet,IDIS LTD,20456963,388.26,700513982,3231652
Department of Health,Worcestershire Acute Hospitals NHST,2016-10-31,Stocks Finished Goods,Balance Sheet,IDIS LTD,20456964,357.6,700513982,3232325
Department of Health,Worcestershire Acute Hospitals NHST,2016-10-31,Stocks Finished Goods,Balance Sheet,IDIS LTD,20456965,357.6,700513982,3232327
Department of Health,Worcestershire Acute Hospitals NHST,2016-10-31,Stocks Finished Goods,Balance Sheet,IDIS LTD,20456966,1609.2,700513982,3232610
Department of Health,Worcestershire Acute Hospitals NHST,2016-10-31,Stocks Finished Goods,Balance Sheet,IDIS LTD,20456967,54,700513982,3233637
Department of Health,Worcestershire Acute Hospitals NHST,2016-10-31,Stocks Finished Goods,Balance Sheet,IDIS LTD,20456968,36,700513982,3234024
Department of Health,Worcestershire Acute Hospitals NHST,2016-10-31,Stocks Finished Goods,Balance Sheet,IDIS LTD,20456969,150,700513982,3234120
Department of Health,Worcestershire Acute Hospitals NHST,2016-10-31,Stocks Finished Goods,Balance Sheet,IDIS LTD,20456970,102.65,700513982,3234634
Department of Health,Worcestershire Acute Hospitals NHST,2016-10-31,Stocks Finished Goods,Balance Sheet,PHOENIX HEALTHCARE DISTRIBUTION LTD,20456971,3795.32,109898228,32364489
Department of Health,Worcestershire Acute Hospitals NHST,2016-10-31,Stocks Finished Goods,Balance Sheet,AGUETTANT LTD,20456972,829.44,832649416,32437
Department of Health,Worcestershire Acute Hospitals NHST,2016-10-31,Stocks Finished Goods,Balance Sheet,AGUETTANT LTD,20456973,512.8,832649416,32462
Department of Health,Worcestershire Acute Hospitals NHST,2016-10-31,Stocks Finished Goods,Balance Sheet,AGUETTANT LTD,20456974,451,832649416,32463
Department of Health,Worcestershire Acute Hospitals NHST,2016-10-31,Stocks Finished Goods,Balance Sheet,PHOENIX HEALTHCARE DISTRIBUTION LTD,20456975,1985.08,109898228,32488899
Department of Health,Worcestershire Acute Hospitals NHST,2016-10-31,Stocks Finished Goods,Balance Sheet,PHOENIX HEALTHCARE DISTRIBUTION LTD,20456976,1479.33,109898228,32508999
Department of Health,Worcestershire Acute Hospitals NHST,2016-10-31,Stocks Finished Goods,Balance Sheet,PHOENIX HEALTHCARE DISTRIBUTION LTD,20456977,372.28,109898228,32667749
Department of Health,Worcestershire Acute Hospitals NHST,2016-10-31,Stocks Finished Goods,Balance Sheet,PHOENIX HEALTHCARE DISTRIBUTION LTD,20456978,370.44,109898228,32909859
Department of Health,Worcestershire Acute Hospitals NHST,2016-10-31,Stocks Finished Goods,Balance Sheet,PHOENIX HEALTHCARE DISTRIBUTION LTD,20456979,225.24,109898228,33046099
Department of Health,Worcestershire Acute Hospitals NHST,2016-10-31,Stocks Finished Goods,Balance Sheet,PHOENIX HEALTHCARE DISTRIBUTION LTD,20456980,1193.12,109898228,33535459
Department of Health,Worcestershire Acute Hospitals NHST,2016-10-31,Stocks Finished Goods,Balance Sheet,PHOENIX HEALTHCARE DISTRIBUTION LTD,20456981,1146.25,109898228,33690519
Department of Health,Worcestershire Acute Hospitals NHST,2016-10-31,Stocks Finished Goods,Balance Sheet,PHOENIX HEALTHCARE DISTRIBUTION LTD,20456983,792.3,109898228,33708649
Department of Health,Worcestershire Acute Hospitals NHST,2016-10-31,Stocks Finished Goods,Balance Sheet,PHOENIX HEALTHCARE DISTRIBUTION LTD,20456985,30.56,109898228,33871429
Department of Health,Worcestershire Acute Hospitals NHST,2016-10-31,Stocks Finished Goods,Balance Sheet,PHOENIX HEALTHCARE DISTRIBUTION LTD,20456986,241.69,109898228,33917629
Department of Health,Worcestershire Acute Hospitals NHST,2016-10-31,Stocks Finished Goods,Balance Sheet,PHOENIX HEALTHCARE DISTRIBUTION LTD,20456987,137.95,109898228,34118869
Department of Health,Worcestershire Acute Hospitals NHST,2016-10-31,Stocks Finished Goods,Balance Sheet,ROSEMONT PHARMACEUTICALS LTD,20456988,165.96,170604683,3417179
Department of Health,Worcestershire Acute Hospitals NHST,2016-10-31,Stocks Finished Goods,Balance Sheet,ROSEMONT PHARMACEUTICALS LTD,20456989,390,170604683,3419495
Department of Health,Worcestershire Acute Hospitals NHST,2016-10-31,Stocks Finished Goods,Balance Sheet,ROSEMONT PHARMACEUTICALS LTD,20456990,90.6,170604683,3419496
Department of Health,Worcestershire Acute Hospitals NHST,2016-10-31,Stocks Finished Goods,Balance Sheet,ROSEMONT PHARMACEUTICALS LTD,20456991,72.3,170604683,3420393
Department of Health,Worcestershire Acute Hospitals NHST,2016-10-31,Stocks Finished Goods,Balance Sheet,ROSEMONT PHARMACEUTICALS LTD,20456992,105,170604683,3424015
Department of Health,Worcestershire Acute Hospitals NHST,2016-10-31,Stocks Finished Goods,Balance Sheet,ROSEMONT PHARMACEUTICALS LTD,20456993,83.28,170604683,3424016
Department of Health,Worcestershire Acute Hospitals NHST,2016-10-31,Stocks Finished Goods,Balance Sheet,ROSEMONT PHARMACEUTICALS LTD,20456994,78,170604683,3424953
Department of Health,Worcestershire Acute Hospitals NHST,2016-10-31,Stocks Finished Goods,Balance Sheet,ROSEMONT PHARMACEUTICALS LTD,20456995,240,170604683,3424954
Department of Health,Worcestershire Acute Hospitals NHST,2016-10-31,Stocks Finished Goods,Balance Sheet,ROSEMONT PHARMACEUTICALS LTD,20456996,309.6,170604683,3425893
Department of Health,Worcestershire Acute Hospitals NHST,2016-10-31,Stocks Finished Goods,Balance Sheet,ROSEMONT PHARMACEUTICALS LTD,20456997,50.4,170604683,3426693
Department of Health,Worcestershire Acute Hospitals NHST,2016-10-31,Stocks Finished Goods,Balance Sheet,ROSEMONT PHARMACEUTICALS LTD,20456999,247.2,170604683,3429951
Department of Health,Worcestershire Acute Hospitals NHST,2016-10-31,Stocks Finished Goods,Balance Sheet,ROSEMONT PHARMACEUTICALS LTD,20457000,44.1,170604683,3429952
Department of Health,Worcestershire Acute Hospitals NHST,2016-10-31,Stocks Finished Goods,Balance Sheet,ROSEMONT PHARMACEUTICALS LTD,20457001,91.2,170604683,3429954
Department of Health,Worcestershire Acute Hospitals NHST,2016-10-31,Stocks Finished Goods,Balance Sheet,PHOENIX HEALTHCARE DISTRIBUTION LTD,20457004,697.11,109898228,34936199
Department of Health,Worcestershire Acute Hospitals NHST,2016-10-31,Stocks Finished Goods,Balance Sheet,PHOENIX HEALTHCARE DISTRIBUTION LTD,20457005,25.2,109898228,34958009
Department of Health,Worcestershire Acute Hospitals NHST,2016-10-31,Stocks Finished Goods,Balance Sheet,PHOENIX HEALTHCARE DISTRIBUTION LTD,20457006,1037.55,109898228,34958329
Department of Health,Worcestershire Acute Hospitals NHST,2016-10-31,Stocks Finished Goods,Balance Sheet,MAWDSLEY BROOKS & CO LTD,20457007,90.73,145099751,371693
Department of Health,Worcestershire Acute Hospitals NHST,2016-10-31,Stocks Finished Goods,Balance Sheet,PHOENIX HEALTHCARE DISTRIBUTION LTD,20457008,813.31,109898228,37183169
Department of Health,Worcestershire Acute Hospitals NHST,2016-10-31,Stocks Finished Goods,Balance Sheet,PHOENIX HEALTHCARE DISTRIBUTION LTD,20457009,49.2,109898228,37688159
Department of Health,Worcestershire Acute Hospitals NHST,2016-10-31,Stocks Finished Goods,Balance Sheet,PHOENIX HEALTHCARE DISTRIBUTION LTD,20457010,1789.2,109898228,37805229
Department of Health,Worcestershire Acute Hospitals NHST,2016-10-31,Stocks Finished Goods,Balance Sheet,PHOENIX HEALTHCARE DISTRIBUTION LTD,20457011,118.03,109898228,38094949
Department of Health,Worcestershire Acute Hospitals NHST,2016-10-31,Stocks Finished Goods,Balance Sheet,PHOENIX HEALTHCARE DISTRIBUTION LTD,20457012,591.66,109898228,38304179
Department of Health,Worcestershire Acute Hospitals NHST,2016-10-31,Stocks Finished Goods,Balance Sheet,PHOENIX HEALTHCARE DISTRIBUTION LTD,20457013,1617.08,109898228,38618269
Department of Health,Worcestershire Acute Hospitals NHST,2016-10-31,Stocks Finished Goods,Balance Sheet,BIOTEST UK LTD,20457014,5580,112031447,3950007700
Department of Health,Worcestershire Acute Hospitals NHST,2016-10-31,Stocks Finished Goods,Balance Sheet,BIOTEST UK LTD,20457015,12400,112031447,3950007750
Department of Health,Worcestershire Acute Hospitals NHST,2016-10-31,Stocks Finished Goods,Balance Sheet,MAWDSLEY BROOKS & CO LTD,20457016,630.1,145099751,424211
Department of Health,Worcestershire Acute Hospitals NHST,2016-10-31,Stocks Finished Goods,Balance Sheet,MAWDSLEY BROOKS & CO LTD,20457017,42.91,145099751,424212
Department of Health,Worcestershire Acute Hospitals NHST,2016-10-31,Stocks Finished Goods,Balance Sheet,MAWDSLEY BROOKS & CO LTD,20457020,231.56,145099751,436110
Department of Health,Worcestershire Acute Hospitals NHST,2016-10-31,Stocks Finished Goods,Balance Sheet,MAWDSLEY BROOKS & CO LTD,20457021,92.2,145099751,436112
Department of Health,Worcestershire Acute Hospitals NHST,2016-10-31,Stocks Finished Goods,Balance Sheet,MAWDSLEY BROOKS & CO LTD,20457022,194.68,145099751,436113
Department of Health,Worcestershire Acute Hospitals NHST,2016-10-31,Stocks Finished Goods,Balance Sheet,MAWDSLEY BROOKS & CO LTD,20457024,80.54,145099751,438737
Department of Health,Worcestershire Acute Hospitals NHST,2016-10-31,Stocks Finished Goods,Balance Sheet,MAWDSLEY BROOKS & CO LTD,20457026,51.12,145099751,439915
Department of Health,Worcestershire Acute Hospitals NHST,2016-10-31,Stocks Finished Goods,Balance Sheet,MAWDSLEY BROOKS & CO LTD,20457028,520.37,145099751,440219
Department of Health,Worcestershire Acute Hospitals NHST,2016-10-31,Stocks Finished Goods,Balance Sheet,MAWDSLEY BROOKS & CO LTD,20457029,194.06,145099751,440401
Department of Health,Worcestershire Acute Hospitals NHST,2016-10-31,Stocks Finished Goods,Balance Sheet,GILEAD SCIENCES LTD,20457032,3034.38,792402037,4410092857
Department of Health,Worcestershire Acute Hospitals NHST,2016-10-31,Stocks Finished Goods,Balance Sheet,GILEAD SCIENCES LTD,20457033,544.8,792402037,4410092873
Department of Health,Worcestershire Acute Hospitals NHST,2016-10-31,Stocks Finished Goods,Balance Sheet,GILEAD SCIENCES LTD,20457034,3145.82,792402037,4410092963
Department of Health,Worcestershire Acute Hospitals NHST,2016-10-31,Stocks Finished Goods,Balance Sheet,GILEAD SCIENCES LTD,20457035,13253.2,792402037,4410093022
Department of Health,Worcestershire Acute Hospitals NHST,2016-10-31,Stocks Finished Goods,Balance Sheet,GILEAD SCIENCES LTD,20457036,9862.44,792402037,4410093051
Department of Health,Worcestershire Acute Hospitals NHST,2016-10-31,Stocks Finished Goods,Balance Sheet,GILEAD SCIENCES LTD,20457037,39759.59,792402037,4410093271
Department of Health,Worcestershire Acute Hospitals NHST,2016-10-31,Stocks Finished Goods,Balance Sheet,GILEAD SCIENCES LTD,20457038,3145.82,792402037,4410093366
Department of Health,Worcestershire Acute Hospitals NHST,2016-10-31,Stocks Finished Goods,Balance Sheet,GILEAD SCIENCES LTD,20457039,9862.44,792402037,4410093450
Department of Health,Worcestershire Acute Hospitals NHST,2016-10-31,Stocks Finished Goods,Balance Sheet,GILEAD SCIENCES LTD,20457040,1634.4,792402037,4410093900
Department of Health,Worcestershire Acute Hospitals NHST,2016-10-31,Stocks Finished Goods,Balance Sheet,GILEAD SCIENCES LTD,20457041,13856.34,792402037,4410094018
Department of Health,Worcestershire Acute Hospitals NHST,2016-10-31,Stocks Finished Goods,Balance Sheet,GILEAD SCIENCES LTD,20457042,9862.44,792402037,4410094106
Department of Health,Worcestershire Acute Hospitals NHST,2016-10-31,Stocks Finished Goods,Balance Sheet,GILEAD SCIENCES LTD,20457043,28044.11,792402037,4410094253
Department of Health,Worcestershire Acute Hospitals NHST,2016-10-31,Stocks Finished Goods,Balance Sheet,GILEAD SCIENCES LTD,20457044,23788.39,792402037,4410094456
Department of Health,Worcestershire Acute Hospitals NHST,2016-10-31,Stocks Finished Goods,Balance Sheet,MAWDSLEY BROOKS & CO LTD,20457045,115.2,145099751,441988
Department of Health,Worcestershire Acute Hospitals NHST,2016-10-31,Stocks Finished Goods,Balance Sheet,MAWDSLEY BROOKS & CO LTD,20457047,258.24,145099751,443612
Department of Health,Worcestershire Acute Hospitals NHST,2016-10-31,Stocks Finished Goods,Balance Sheet,MAWDSLEY BROOKS & CO LTD,20457048,579.85,145099751,443945
Department of Health,Worcestershire Acute Hospitals NHST,2016-10-31,Stocks Finished Goods,Balance Sheet,MAWDSLEY BROOKS & CO LTD,20457049,50.82,145099751,444943
Department of Health,Worcestershire Acute Hospitals NHST,2016-10-31,Stocks Finished Goods,Balance Sheet,MAWDSLEY BROOKS & CO LTD,20457051,405.65,145099751,446007
Department of Health,Worcestershire Acute Hospitals NHST,2016-10-31,Stocks Finished Goods,Balance Sheet,MAWDSLEY BROOKS & CO LTD,20457053,123.38,145099751,448700
Department of Health,Worcestershire Acute Hospitals NHST,2016-10-31,Stocks Finished Goods,Balance Sheet,MAWDSLEY BROOKS & CO LTD,20457054,394.05,145099751,450862
Department of Health,Worcestershire Acute Hospitals NHST,2016-10-31,Stocks Finished Goods,Balance Sheet,MAWDSLEY BROOKS & CO LTD,20457055,51.12,145099751,450863
Department of Health,Worcestershire Acute Hospitals NHST,2016-10-31,Stocks Finished Goods,Balance Sheet,MAWDSLEY BROOKS & CO LTD,20457056,42.91,145099751,450864
Department of Health,Worcestershire Acute Hospitals NHST,2016-10-31,Stocks Finished Goods,Balance Sheet,MAWDSLEY BROOKS & CO LTD,20457058,423.32,145099751,450874
Department of Health,Worcestershire Acute Hospitals NHST,2016-10-31,Stocks Finished Goods,Balance Sheet,MAWDSLEY BROOKS & CO LTD,20457059,285.12,145099751,451416
Department of Health,Worcestershire Acute Hospitals NHST,2016-10-31,Stocks Finished Goods,Balance Sheet,MAWDSLEY BROOKS & CO LTD,20457060,570.71,145099751,451794
Department of Health,Worcestershire Acute Hospitals NHST,2016-10-31,Stocks Finished Goods,Balance Sheet,MAWDSLEY BROOKS & CO LTD,20457061,743.92,145099751,452878
Department of Health,Worcestershire Acute Hospitals NHST,2016-10-31,Stocks Finished Goods,Balance Sheet,DIAGENICS LTD,20457062,59.4,623747140,45298
Department of Health,Worcestershire Acute Hospitals NHST,2016-10-31,Stocks Finished Goods,Balance Sheet,MAWDSLEY BROOKS & CO LTD,20457063,36.3,145099751,452995
Department of Health,Worcestershire Acute Hospitals NHST,2016-10-31,Stocks Finished Goods,Balance Sheet,MAWDSLEY BROOKS & CO LTD,20457064,80.26,145099751,452996
Department of Health,Worcestershire Acute Hospitals NHST,2016-10-31,Stocks Finished Goods,Balance Sheet,MAWDSLEY BROOKS & CO LTD,20457066,237.6,145099751,453442
Department of Health,Worcestershire Acute Hospitals NHST,2016-10-31,Stocks Finished Goods,Balance Sheet,MAWDSLEY BROOKS & CO LTD,20457067,903.83,145099751,453443
Department of Health,Worcestershire Acute Hospitals NHST,2016-10-31,Stocks Finished Goods,Balance Sheet,MAWDSLEY BROOKS & CO LTD,20457071,145.2,145099751,454440
Department of Health,Worcestershire Acute Hospitals NHST,2016-10-31,Stocks Finished Goods,Balance Sheet,MAWDSLEY BROOKS & CO LTD,20457074,128.32,145099751,455238
Department of Health,Worcestershire Acute Hospitals NHST,2016-10-31,Stocks Finished Goods,Balance Sheet,MAWDSLEY BROOKS & CO LTD,20457077,332.28,145099751,455243
Department of Health,Worcestershire Acute Hospitals NHST,2016-10-31,Stocks Finished Goods,Balance Sheet,MAWDSLEY BROOKS & CO LTD,20457078,35.76,145099751,455244
Department of Health,Worcestershire Acute Hospitals NHST,2016-10-31,Stocks Finished Goods,Balance Sheet,MAWDSLEY BROOKS & CO LTD,20457079,129.22,145099751,455773
Department of Health,Worcestershire Acute Hospitals NHST,2016-10-31,Stocks Finished Goods,Balance Sheet,MAWDSLEY BROOKS & CO LTD,20457080,244.41,145099751,455774
Department of Health,Worcestershire Acute Hospitals NHST,2016-10-31,Stocks Finished Goods,Balance Sheet,MAWDSLEY BROOKS & CO LTD,20457081,298.94,145099751,455775
Department of Health,Worcestershire Acute Hospitals NHST,2016-10-31,Stocks Finished Goods,Balance Sheet,MAWDSLEY BROOKS & CO LTD,20457082,28.51,145099751,455776
Department of Health,Worcestershire Acute Hospitals NHST,2016-10-31,Stocks Finished Goods,Balance Sheet,MAWDSLEY BROOKS & CO LTD,20457083,87.79,145099751,455805
Department of Health,Worcestershire Acute Hospitals NHST,2016-10-31,Stocks Finished Goods,Balance Sheet,MAWDSLEY BROOKS & CO LTD,20457084,50.4,145099751,456243
Department of Health,Worcestershire Acute Hospitals NHST,2016-10-31,Stocks Finished Goods,Balance Sheet,MAWDSLEY BROOKS & CO LTD,20457085,178.49,145099751,456246
Department of Health,Worcestershire Acute Hospitals NHST,2016-10-31,Stocks Finished Goods,Balance Sheet,MAWDSLEY BROOKS & CO LTD,20457086,64.52,145099751,456248
Department of Health,Worcestershire Acute Hospitals NHST,2016-10-31,Stocks Finished Goods,Balance Sheet,MAWDSLEY BROOKS & CO LTD,20457087,149.47,145099751,456249
Department of Health,Worcestershire Acute Hospitals NHST,2016-10-31,Stocks Finished Goods,Balance Sheet,MAWDSLEY BROOKS & CO LTD,20457088,33.48,145099751,456250
Department of Health,Worcestershire Acute Hospitals NHST,2016-10-31,Stocks Finished Goods,Balance Sheet,MAWDSLEY BROOKS & CO LTD,20457090,26.28,145099751,456254
Department of Health,Worcestershire Acute Hospitals NHST,2016-10-31,Stocks Finished Goods,Balance Sheet,BOEHRINGER INGELHEIM LTD,20457091,518.4,200356126,5010265956
Department of Health,Worcestershire Acute Hospitals NHST,2016-10-31,Stocks Finished Goods,Balance Sheet,BOEHRINGER INGELHEIM LTD,20457092,2053.68,200356126,5010266391
Department of Health,Worcestershire Acute Hospitals NHST,2016-10-31,Stocks Finished Goods,Balance Sheet,BOEHRINGER INGELHEIM LTD,20457093,518.4,200356126,5010266464
Department of Health,Worcestershire Acute Hospitals NHST,2016-10-31,Stocks Finished Goods,Balance Sheet,BOEHRINGER INGELHEIM LTD,20457094,1900.8,200356126,5010266606
Department of Health,Worcestershire Acute Hospitals NHST,2016-10-31,Stocks Finished Goods,Balance Sheet,BOEHRINGER INGELHEIM LTD,20457095,777.6,200356126,5010266885
Department of Health,Worcestershire Acute Hospitals NHST,2016-10-31,Stocks Finished Goods,Balance Sheet,BOEHRINGER INGELHEIM LTD,20457096,1020,200356126,5010266988
Department of Health,Worcestershire Acute Hospitals NHST,2016-10-31,Stocks Finished Goods,Balance Sheet,BOEHRINGER INGELHEIM LTD,20457097,1189.68,200356126,5010267199
Department of Health,Worcestershire Acute Hospitals NHST,2016-10-31,Stocks Finished Goods,Balance Sheet,BOEHRINGER INGELHEIM LTD,20457098,1189.68,200356126,5010267200
Department of Health,Worcestershire Acute Hospitals NHST,2016-10-31,Stocks Finished Goods,Balance Sheet,BOEHRINGER INGELHEIM LTD,20457099,1189.68,200356126,5010267695
Department of Health,Worcestershire Acute Hospitals NHST,2016-10-31,Stocks Finished Goods,Balance Sheet,MOVIANTO UK LTD,20457100,126.38,546573322,5258139
Department of Health,Worcestershire Acute Hospitals NHST,2016-10-31,Stocks Finished Goods,Balance Sheet,HAMELN PHARMACEUTICALS LTD,20457101,480.48,135694057,5290129
Department of Health,Worcestershire Acute Hospitals NHST,2016-10-31,Stocks Finished Goods,Balance Sheet,HAMELN PHARMACEUTICALS LTD,20457102,321.72,135694057,5290576
Department of Health,Worcestershire Acute Hospitals NHST,2016-10-31,Stocks Finished Goods,Balance Sheet,HAMELN PHARMACEUTICALS LTD,20457103,336,135694057,5291816
Department of Health,Worcestershire Acute Hospitals NHST,2016-10-31,Stocks Finished Goods,Balance Sheet,HAMELN PHARMACEUTICALS LTD,20457104,817.5,135694057,5291899
Department of Health,Worcestershire Acute Hospitals NHST,2016-10-31,Stocks Finished Goods,Balance Sheet,HAMELN PHARMACEUTICALS LTD,20457105,154.2,135694057,5292261
Department of Health,Worcestershire Acute Hospitals NHST,2016-10-31,Stocks Finished Goods,Balance Sheet,DLT PODIATRY,20457106,509.7,721220101,53362
Department of Health,Worcestershire Acute Hospitals NHST,2016-10-31,Stocks Finished Goods,Balance Sheet,BAXALTA UK LTD,20457107,862.5,,56005838
Department of Health,Worcestershire Acute Hospitals NHST,2016-10-31,Stocks Finished Goods,Balance Sheet,MAWDSLEY BROOKS & CO LTD,20457108,-88,145099751,578644
Department of Health,Worcestershire Acute Hospitals NHST,2016-10-31,Stocks Finished Goods,Balance Sheet,GRIFOLS UK LTD,20457109,1020,849740388,5816004551
Department of Health,Worcestershire Acute Hospitals NHST,2016-10-31,Stocks Finished Goods,Balance Sheet,HOSPIRA UK LTD,20457110,49.44,418672435,602487634
Department of Health,Worcestershire Acute Hospitals NHST,2016-10-31,Stocks Finished Goods,Balance Sheet,HOSPIRA UK LTD,20457111,116.16,418672435,602488061
Department of Health,Worcestershire Acute Hospitals NHST,2016-10-31,Stocks Finished Goods,Balance Sheet,HOSPIRA UK LTD,20457112,138.24,418672435,602488509
Department of Health,Worcestershire Acute Hospitals NHST,2016-10-31,Stocks Finished Goods,Balance Sheet,HOSPIRA UK LTD,20457113,54,418672435,602488510
Department of Health,Worcestershire Acute Hospitals NHST,2016-10-31,Stocks Finished Goods,Balance Sheet,HOSPIRA UK LTD,20457114,709.2,418672435,602488747
Department of Health,Worcestershire Acute Hospitals NHST,2016-10-31,Stocks Finished Goods,Balance Sheet,HOSPIRA UK LTD,20457115,35.52,418672435,602488877
Department of Health,Worcestershire Acute Hospitals NHST,2016-10-31,Stocks Finished Goods,Balance Sheet,HOSPIRA UK LTD,20457117,36,418672435,602490613
Department of Health,Worcestershire Acute Hospitals NHST,2016-10-31,Stocks Finished Goods,Balance Sheet,HOSPIRA UK LTD,20457118,1660.8,418672435,602490614
Department of Health,Worcestershire Acute Hospitals NHST,2016-10-31,Stocks Finished Goods,Balance Sheet,HOSPIRA UK LTD,20457119,158.4,418672435,602490615
Department of Health,Worcestershire Acute Hospitals NHST,2016-10-31,Stocks Finished Goods,Balance Sheet,HOSPIRA UK LTD,20457120,127.2,418672435,602490616
Department of Health,Worcestershire Acute Hospitals NHST,2016-10-31,Stocks Finished Goods,Balance Sheet,HOSPIRA UK LTD,20457122,190.8,418672435,602490930
Department of Health,Worcestershire Acute Hospitals NHST,2016-10-31,Stocks Finished Goods,Balance Sheet,HOSPIRA UK LTD,20457123,445.2,418672435,602490931
Department of Health,Worcestershire Acute Hospitals NHST,2016-10-31,Stocks Finished Goods,Balance Sheet,HOSPIRA UK LTD,20457124,95.4,418672435,602491370
Department of Health,Worcestershire Acute Hospitals NHST,2016-10-31,Stocks Finished Goods,Balance Sheet,HOSPIRA UK LTD,20457125,632.4,418672435,602491371
Department of Health,Worcestershire Acute Hospitals NHST,2016-10-31,Stocks Finished Goods,Balance Sheet,HOSPIRA UK LTD,20457126,92.93,418672435,602491372
Department of Health,Worcestershire Acute Hospitals NHST,2016-10-31,Stocks Finished Goods,Balance Sheet,ROCHE DIAGNOSTICS LTD,20457127,566.4,684424418,6570655537
Department of Health,Worcestershire Acute Hospitals NHST,2016-10-31,Stocks Finished Goods,Balance Sheet,ROCHE DIAGNOSTICS LTD,20457128,283.2,684424418,6570655596
Department of Health,Worcestershire Acute Hospitals NHST,2016-10-31,Stocks Finished Goods,Balance Sheet,ABBVIE LTD,20457129,1352.74,,671043105
Department of Health,Worcestershire Acute Hospitals NHST,2016-10-31,Stocks Finished Goods,Balance Sheet,ABBVIE LTD,20457130,279.94,,671043155
Department of Health,Worcestershire Acute Hospitals NHST,2016-10-31,Stocks Finished Goods,Balance Sheet,ABBVIE LTD,20457131,10439.76,,671043196
Department of Health,Worcestershire Acute Hospitals NHST,2016-10-31,Stocks Finished Goods,Balance Sheet,ABBVIE LTD,20457132,1690.27,,671043344
Department of Health,Worcestershire Acute Hospitals NHST,2016-10-31,Stocks Finished Goods,Balance Sheet,ABBVIE LTD,20457133,174.46,,671043465
Department of Health,Worcestershire Acute Hospitals NHST,2016-10-31,Stocks Finished Goods,Balance Sheet,ABBVIE LTD,20457134,279.94,,671043899
Department of Health,Worcestershire Acute Hospitals NHST,2016-10-31,Stocks Finished Goods,Balance Sheet,ABBVIE LTD,20457135,279.94,,671044253
Department of Health,Worcestershire Acute Hospitals NHST,2016-10-31,Stocks Finished Goods,Balance Sheet,ALLERGY THERAPEUTICS LTD,20457136,259.18,723379134,675640
Department of Health,Worcestershire Acute Hospitals NHST,2016-10-31,Stocks Finished Goods,Balance Sheet,GUERBET LABORATORIES LTD,20457137,1224,653183145,692006697
Department of Health,Worcestershire Acute Hospitals NHST,2016-10-31,Stocks Finished Goods,Balance Sheet,ALLERGAN LTD,20457138,1439.4,727325534,7060443853
Department of Health,Worcestershire Acute Hospitals NHST,2016-10-31,Stocks Finished Goods,Balance Sheet,ALLERGAN LTD,20457139,287.86,727325534,7060444218
Department of Health,Worcestershire Acute Hospitals NHST,2016-10-31,Stocks Finished Goods,Balance Sheet,ABBOTT LABORATORIES LTD,20457140,1021.97,430867056,751134218
Department of Health,Worcestershire Acute Hospitals NHST,2016-10-31,Stocks Finished Goods,Balance Sheet,ABBOTT LABORATORIES LTD,20457141,238.44,430867056,751134478
Department of Health,Worcestershire Acute Hospitals NHST,2016-10-31,Stocks Finished Goods,Balance Sheet,ABBOTT LABORATORIES LTD,20457142,519.98,430867056,751135369
Department of Health,Worcestershire Acute Hospitals NHST,2016-10-31,Stocks Finished Goods,Balance Sheet,ABBOTT LABORATORIES LTD,20457143,4426.8,430867056,751135781
Department of Health,Worcestershire Acute Hospitals NHST,2016-10-31,Stocks Finished Goods,Balance Sheet,ABBOTT LABORATORIES LTD,20457144,150.26,430867056,751137427
Department of Health,Worcestershire Acute Hospitals NHST,2016-10-31,Stocks Finished Goods,Balance Sheet,ELI LILLY & CO LTD,20457145,1920,232703787,8011603418
Department of Health,Worcestershire Acute Hospitals NHST,2016-10-31,Stocks Finished Goods,Balance Sheet,ELI LILLY & CO LTD,20457146,3840,232703787,8011605191
Department of Health,Worcestershire Acute Hospitals NHST,2016-10-31,Stocks Finished Goods,Balance Sheet,AAH PHARMACEUTICALS LTD,20457147,165.58,546573322,80208656L
Department of Health,Worcestershire Acute Hospitals NHST,2016-10-31,Stocks Finished Goods,Balance Sheet,AAH PHARMACEUTICALS LTD,20457148,142.37,546573322,80703277C
Department of Health,Worcestershire Acute Hospitals NHST,2016-10-31,Stocks Finished Goods,Balance Sheet,AAH PHARMACEUTICALS LTD,20457149,648.22,546573322,80714576A
Department of Health,Worcestershire Acute Hospitals NHST,2016-10-31,Stocks Finished Goods,Balance Sheet,AAH PHARMACEUTICALS LTD,20457150,333.6,546573322,80780291P
Department of Health,Worcestershire Acute Hospitals NHST,2016-10-31,Stocks Finished Goods,Balance Sheet,AAH PHARMACEUTICALS LTD,20457151,47.47,546573322,80806881C
Department of Health,Worcestershire Acute Hospitals NHST,2016-10-31,Stocks Finished Goods,Balance Sheet,AAH PHARMACEUTICALS LTD,20457153,190.09,546573322,80814279N
Department of Health,Worcestershire Acute Hospitals NHST,2016-10-31,Stocks Finished Goods,Balance Sheet,AAH PHARMACEUTICALS LTD,20457154,220.52,546573322,80814280B
Department of Health,Worcestershire Acute Hospitals NHST,2016-10-31,Stocks Finished Goods,Balance Sheet,AAH PHARMACEUTICALS LTD,20457156,149.53,546573322,80819280V
Department of Health,Worcestershire Acute Hospitals NHST,2016-10-31,Stocks Finished Goods,Balance Sheet,AAH PHARMACEUTICALS LTD,20457157,99.17,546573322,80823560N
Department of Health,Worcestershire Acute Hospitals NHST,2016-10-31,Stocks Finished Goods,Balance Sheet,AAH PHARMACEUTICALS LTD,20457161,159,546573322,80873785R
Department of Health,Worcestershire Acute Hospitals NHST,2016-10-31,Stocks Finished Goods,Balance Sheet,AAH PHARMACEUTICALS LTD,20457164,162.56,546573322,80899688R
Department of Health,Worcestershire Acute Hospitals NHST,2016-10-31,Stocks Finished Goods,Balance Sheet,AAH PHARMACEUTICALS LTD,20457165,204.98,546573322,80916491D
Department of Health,Worcestershire Acute Hospitals NHST,2016-10-31,Stocks Finished Goods,Balance Sheet,AAH PHARMACEUTICALS LTD,20457166,38.64,546573322,80940486R
Department of Health,Worcestershire Acute Hospitals NHST,2016-10-31,Stocks Finished Goods,Balance Sheet,AAH PHARMACEUTICALS LTD,20457167,525.17,546573322,80940755M
Department of Health,Worcestershire Acute Hospitals NHST,2016-10-31,Stocks Finished Goods,Balance Sheet,AAH PHARMACEUTICALS LTD,20457169,1168.85,546573322,80956477A
Department of Health,Worcestershire Acute Hospitals NHST,2016-10-31,Stocks Finished Goods,Balance Sheet,AAH PHARMACEUTICALS LTD,20457170,4260,546573322,80991891U
Department of Health,Worcestershire Acute Hospitals NHST,2016-10-31,Stocks Finished Goods,Balance Sheet,AAH PHARMACEUTICALS LTD,20457171,212.14,546573322,81000427T
Department of Health,Worcestershire Acute Hospitals NHST,2016-10-31,Stocks Finished Goods,Balance Sheet,AAH PHARMACEUTICALS LTD,20457172,391.6,546573322,81009600S
Department of Health,Worcestershire Acute Hospitals NHST,2016-10-31,Stocks Finished Goods,Balance Sheet,AAH PHARMACEUTICALS LTD,20457173,184.93,546573322,81011640Q
Department of Health,Worcestershire Acute Hospitals NHST,2016-10-31,Stocks Finished Goods,Balance Sheet,AAH PHARMACEUTICALS LTD,20457175,55.97,546573322,81013986T
Department of Health,Worcestershire Acute Hospitals NHST,2016-10-31,Stocks Finished Goods,Balance Sheet,AAH PHARMACEUTICALS LTD,20457176,213.62,546573322,81040497V
Department of Health,Worcestershire Acute Hospitals NHST,2016-10-31,Stocks Finished Goods,Balance Sheet,AAH PHARMACEUTICALS LTD,20457177,309.17,546573322,81053812Y
Department of Health,Worcestershire Acute Hospitals NHST,2016-10-31,Stocks Finished Goods,Balance Sheet,AAH PHARMACEUTICALS LTD,20457178,32.83,546573322,81059997M
Department of Health,Worcestershire Acute Hospitals NHST,2016-10-31,Stocks Finished Goods,Balance Sheet,AAH PHARMACEUTICALS LTD,20457179,4260,546573322,81076622P
Department of Health,Worcestershire Acute Hospitals NHST,2016-10-31,Stocks Finished Goods,Balance Sheet,AAH PHARMACEUTICALS LTD,20457180,183.77,546573322,81077293Y
Department of Health,Worcestershire Acute Hospitals NHST,2016-10-31,Stocks Finished Goods,Balance Sheet,AAH PHARMACEUTICALS LTD,20457181,256.21,546573322,81077294G
Department of Health,Worcestershire Acute Hospitals NHST,2016-10-31,Stocks Finished Goods,Balance Sheet,AAH PHARMACEUTICALS LTD,20457182,124.29,546573322,81077297F
Department of Health,Worcestershire Acute Hospitals NHST,2016-10-31,Stocks Finished Goods,Balance Sheet,AAH PHARMACEUTICALS LTD,20457183,75.09,546573322,81081789E
Department of Health,Worcestershire Acute Hospitals NHST,2016-10-31,Stocks Finished Goods,Balance Sheet,AAH PHARMACEUTICALS LTD,20457184,379.06,546573322,81087010D
Department of Health,Worcestershire Acute Hospitals NHST,2016-10-31,Stocks Finished Goods,Balance Sheet,AAH PHARMACEUTICALS LTD,20457185,149.53,546573322,81101267T
Department of Health,Worcestershire Acute Hospitals NHST,2016-10-31,Stocks Finished Goods,Balance Sheet,AAH PHARMACEUTICALS LTD,20457187,3251.06,546573322,81124614S
Department of Health,Worcestershire Acute Hospitals NHST,2016-10-31,Stocks Finished Goods,Balance Sheet,AAH PHARMACEUTICALS LTD,20457189,104.69,546573322,81170531N
Department of Health,Worcestershire Acute Hospitals NHST,2016-10-31,Stocks Finished Goods,Balance Sheet,AAH PHARMACEUTICALS LTD,20457190,54,546573322,81180274X
Department of Health,Worcestershire Acute Hospitals NHST,2016-10-31,Stocks Finished Goods,Balance Sheet,AAH PHARMACEUTICALS LTD,20457191,2685.74,546573322,81180275A
Department of Health,Worcestershire Acute Hospitals NHST,2016-10-31,Stocks Finished Goods,Balance Sheet,AAH PHARMACEUTICALS LTD,20457192,234.3,546573322,81180276P
Department of Health,Worcestershire Acute Hospitals NHST,2016-10-31,Stocks Finished Goods,Balance Sheet,AAH PHARMACEUTICALS LTD,20457195,1587.6,546573322,81218176V
Department of Health,Worcestershire Acute Hospitals NHST,2016-10-31,Stocks Finished Goods,Balance Sheet,AAH PHARMACEUTICALS LTD,20457196,29.61,546573322,81218886B
Department of Health,Worcestershire Acute Hospitals NHST,2016-10-31,Stocks Finished Goods,Balance Sheet,AAH PHARMACEUTICALS LTD,20457197,597.6,546573322,81226734R
Department of Health,Worcestershire Acute Hospitals NHST,2016-10-31,Stocks Finished Goods,Balance Sheet,AAH PHARMACEUTICALS LTD,20457198,145.02,546573322,81228497P
Department of Health,Worcestershire Acute Hospitals NHST,2016-10-31,Stocks Finished Goods,Balance Sheet,AAH PHARMACEUTICALS LTD,20457199,1907.85,546573322,81228499W
Department of Health,Worcestershire Acute Hospitals NHST,2016-10-31,Stocks Finished Goods,Balance Sheet,AAH PHARMACEUTICALS LTD,20457200,535.79,546573322,81228670B
Department of Health,Worcestershire Acute Hospitals NHST,2016-10-31,Stocks Finished Goods,Balance Sheet,AAH PHARMACEUTICALS LTD,20457201,72,546573322,81237932E
Department of Health,Worcestershire Acute Hospitals NHST,2016-10-31,Stocks Finished Goods,Balance Sheet,AAH PHARMACEUTICALS LTD,20457202,492.87,546573322,81241895G
Department of Health,Worcestershire Acute Hospitals NHST,2016-10-31,Stocks Finished Goods,Balance Sheet,AAH PHARMACEUTICALS LTD,20457203,1800,546573322,81241898F
Department of Health,Worcestershire Acute Hospitals NHST,2016-10-31,Stocks Finished Goods,Balance Sheet,AAH PHARMACEUTICALS LTD,20457204,211.44,546573322,81261730V
Department of Health,Worcestershire Acute Hospitals NHST,2016-10-31,Stocks Finished Goods,Balance Sheet,AAH PHARMACEUTICALS LTD,20457205,1699.8,546573322,81268421W
Department of Health,Worcestershire Acute Hospitals NHST,2016-10-31,Stocks Finished Goods,Balance Sheet,AAH PHARMACEUTICALS LTD,20457206,3519.89,546573322,81313054H
Department of Health,Worcestershire Acute Hospitals NHST,2016-10-31,Stocks Finished Goods,Balance Sheet,AAH PHARMACEUTICALS LTD,20457207,279.13,546573322,81313055W
Department of Health,Worcestershire Acute Hospitals NHST,2016-10-31,Stocks Finished Goods,Balance Sheet,AAH PHARMACEUTICALS LTD,20457209,270.73,546573322,81323451N
Department of Health,Worcestershire Acute Hospitals NHST,2016-10-31,Stocks Finished Goods,Balance Sheet,AAH PHARMACEUTICALS LTD,20457210,160.56,546573322,81326318K
Department of Health,Worcestershire Acute Hospitals NHST,2016-10-31,Stocks Finished Goods,Balance Sheet,AAH PHARMACEUTICALS LTD,20457211,219.6,546573322,81348420N
Department of Health,Worcestershire Acute Hospitals NHST,2016-10-31,Stocks Finished Goods,Balance Sheet,AAH PHARMACEUTICALS LTD,20457212,120.42,546573322,81350231K
Department of Health,Worcestershire Acute Hospitals NHST,2016-10-31,Stocks Finished Goods,Balance Sheet,AAH PHARMACEUTICALS LTD,20457214,484.56,546573322,81362614G
Department of Health,Worcestershire Acute Hospitals NHST,2016-10-31,Stocks Finished Goods,Balance Sheet,AAH PHARMACEUTICALS LTD,20457215,967.82,546573322,81368858W
Department of Health,Worcestershire Acute Hospitals NHST,2016-10-31,Stocks Finished Goods,Balance Sheet,AAH PHARMACEUTICALS LTD,20457217,566.4,546573322,81491875H
Department of Health,Worcestershire Acute Hospitals NHST,2016-10-31,Stocks Finished Goods,Balance Sheet,AAH PHARMACEUTICALS LTD,20457220,39.48,546573322,81492367H
Department of Health,Worcestershire Acute Hospitals NHST,2016-10-31,Stocks Finished Goods,Balance Sheet,AAH PHARMACEUTICALS LTD,20457221,180,546573322,81506606Y
Department of Health,Worcestershire Acute Hospitals NHST,2016-10-31,Stocks Finished Goods,Balance Sheet,AAH PHARMACEUTICALS LTD,20457222,1124.4,546573322,81534868B
Department of Health,Worcestershire Acute Hospitals NHST,2016-10-31,Stocks Finished Goods,Balance Sheet,AAH PHARMACEUTICALS LTD,20457223,30.96,546573322,81534871T
Department of Health,Worcestershire Acute Hospitals NHST,2016-10-31,Stocks Finished Goods,Balance Sheet,AAH PHARMACEUTICALS LTD,20457224,766.49,546573322,81538204C
Department of Health,Worcestershire Acute Hospitals NHST,2016-10-31,Stocks Finished Goods,Balance Sheet,AAH PHARMACEUTICALS LTD,20457227,77.4,546573322,81549818C
Department of Health,Worcestershire Acute Hospitals NHST,2016-10-31,Stocks Finished Goods,Balance Sheet,AAH PHARMACEUTICALS LTD,20457229,273.74,546573322,81550827D
Department of Health,Worcestershire Acute Hospitals NHST,2016-10-31,Stocks Finished Goods,Balance Sheet,AAH PHARMACEUTICALS LTD,20457230,225.72,546573322,81550904H
Department of Health,Worcestershire Acute Hospitals NHST,2016-10-31,Stocks Finished Goods,Balance Sheet,AAH PHARMACEUTICALS LTD,20457231,68.86,546573322,81551345N
Department of Health,Worcestershire Acute Hospitals NHST,2016-10-31,Stocks Finished Goods,Balance Sheet,AAH PHARMACEUTICALS LTD,20457232,97.62,546573322,81551346F
Department of Health,Worcestershire Acute Hospitals NHST,2016-10-31,Stocks Finished Goods,Balance Sheet,AAH PHARMACEUTICALS LTD,20457233,30.96,546573322,81574541W
Department of Health,Worcestershire Acute Hospitals NHST,2016-10-31,Stocks Finished Goods,Balance Sheet,AAH PHARMACEUTICALS LTD,20457235,249.41,546573322,81575047V
Department of Health,Worcestershire Acute Hospitals NHST,2016-10-31,Stocks Finished Goods,Balance Sheet,AAH PHARMACEUTICALS LTD,20457236,72,546573322,81578291V
Department of Health,Worcestershire Acute Hospitals NHST,2016-10-31,Stocks Finished Goods,Balance Sheet,AAH PHARMACEUTICALS LTD,20457237,115.2,546573322,81578415J
Department of Health,Worcestershire Acute Hospitals NHST,2016-10-31,Stocks Finished Goods,Balance Sheet,AAH PHARMACEUTICALS LTD,20457239,384,546573322,81590891H
Department of Health,Worcestershire Acute Hospitals NHST,2016-10-31,Stocks Finished Goods,Balance Sheet,AAH PHARMACEUTICALS LTD,20457240,229.92,546573322,81595761H
Department of Health,Worcestershire Acute Hospitals NHST,2016-10-31,Stocks Finished Goods,Balance Sheet,AAH PHARMACEUTICALS LTD,20457241,65.76,546573322,81595763Y
Department of Health,Worcestershire Acute Hospitals NHST,2016-10-31,Stocks Finished Goods,Balance Sheet,AAH PHARMACEUTICALS LTD,20457242,300.96,546573322,81595764G
Department of Health,Worcestershire Acute Hospitals NHST,2016-10-31,Stocks Finished Goods,Balance Sheet,AAH PHARMACEUTICALS LTD,20457243,60.48,546573322,81595953V
Department of Health,Worcestershire Acute Hospitals NHST,2016-10-31,Stocks Finished Goods,Balance Sheet,AAH PHARMACEUTICALS LTD,20457244,47.88,546573322,81598850P
Department of Health,Worcestershire Acute Hospitals NHST,2016-10-31,Stocks Finished Goods,Balance Sheet,AAH PHARMACEUTICALS LTD,20457245,1654.52,546573322,81613681Y
Department of Health,Worcestershire Acute Hospitals NHST,2016-10-31,Stocks Finished Goods,Balance Sheet,AAH PHARMACEUTICALS LTD,20457247,48.96,546573322,81631639N
Department of Health,Worcestershire Acute Hospitals NHST,2016-10-31,Stocks Finished Goods,Balance Sheet,BERENDSEN CLEANROOM SERVICES LTD,20457249,94.84,GB107232747,86353
Department of Health,Worcestershire Acute Hospitals NHST,2016-10-31,Stocks Finished Goods,Balance Sheet,BERENDSEN CLEANROOM SERVICES LTD,20457250,102.82,GB107232747,86509
Department of Health,Worcestershire Acute Hospitals NHST,2016-10-31,Stocks Finished Goods,Balance Sheet,BERENDSEN CLEANROOM SERVICES LTD,20457251,386.09,GB107232747,86510
Department of Health,Worcestershire Acute Hospitals NHST,2016-10-31,Stocks Finished Goods,Balance Sheet,PHOENIX HEALTHCARE DISTRIBUTION LTD,20457252,-54.96,109898228,8870719
Department of Health,Worcestershire Acute Hospitals NHST,2016-10-31,Stocks Finished Goods,Balance Sheet,CELGENE LTD,20457253,9072,896107201,8940098971
Department of Health,Worcestershire Acute Hospitals NHST,2016-10-31,Stocks Finished Goods,Balance Sheet,CELGENE LTD,20457254,16092,896107201,8940098982
Department of Health,Worcestershire Acute Hospitals NHST,2016-10-31,Stocks Finished Goods,Balance Sheet,CELGENE LTD,20457255,5241.6,896107201,8940099368
Department of Health,Worcestershire Acute Hospitals NHST,2016-10-31,Stocks Finished Goods,Balance Sheet,CELGENE LTD,20457256,10483.2,896107201,8940099526
Department of Health,Worcestershire Acute Hospitals NHST,2016-10-31,Stocks Finished Goods,Balance Sheet,CELGENE LTD,20457257,9072,896107201,8940099740
Department of Health,Worcestershire Acute Hospitals NHST,2016-10-31,Stocks Finished Goods,Balance Sheet,CELGENE LTD,20457258,2479.2,896107201,8940099741
Department of Health,Worcestershire Acute Hospitals NHST,2016-10-31,Stocks Finished Goods,Balance Sheet,CELGENE LTD,20457259,9525.6,896107201,8940100041
Department of Health,Worcestershire Acute Hospitals NHST,2016-10-31,Stocks Finished Goods,Balance Sheet,CELGENE LTD,20457260,4298.11,896107201,8940100699
Department of Health,Worcestershire Acute Hospitals NHST,2016-10-31,Stocks Finished Goods,Balance Sheet,CELGENE LTD,20457261,13107.36,896107201,8940100821
Department of Health,Worcestershire Acute Hospitals NHST,2016-10-31,Stocks Finished Goods,Balance Sheet,MARTINDALE PHARMACEUTICALS,20457262,155.51,701725270,90209934
Department of Health,Worcestershire Acute Hospitals NHST,2016-10-31,Stocks Finished Goods,Balance Sheet,MARTINDALE PHARMACEUTICALS,20457263,155.51,701725270,90209935
Department of Health,Worcestershire Acute Hospitals NHST,2016-10-31,Stocks Finished Goods,Balance Sheet,FRESENIUS KABI LTD,20457265,103.82,534934726,912746995
Department of Health,Worcestershire Acute Hospitals NHST,2016-10-31,Stocks Finished Goods,Balance Sheet,FRESENIUS KABI LTD,20457266,1570.8,534934726,912747585
Department of Health,Worcestershire Acute Hospitals NHST,2016-10-31,Stocks Finished Goods,Balance Sheet,FRESENIUS KABI LTD,20457267,97.8,534934726,912749711
Department of Health,Worcestershire Acute Hospitals NHST,2016-10-31,Stocks Finished Goods,Balance Sheet,FRESENIUS KABI LTD,20457268,1212,534934726,912749713
Department of Health,Worcestershire Acute Hospitals NHST,2016-10-31,Stocks Finished Goods,Balance Sheet,FRESENIUS KABI LTD,20457269,547.82,534934726,912752693
Department of Health,Worcestershire Acute Hospitals NHST,2016-10-31,Stocks Finished Goods,Balance Sheet,FRESENIUS KABI LTD,20457270,160.2,534934726,912752694
Department of Health,Worcestershire Acute Hospitals NHST,2016-10-31,Stocks Finished Goods,Balance Sheet,FRESENIUS KABI LTD,20457271,78,534934726,912753675
Department of Health,Worcestershire Acute Hospitals NHST,2016-10-31,Stocks Finished Goods,Balance Sheet,FRESENIUS KABI LTD,20457272,55,534934726,912755588
Department of Health,Worcestershire Acute Hospitals NHST,2016-10-31,Stocks Finished Goods,Balance Sheet,FRESENIUS KABI LTD,20457273,77.93,534934726,912757439
Department of Health,Worcestershire Acute Hospitals NHST,2016-10-31,Stocks Finished Goods,Balance Sheet,FRESENIUS KABI LTD,20457274,176.25,534934726,912758551
Department of Health,Worcestershire Acute Hospitals NHST,2016-10-31,Stocks Finished Goods,Balance Sheet,FRESENIUS KABI LTD,20457275,1634,534934726,912761265
Department of Health,Worcestershire Acute Hospitals NHST,2016-10-31,Stocks Finished Goods,Balance Sheet,FRESENIUS KABI LTD,20457276,888,534934726,912762149
Department of Health,Worcestershire Acute Hospitals NHST,2016-10-31,Stocks Finished Goods,Balance Sheet,FRESENIUS KABI LTD,20457277,1570.8,534934726,912762575
Department of Health,Worcestershire Acute Hospitals NHST,2016-10-31,Stocks Finished Goods,Balance Sheet,FRESENIUS KABI LTD,20457279,83.64,534934726,912763585
Department of Health,Worcestershire Acute Hospitals NHST,2016-10-31,Stocks Finished Goods,Balance Sheet,AMGEN LTD,20457280,2640,538389011,914925190
Department of Health,Worcestershire Acute Hospitals NHST,2016-10-31,Stocks Finished Goods,Balance Sheet,AMGEN LTD,20457281,150.9,538389011,914925191
Department of Health,Worcestershire Acute Hospitals NHST,2016-10-31,Stocks Finished Goods,Balance Sheet,AMGEN LTD,20457282,5205.6,538389011,914926198
Department of Health,Worcestershire Acute Hospitals NHST,2016-10-31,Stocks Finished Goods,Balance Sheet,AMGEN LTD,20457283,658.8,538389011,914926724
Department of Health,Worcestershire Acute Hospitals NHST,2016-10-31,Stocks Finished Goods,Balance Sheet,AMGEN LTD,20457284,7845.6,538389011,914928031
Department of Health,Worcestershire Acute Hospitals NHST,2016-10-31,Stocks Finished Goods,Balance Sheet,AMGEN LTD,20457285,2640,538389011,914928032
Department of Health,Worcestershire Acute Hospitals NHST,2016-10-31,Stocks Finished Goods,Balance Sheet,AMGEN LTD,20457286,855.82,538389011,914928947
Department of Health,Worcestershire Acute Hospitals NHST,2016-10-31,Stocks Finished Goods,Balance Sheet,AMGEN LTD,20457287,5205.6,538389011,914930612
Department of Health,Worcestershire Acute Hospitals NHST,2016-10-31,Stocks Finished Goods,Balance Sheet,AMGEN LTD,20457288,150.9,538389011,914932119
Department of Health,Worcestershire Acute Hospitals NHST,2016-10-31,Stocks Finished Goods,Balance Sheet,AMGEN LTD,20457289,216,538389011,914933062
Department of Health,Worcestershire Acute Hospitals NHST,2016-10-31,Stocks Finished Goods,Balance Sheet,AMGEN LTD,20457290,1317.6,538389011,914934106
Department of Health,Worcestershire Acute Hospitals NHST,2016-10-31,Stocks Finished Goods,Balance Sheet,AMGEN LTD,20457291,216,538389011,914934595
Department of Health,Worcestershire Acute Hospitals NHST,2016-10-31,Stocks Finished Goods,Balance Sheet,NOVARTIS PHARMACEUTICALS UK LTD,20457292,4672.01,557290227,91699148
Department of Health,Worcestershire Acute Hospitals NHST,2016-10-31,Stocks Finished Goods,Balance Sheet,NOVARTIS PHARMACEUTICALS UK LTD,20457293,836.06,557290227,91699149
Department of Health,Worcestershire Acute Hospitals NHST,2016-10-31,Stocks Finished Goods,Balance Sheet,NOVARTIS PHARMACEUTICALS UK LTD,20457294,19958.4,557290227,91702821
Department of Health,Worcestershire Acute Hospitals NHST,2016-10-31,Stocks Finished Goods,Balance Sheet,NOVARTIS PHARMACEUTICALS UK LTD,20457295,5041.82,557290227,91705038
Department of Health,Worcestershire Acute Hospitals NHST,2016-10-31,Stocks Finished Goods,Balance Sheet,NOVARTIS PHARMACEUTICALS UK LTD,20457296,2060.71,557290227,91705097
Department of Health,Worcestershire Acute Hospitals NHST,2016-10-31,Stocks Finished Goods,Balance Sheet,NOVARTIS PHARMACEUTICALS UK LTD,20457297,9362.12,557290227,91705098
Department of Health,Worcestershire Acute Hospitals NHST,2016-10-31,Stocks Finished Goods,Balance Sheet,NOVARTIS PHARMACEUTICALS UK LTD,20457298,4190.4,557290227,91705664
Department of Health,Worcestershire Acute Hospitals NHST,2016-10-31,Stocks Finished Goods,Balance Sheet,NOVARTIS PHARMACEUTICALS UK LTD,20457299,21418.2,557290227,91705770
Department of Health,Worcestershire Acute Hospitals NHST,2016-10-31,Stocks Finished Goods,Balance Sheet,NOVARTIS PHARMACEUTICALS UK LTD,20457300,2455.09,557290227,91706824
Department of Health,Worcestershire Acute Hospitals NHST,2016-10-31,Stocks Finished Goods,Balance Sheet,NOVARTIS PHARMACEUTICALS UK LTD,20457301,18383.54,557290227,91707464
Department of Health,Worcestershire Acute Hospitals NHST,2016-10-31,Stocks Finished Goods,Balance Sheet,PHOENIX HEALTHCARE DISTRIBUTION LTD,20457302,6314.62,109898228,91781389
Department of Health,Worcestershire Acute Hospitals NHST,2016-10-31,Stocks Finished Goods,Balance Sheet,JANSSEN CILAG LTD,20457303,126.84,207929448,930224391
Department of Health,Worcestershire Acute Hospitals NHST,2016-10-31,Stocks Finished Goods,Balance Sheet,JANSSEN CILAG LTD,20457304,33112.8,207929448,930224392
Department of Health,Worcestershire Acute Hospitals NHST,2016-10-31,Stocks Finished Goods,Balance Sheet,JANSSEN CILAG LTD,20457305,6048,207929448,930224814
Department of Health,Worcestershire Acute Hospitals NHST,2016-10-31,Stocks Finished Goods,Balance Sheet,JANSSEN CILAG LTD,20457306,6360,207929448,930225062
Department of Health,Worcestershire Acute Hospitals NHST,2016-10-31,Stocks Finished Goods,Balance Sheet,JANSSEN CILAG LTD,20457307,18297.12,207929448,930226077
Department of Health,Worcestershire Acute Hospitals NHST,2016-10-31,Stocks Finished Goods,Balance Sheet,JANSSEN CILAG LTD,20457308,1072.08,207929448,930227014
Department of Health,Worcestershire Acute Hospitals NHST,2016-10-31,Stocks Finished Goods,Balance Sheet,JANSSEN CILAG LTD,20457309,2580,207929448,930227691
Department of Health,Worcestershire Acute Hospitals NHST,2016-10-31,Stocks Finished Goods,Balance Sheet,JANSSEN CILAG LTD,20457310,126.84,207929448,930228746
Department of Health,Worcestershire Acute Hospitals NHST,2016-10-31,Stocks Finished Goods,Balance Sheet,JANSSEN CILAG LTD,20457311,5524.03,207929448,930228773
Department of Health,Worcestershire Acute Hospitals NHST,2016-10-31,Stocks Finished Goods,Balance Sheet,JANSSEN CILAG LTD,20457313,3185.23,207929448,930229730
Department of Health,Worcestershire Acute Hospitals NHST,2016-10-31,Stocks Finished Goods,Balance Sheet,JANSSEN CILAG LTD,20457314,136.8,207929448,930230371
Department of Health,Worcestershire Acute Hospitals NHST,2016-10-31,Stocks Finished Goods,Balance Sheet,JANSSEN CILAG LTD,20457316,18297.12,207929448,930230755
Department of Health,Worcestershire Acute Hospitals NHST,2016-10-31,Stocks Finished Goods,Balance Sheet,JANSSEN CILAG LTD,20457317,136.8,207929448,930230756
Department of Health,Worcestershire Acute Hospitals NHST,2016-10-31,Stocks Finished Goods,Balance Sheet,PHOENIX HEALTHCARE DISTRIBUTION LTD,20457318,342.72,109898228,94025343
Department of Health,Worcestershire Acute Hospitals NHST,2016-10-31,Stocks Finished Goods,Balance Sheet,PHOENIX HEALTHCARE DISTRIBUTION LTD,20457319,615.77,109898228,96495739
Department of Health,Worcestershire Acute Hospitals NHST,2016-10-31,Stocks Finished Goods,Balance Sheet,TPS HEALTHCARE GROUP LTD,20457320,187.95,403017904,9800523758
Department of Health,Worcestershire Acute Hospitals NHST,2016-10-31,Stocks Finished Goods,Balance Sheet,TPS HEALTHCARE GROUP LTD,20457321,83.4,403017904,9800523759
Department of Health,Worcestershire Acute Hospitals NHST,2016-10-31,Stocks Finished Goods,Balance Sheet,TPS HEALTHCARE GROUP LTD,20457323,77.76,403017904,9800528500
Department of Health,Worcestershire Acute Hospitals NHST,2016-10-31,Stocks Finished Goods,Balance Sheet,TPS HEALTHCARE GROUP LTD,20457324,164.88,403017904,9800529336
Department of Health,Worcestershire Acute Hospitals NHST,2016-10-31,Stocks Finished Goods,Balance Sheet,TPS HEALTHCARE GROUP LTD,20457325,37.2,403017904,9800529774
Department of Health,Worcestershire Acute Hospitals NHST,2016-10-31,Stocks Finished Goods,Balance Sheet,CSL BEHRING UK LTD,20457326,1200,583602338,991817739
Department of Health,Worcestershire Acute Hospitals NHST,2016-10-31,Stocks Finished Goods,Balance Sheet,BIO PRODUCTS LABORATORY,20457327,3095,654961603-1,CD970037918
Department of Health,Worcestershire Acute Hospitals NHST,2016-10-31,Stocks Finished Goods,Balance Sheet,BIO PRODUCTS LABORATORY,20457328,619,654961603-1,CD970037930
Department of Health,Worcestershire Acute Hospitals NHST,2016-10-31,Stocks Finished Goods,Balance Sheet,BIO PRODUCTS LABORATORY,20457329,3095,654961603-1,CD970038000
Department of Health,Worcestershire Acute Hospitals NHST,2016-10-31,Stocks Finished Goods,Balance Sheet,BIO PRODUCTS LABORATORY,20457330,1578,654961603-1,CD970038047
Department of Health,Worcestershire Acute Hospitals NHST,2016-10-31,Stocks Finished Goods,Balance Sheet,BIO PRODUCTS LABORATORY,20457331,6190,654961603-1,CD970038107
Department of Health,Worcestershire Acute Hospitals NHST,2016-10-31,Stocks Finished Goods,Balance Sheet,BIO PRODUCTS LABORATORY,20457332,6208,654961603-1,cd970038174
Department of Health,Worcestershire Acute Hospitals NHST,2016-10-31,Stocks Finished Goods,Balance Sheet,BIO PRODUCTS LABORATORY,20457333,6190,654961603-1,CD970038341
Department of Health,Worcestershire Acute Hospitals NHST,2016-10-31,Stocks Finished Goods,Balance Sheet,BIO PRODUCTS LABORATORY,20457334,6190,654961603-1,CD970038468
Department of Health,Worcestershire Acute Hospitals NHST,2016-10-31,Stocks Finished Goods,Balance Sheet,BIO PRODUCTS LABORATORY,20457335,3714,654961603-1,CD970038485
Department of Health,Worcestershire Acute Hospitals NHST,2016-10-31,Stocks Finished Goods,Balance Sheet,ALLIANCE HEALTHCARE DISTRIBUTION LTD,20457336,1697.19,201048427,E68V03584
Department of Health,Worcestershire Acute Hospitals NHST,2016-10-31,Stocks Finished Goods,Balance Sheet,ALLIANCE HEALTHCARE DISTRIBUTION LTD,20457337,14081.6,201048427,E69500965
Department of Health,Worcestershire Acute Hospitals NHST,2016-10-31,Stocks Finished Goods,Balance Sheet,ALLIANCE HEALTHCARE DISTRIBUTION LTD,20457338,91.2,201048427,E69500982
Department of Health,Worcestershire Acute Hospitals NHST,2016-10-31,Stocks Finished Goods,Balance Sheet,ALLIANCE HEALTHCARE DISTRIBUTION LTD,20457339,429.78,201048427,E69506137
Department of Health,Worcestershire Acute Hospitals NHST,2016-10-31,Stocks Finished Goods,Balance Sheet,ALLIANCE HEALTHCARE DISTRIBUTION LTD,20457340,725.3,201048427,E69601082
Department of Health,Worcestershire Acute Hospitals NHST,2016-10-31,Stocks Finished Goods,Balance Sheet,ALLIANCE HEALTHCARE DISTRIBUTION LTD,20457341,104.54,201048427,E69603569
Department of Health,Worcestershire Acute Hospitals NHST,2016-10-31,Stocks Finished Goods,Balance Sheet,ALLIANCE HEALTHCARE DISTRIBUTION LTD,20457342,104.54,201048427,E69603575
Department of Health,Worcestershire Acute Hospitals NHST,2016-10-31,Stocks Finished Goods,Balance Sheet,ALLIANCE HEALTHCARE DISTRIBUTION LTD,20457343,1585.24,201048427,E69606454
Department of Health,Worcestershire Acute Hospitals NHST,2016-10-31,Stocks Finished Goods,Balance Sheet,ALLIANCE HEALTHCARE DISTRIBUTION LTD,20457346,290.65,201048427,E69706566
Department of Health,Worcestershire Acute Hospitals NHST,2016-10-31,Stocks Finished Goods,Balance Sheet,ALLIANCE HEALTHCARE DISTRIBUTION LTD,20457347,572.02,201048427,E69711284
Department of Health,Worcestershire Acute Hospitals NHST,2016-10-31,Stocks Finished Goods,Balance Sheet,ALLIANCE HEALTHCARE DISTRIBUTION LTD,20457348,1037.64,201048427,E69801062
Department of Health,Worcestershire Acute Hospitals NHST,2016-10-31,Stocks Finished Goods,Balance Sheet,ALLIANCE HEALTHCARE DISTRIBUTION LTD,20457349,104.54,201048427,E69803525
Department of Health,Worcestershire Acute Hospitals NHST,2016-10-31,Stocks Finished Goods,Balance Sheet,ALLIANCE HEALTHCARE DISTRIBUTION LTD,20457350,518.26,201048427,E69811035
Department of Health,Worcestershire Acute Hospitals NHST,2016-10-31,Stocks Finished Goods,Balance Sheet,ALLIANCE HEALTHCARE DISTRIBUTION LTD,20457351,107.48,201048427,E69903671
Department of Health,Worcestershire Acute Hospitals NHST,2016-10-31,Stocks Finished Goods,Balance Sheet,ALLIANCE HEALTHCARE DISTRIBUTION LTD,20457352,488.47,201048427,E69906396
Department of Health,Worcestershire Acute Hospitals NHST,2016-10-31,Stocks Finished Goods,Balance Sheet,ALLIANCE HEALTHCARE DISTRIBUTION LTD,20457355,258.26,201048427,E69D03591
Department of Health,Worcestershire Acute Hospitals NHST,2016-10-31,Stocks Finished Goods,Balance Sheet,ALLIANCE HEALTHCARE DISTRIBUTION LTD,20457358,104.68,201048427,E69D05736
Department of Health,Worcestershire Acute Hospitals NHST,2016-10-31,Stocks Finished Goods,Balance Sheet,ALLIANCE HEALTHCARE DISTRIBUTION LTD,20457359,62.1,201048427,E69D06422
Department of Health,Worcestershire Acute Hospitals NHST,2016-10-31,Stocks Finished Goods,Balance Sheet,ALLIANCE HEALTHCARE DISTRIBUTION LTD,20457360,215.06,201048427,E69D06427
Department of Health,Worcestershire Acute Hospitals NHST,2016-10-31,Stocks Finished Goods,Balance Sheet,ALLIANCE HEALTHCARE DISTRIBUTION LTD,20457361,369.91,201048427,E69D06430
Department of Health,Worcestershire Acute Hospitals NHST,2016-10-31,Stocks Finished Goods,Balance Sheet,ALLIANCE HEALTHCARE DISTRIBUTION LTD,20457363,418.18,201048427,E69E01035
Department of Health,Worcestershire Acute Hospitals NHST,2016-10-31,Stocks Finished Goods,Balance Sheet,ALLIANCE HEALTHCARE DISTRIBUTION LTD,20457364,163.37,201048427,E69F01005
Department of Health,Worcestershire Acute Hospitals NHST,2016-10-31,Stocks Finished Goods,Balance Sheet,ALLIANCE HEALTHCARE DISTRIBUTION LTD,20457365,435.63,201048427,E69F06440
Department of Health,Worcestershire Acute Hospitals NHST,2016-10-31,Stocks Finished Goods,Balance Sheet,ALLIANCE HEALTHCARE DISTRIBUTION LTD,20457366,1385.59,201048427,E69F06448
Department of Health,Worcestershire Acute Hospitals NHST,2016-10-31,Stocks Finished Goods,Balance Sheet,ALLIANCE HEALTHCARE DISTRIBUTION LTD,20457367,162.65,201048427,E69F06476
Department of Health,Worcestershire Acute Hospitals NHST,2016-10-31,Stocks Finished Goods,Balance Sheet,ALLIANCE HEALTHCARE DISTRIBUTION LTD,20457368,71.48,201048427,E69F11119
Department of Health,Worcestershire Acute Hospitals NHST,2016-10-31,Stocks Finished Goods,Balance Sheet,ALLIANCE HEALTHCARE DISTRIBUTION LTD,20457369,118.92,201048427,E69F11157
Department of Health,Worcestershire Acute Hospitals NHST,2016-10-31,Stocks Finished Goods,Balance Sheet,ALLIANCE HEALTHCARE DISTRIBUTION LTD,20457370,18649.51,201048427,E69F11173
Department of Health,Worcestershire Acute Hospitals NHST,2016-10-31,Stocks Finished Goods,Balance Sheet,ALLIANCE HEALTHCARE DISTRIBUTION LTD,20457371,56.05,201048427,E69G00999
Department of Health,Worcestershire Acute Hospitals NHST,2016-10-31,Stocks Finished Goods,Balance Sheet,ALLIANCE HEALTHCARE DISTRIBUTION LTD,20457373,231,201048427,E69G05132
Department of Health,Worcestershire Acute Hospitals NHST,2016-10-31,Stocks Finished Goods,Balance Sheet,ALLIANCE HEALTHCARE DISTRIBUTION LTD,20457375,57.74,201048427,E69J03353
Department of Health,Worcestershire Acute Hospitals NHST,2016-10-31,Stocks Finished Goods,Balance Sheet,ALLIANCE HEALTHCARE DISTRIBUTION LTD,20457376,403.54,201048427,E69J03371
Department of Health,Worcestershire Acute Hospitals NHST,2016-10-31,Stocks Finished Goods,Balance Sheet,ALLIANCE HEALTHCARE DISTRIBUTION LTD,20457377,931.77,201048427,E69J03382
Department of Health,Worcestershire Acute Hospitals NHST,2016-10-31,Stocks Finished Goods,Balance Sheet,ALLIANCE HEALTHCARE DISTRIBUTION LTD,20457378,126.76,201048427,E69J06168
Department of Health,Worcestershire Acute Hospitals NHST,2016-10-31,Stocks Finished Goods,Balance Sheet,ALLIANCE HEALTHCARE DISTRIBUTION LTD,20457379,803.98,201048427,E69K06697
Department of Health,Worcestershire Acute Hospitals NHST,2016-10-31,Stocks Finished Goods,Balance Sheet,ALLIANCE HEALTHCARE DISTRIBUTION LTD,20457381,-343.73,201048427,E69K50070
Department of Health,Worcestershire Acute Hospitals NHST,2016-10-31,Stocks Finished Goods,Balance Sheet,ALLIANCE HEALTHCARE DISTRIBUTION LTD,20457382,-234.18,201048427,E69K50475
Department of Health,Worcestershire Acute Hospitals NHST,2016-10-31,Stocks Finished Goods,Balance Sheet,ALLIANCE HEALTHCARE DISTRIBUTION LTD,20457383,788.54,201048427,E69L01038
Department of Health,Worcestershire Acute Hospitals NHST,2016-10-31,Stocks Finished Goods,Balance Sheet,ALLIANCE HEALTHCARE DISTRIBUTION LTD,20457384,506.95,201048427,E69M06310
Department of Health,Worcestershire Acute Hospitals NHST,2016-10-31,Stocks Finished Goods,Balance Sheet,ALLIANCE HEALTHCARE DISTRIBUTION LTD,20457387,45.91,201048427,E69N06302
Department of Health,Worcestershire Acute Hospitals NHST,2016-10-31,Stocks Finished Goods,Balance Sheet,ALLIANCE HEALTHCARE DISTRIBUTION LTD,20457388,382.78,201048427,E69Q00929
Department of Health,Worcestershire Acute Hospitals NHST,2016-10-31,Stocks Finished Goods,Balance Sheet,ALLIANCE HEALTHCARE DISTRIBUTION LTD,20457389,427.46,201048427,E69Q00937
Department of Health,Worcestershire Acute Hospitals NHST,2016-10-31,Stocks Finished Goods,Balance Sheet,ALLIANCE HEALTHCARE DISTRIBUTION LTD,20457390,88.03,201048427,E69Q00948
Department of Health,Worcestershire Acute Hospitals NHST,2016-10-31,Stocks Finished Goods,Balance Sheet,ALLIANCE HEALTHCARE DISTRIBUTION LTD,20457391,2307.46,201048427,E69Q05099
Department of Health,Worcestershire Acute Hospitals NHST,2016-10-31,Stocks Finished Goods,Balance Sheet,ALLIANCE HEALTHCARE DISTRIBUTION LTD,20457392,576.86,201048427,E69Q05100
Department of Health,Worcestershire Acute Hospitals NHST,2016-10-31,Stocks Finished Goods,Balance Sheet,ALLIANCE HEALTHCARE DISTRIBUTION LTD,20457393,924.09,201048427,E69Q06536
Department of Health,Worcestershire Acute Hospitals NHST,2016-10-31,Stocks Finished Goods,Balance Sheet,ALLIANCE HEALTHCARE DISTRIBUTION LTD,20457395,114,201048427,E69R01042
Department of Health,Worcestershire Acute Hospitals NHST,2016-10-31,Stocks Finished Goods,Balance Sheet,ALLIANCE HEALTHCARE DISTRIBUTION LTD,20457396,219.66,201048427,E69R01053
Department of Health,Worcestershire Acute Hospitals NHST,2016-10-31,Stocks Finished Goods,Balance Sheet,ALLIANCE HEALTHCARE DISTRIBUTION LTD,20457398,94.56,201048427,E69R01060
Department of Health,Worcestershire Acute Hospitals NHST,2016-10-31,Stocks Finished Goods,Balance Sheet,ALLIANCE HEALTHCARE DISTRIBUTION LTD,20457401,93.14,201048427,E69R06940
Department of Health,Worcestershire Acute Hospitals NHST,2016-10-31,Stocks Finished Goods,Balance Sheet,ALLIANCE HEALTHCARE DISTRIBUTION LTD,20457402,68.7,201048427,E69R11822
Department of Health,Worcestershire Acute Hospitals NHST,2016-10-31,Stocks Finished Goods,Balance Sheet,ALLIANCE HEALTHCARE DISTRIBUTION LTD,20457403,493.72,201048427,E69R11831
Department of Health,Worcestershire Acute Hospitals NHST,2016-10-31,Stocks Finished Goods,Balance Sheet,ALLIANCE HEALTHCARE DISTRIBUTION LTD,20457404,7533.12,201048427,E69R11832
Department of Health,Worcestershire Acute Hospitals NHST,2016-10-31,Stocks Finished Goods,Balance Sheet,ALLIANCE HEALTHCARE DISTRIBUTION LTD,20457407,40.54,201048427,E69S01105
Department of Health,Worcestershire Acute Hospitals NHST,2016-10-31,Stocks Finished Goods,Balance Sheet,ALLIANCE HEALTHCARE DISTRIBUTION LTD,20457409,137.94,201048427,E69S01122
Department of Health,Worcestershire Acute Hospitals NHST,2016-10-31,Stocks Finished Goods,Balance Sheet,ALLIANCE HEALTHCARE DISTRIBUTION LTD,20457410,52.32,201048427,E69S03628
Department of Health,Worcestershire Acute Hospitals NHST,2016-10-31,Stocks Finished Goods,Balance Sheet,ALLIANCE HEALTHCARE DISTRIBUTION LTD,20457411,435.09,201048427,E69S03631
Department of Health,Worcestershire Acute Hospitals NHST,2016-10-31,Stocks Finished Goods,Balance Sheet,ALLIANCE HEALTHCARE DISTRIBUTION LTD,20457412,88.56,201048427,E69S03639
Department of Health,Worcestershire Acute Hospitals NHST,2016-10-31,Stocks Finished Goods,Balance Sheet,ALLIANCE HEALTHCARE DISTRIBUTION LTD,20457413,232.22,201048427,E69S03642
Department of Health,Worcestershire Acute Hospitals NHST,2016-10-31,Stocks Finished Goods,Balance Sheet,ALLIANCE HEALTHCARE DISTRIBUTION LTD,20457414,944.26,201048427,E69S03658
Department of Health,Worcestershire Acute Hospitals NHST,2016-10-31,Stocks Finished Goods,Balance Sheet,ALLIANCE HEALTHCARE DISTRIBUTION LTD,20457415,108.3,201048427,E69S06885
Department of Health,Worcestershire Acute Hospitals NHST,2016-10-31,Stocks Finished Goods,Balance Sheet,ALLIANCE HEALTHCARE DISTRIBUTION LTD,20457416,318.06,201048427,E69S06893
Department of Health,Worcestershire Acute Hospitals NHST,2016-10-31,Stocks Finished Goods,Balance Sheet,ALLIANCE HEALTHCARE DISTRIBUTION LTD,20457417,52.7,201048427,E69S06920
Department of Health,Worcestershire Acute Hospitals NHST,2016-10-31,Stocks Finished Goods,Balance Sheet,ALLIANCE HEALTHCARE DISTRIBUTION LTD,20457420,806.38,201048427,E69S11880
Department of Health,Worcestershire Acute Hospitals NHST,2016-10-31,Stocks Finished Goods,Balance Sheet,ALLIANCE HEALTHCARE DISTRIBUTION LTD,20457421,1008,201048427,E69S11891
Department of Health,Worcestershire Acute Hospitals NHST,2016-10-31,Stocks Finished Goods,Balance Sheet,ALLIANCE HEALTHCARE DISTRIBUTION LTD,20457423,107.23,201048427,E69T01024
Department of Health,Worcestershire Acute Hospitals NHST,2016-10-31,Stocks Finished Goods,Balance Sheet,ALLIANCE HEALTHCARE DISTRIBUTION LTD,20457424,615.85,201048427,E69T03442
Department of Health,Worcestershire Acute Hospitals NHST,2016-10-31,Stocks Finished Goods,Balance Sheet,ALLIANCE HEALTHCARE DISTRIBUTION LTD,20457425,76.2,201048427,E69T03466
Department of Health,Worcestershire Acute Hospitals NHST,2016-10-31,Stocks Finished Goods,Balance Sheet,ALLIANCE HEALTHCARE DISTRIBUTION LTD,20457426,137.88,201048427,E69T06531
Department of Health,Worcestershire Acute Hospitals NHST,2016-10-31,Stocks Finished Goods,Balance Sheet,ALLIANCE HEALTHCARE DISTRIBUTION LTD,20457427,42.1,201048427,E69T06552
Department of Health,Worcestershire Acute Hospitals NHST,2016-10-31,Stocks Finished Goods,Balance Sheet,ALLIANCE HEALTHCARE DISTRIBUTION LTD,20457428,297.1,201048427,E69T06555
Department of Health,Worcestershire Acute Hospitals NHST,2016-10-31,Stocks Finished Goods,Balance Sheet,ALLIANCE HEALTHCARE DISTRIBUTION LTD,20457430,187.25,201048427,E69T11295
Department of Health,Worcestershire Acute Hospitals NHST,2016-10-31,Stocks Finished Goods,Balance Sheet,ALLIANCE HEALTHCARE DISTRIBUTION LTD,20457432,57.97,201048427,E69U03470
Department of Health,Worcestershire Acute Hospitals NHST,2016-10-31,Stocks Finished Goods,Balance Sheet,ALLIANCE HEALTHCARE DISTRIBUTION LTD,20457433,805.53,201048427,E69U03475
Department of Health,Worcestershire Acute Hospitals NHST,2016-10-31,Stocks Finished Goods,Balance Sheet,HOSPIRA UK LTD,20457436,13270.65,418672435,I915690
Department of Health,Worcestershire Acute Hospitals NHST,2016-10-31,Stocks Finished Goods,Balance Sheet,HOSPIRA UK LTD,20457437,45.6,418672435,I917833
Department of Health,Worcestershire Acute Hospitals NHST,2016-10-31,Stocks Finished Goods,Balance Sheet,HOSPIRA UK LTD,20457438,1661.41,418672435,I918082
Department of Health,Worcestershire Acute Hospitals NHST,2016-10-31,Stocks Finished Goods,Balance Sheet,HOSPIRA UK LTD,20457439,519.94,418672435,I920314
Department of Health,Worcestershire Acute Hospitals NHST,2016-10-31,Stocks Finished Goods,Balance Sheet,HOSPIRA UK LTD,20457440,123.6,418672435,I921902
Department of Health,Worcestershire Acute Hospitals NHST,2016-10-31,Stocks Finished Goods,Balance Sheet,BRAY GROUP LTD,20457441,105.77,576018237,ip.042422
Department of Health,Worcestershire Acute Hospitals NHST,2016-10-31,Stocks Finished Goods,Balance Sheet,HEALTHCARE AT HOME LTD,20457442,125.6,873342418,OP/5687975
Department of Health,Worcestershire Acute Hospitals NHST,2016-10-31,Stocks Finished Goods,Balance Sheet,HEALTHCARE AT HOME LTD,20457443,125.6,873342418,OP/5688015
Department of Health,Worcestershire Acute Hospitals NHST,2016-10-31,Stocks Finished Goods,Balance Sheet,HEALTHCARE AT HOME LTD,20457444,125.6,873342418,OP/5688101
Department of Health,Worcestershire Acute Hospitals NHST,2016-10-31,Stocks Finished Goods,Balance Sheet,HEALTHCARE AT HOME LTD,20457445,125.6,873342418,OP/5688120
Department of Health,Worcestershire Acute Hospitals NHST,2016-10-31,Stocks Finished Goods,Balance Sheet,HEALTHCARE AT HOME LTD,20457446,125.6,873342418,OP/5688153
Department of Health,Worcestershire Acute Hospitals NHST,2016-10-31,Stocks Finished Goods,Balance Sheet,HEALTHCARE AT HOME LTD,20457447,125.6,873342418,OP/5688647
Department of Health,Worcestershire Acute Hospitals NHST,2016-10-31,Stocks Finished Goods,Balance Sheet,HEALTHCARE AT HOME LTD,20457448,125.6,873342418,OP/5688866
Department of Health,Worcestershire Acute Hospitals NHST,2016-10-31,Stocks Finished Goods,Balance Sheet,HEALTHCARE AT HOME LTD,20457449,125.6,873342418,OP/5688991
Department of Health,Worcestershire Acute Hospitals NHST,2016-10-31,Stocks Finished Goods,Balance Sheet,HEALTHCARE AT HOME LTD,20457450,125.6,873342418,OP/5691529
Department of Health,Worcestershire Acute Hospitals NHST,2016-10-31,Stocks Finished Goods,Balance Sheet,HEALTHCARE AT HOME LTD,20457451,125.6,873342418,OP/5691953
Department of Health,Worcestershire Acute Hospitals NHST,2016-10-31,Stocks Finished Goods,Balance Sheet,HEALTHCARE AT HOME LTD,20457452,125.6,873342418,OP/5696114
Department of Health,Worcestershire Acute Hospitals NHST,2016-10-31,Stocks Finished Goods,Balance Sheet,HEALTHCARE AT HOME LTD,20457453,125.6,873342418,OP/5697047
Department of Health,Worcestershire Acute Hospitals NHST,2016-10-31,Stocks Finished Goods,Balance Sheet,HEALTHCARE AT HOME LTD,20457454,125.6,873342418,OP/5697208
Department of Health,Worcestershire Acute Hospitals NHST,2016-10-31,Stocks Finished Goods,Balance Sheet,HEALTHCARE AT HOME LTD,20457455,12417.77,873342418,OP/5774275
Department of Health,Worcestershire Acute Hospitals NHST,2016-10-31,Stocks Finished Goods,Balance Sheet,BATH ASU,20457456,243.84,851127643,PSI-0118677
Department of Health,Worcestershire Acute Hospitals NHST,2016-10-31,Stocks Finished Goods,Balance Sheet,NOVA LABORATORIES LTD,20457457,204,620196367,PSIN359197
Department of Health,Worcestershire Acute Hospitals NHST,2016-10-31,Stocks Finished Goods,Balance Sheet,NOVA LABORATORIES LTD,20457458,204,620196367,PSIN360119
Department of Health,Worcestershire Acute Hospitals NHST,2016-10-31,Stocks Finished Goods,Balance Sheet,MIDCO PRINT & PACKAGING LTD,20457459,570.53,113767669,S080769
Department of Health,Worcestershire Acute Hospitals NHST,2016-10-31,Stocks Finished Goods,Balance Sheet,MIDCO PRINT & PACKAGING LTD,20457460,121.3,113767669,S081770
Department of Health,Worcestershire Acute Hospitals NHST,2016-10-31,Stocks Finished Goods,Balance Sheet,INSPIRATION HEALTHCARE LTD,20457461,137.4,816709809,SI166006547
Department of Health,Worcestershire Acute Hospitals NHST,2016-10-31,Stocks Finished Goods,Balance Sheet,ALLOGA UK LTD,20457462,70.6,,SIN101745961
Department of Health,Worcestershire Acute Hospitals NHST,2016-10-31,Stocks Finished Goods,Balance Sheet,ALLOGA UK LTD,20457464,1510.15,,SIN101748422
Department of Health,Worcestershire Acute Hospitals NHST,2016-10-31,Stocks Finished Goods,Balance Sheet,ALLOGA UK LTD,20457465,274.08,,SIN101748423
Department of Health,Worcestershire Acute Hospitals NHST,2016-10-31,Stocks Finished Goods,Balance Sheet,ALLOGA UK LTD,20457466,90,,SIN101754630
Department of Health,Worcestershire Acute Hospitals NHST,2016-10-31,Stocks Finished Goods,Balance Sheet,ALLOGA UK LTD,20457468,654.12,,SIN101760531
Department of Health,Worcestershire Acute Hospitals NHST,2016-10-31,Stocks Finished Goods,Balance Sheet,ALLOGA UK LTD,20457469,74.4,,SIN101760532
Department of Health,Worcestershire Acute Hospitals NHST,2016-10-31,Stocks Finished Goods,Balance Sheet,ALLOGA UK LTD,20457470,288,,SIN101766716
Department of Health,Worcestershire Acute Hospitals NHST,2016-10-31,Stocks Finished Goods,Balance Sheet,ALLOGA UK LTD,20457472,156.46,,SIN101767956
Department of Health,Worcestershire Acute Hospitals NHST,2016-10-31,Stocks Finished Goods,Balance Sheet,ALLOGA UK LTD,20457473,1095.55,,SIN101767957
Department of Health,Worcestershire Acute Hospitals NHST,2016-10-31,Stocks Finished Goods,Balance Sheet,ALLOGA UK LTD,20457476,10800,,SIN101767960
Department of Health,Worcestershire Acute Hospitals NHST,2016-10-31,Stocks Finished Goods,Balance Sheet,ALLOGA UK LTD,20457477,49.97,,SIN101769047
Department of Health,Worcestershire Acute Hospitals NHST,2016-10-31,Stocks Finished Goods,Balance Sheet,ALLOGA UK LTD,20457481,52.08,,SIN101770072
Department of Health,Worcestershire Acute Hospitals NHST,2016-10-31,Stocks Finished Goods,Balance Sheet,CLINIGEN HEALTHCARE LTD,20457482,1438.2,913426345,SIN105929
Department of Health,Worcestershire Acute Hospitals NHST,2016-10-31,Stocks Finished Goods,Balance Sheet,LEXON (UK) LTD,20457483,128.65,,ULS0415488
Department of Health,Worcestershire Acute Hospitals NHST,2016-10-31,Agency Medical Consultant,Diabetes Medics- Aconbury,FIRST MEDICAL STAFFING SOLUTIONS LTD,20457987,12000,868518280,SKWR001RUD2764
Department of Health,Worcestershire Acute Hospitals NHST,2016-10-31,Course Fees,Pharmacy,UNIVERSITY HOSPITALS OF LEICESTER NHS TRUST,20462269,80,654972400,L0168657
Department of Health,Worcestershire Acute Hospitals NHST,2016-10-31,Laboratory External Tests,Gen Surg-Med,UNIVERSITY HOSPITAL BIRMINGHAM NHS FOUNDATION TRUST,20462281,16020.04,654965101,OPT012398
Department of Health,Worcestershire Acute Hospitals NHST,2016-10-31,Course Fees,Financial Mgmt,BPP PROFESSIONAL EDUCATION,20462288,687.45,466451629,SIBIR1601747
Department of Health,Worcestershire Acute Hospitals NHST,2016-10-31,Other recvables - Current,Balance Sheet,BPP PROFESSIONAL EDUCATION,20462288,7.26,466451629,SIBIR1601747
Department of Health,Worcestershire Acute Hospitals NHST,2016-10-31,Course Fees,Pharmacy,NEWCASTLE-UNDER-LYME COLLEGE,20462293,120,,60000021
Department of Health,Worcestershire Acute Hospitals NHST,2016-10-31,Gas,Energy-Rates- No Special,CORONA ENERGY RETAIL 4 LTD,20462301,-4272.17,577704800,11306549
Department of Health,Worcestershire Acute Hospitals NHST,2016-10-31,Locum SPR,General Surg Medical,RM MEDICS LTD,20462308,1412.37,,115172
Department of Health,Worcestershire Acute Hospitals NHST,2016-10-31,Locum SPR,Urology,RM MEDICS LTD,20462308,1412.36,,115172
Department of Health,Worcestershire Acute Hospitals NHST,2016-10-31,Electricity,Energy-Rates- No Special,EDF ENERGY CUSTOMERS PLC,20462317,91021.9,,000002043039
Department of Health,Worcestershire Acute Hospitals NHST,2016-10-31,External Consultancy Fees,Trust Communications,NHS MIDLANDS AND LANCASHIRE CSU,20462325,30134,,7312303983
Department of Health,Worcestershire Acute Hospitals NHST,2016-10-31,Legal / Prof Fees,Trust Litigation,CAPSTICKS SOLICITORS,20462331,52198.65,340301321,287730
Department of Health,Worcestershire Acute Hospitals NHST,2016-10-31,Agency Other Medical,Dermat WLI Exp Alex,PERTEMPS NETWORK MEDICAL LTD,20462339,3480,805390343,907V115320
Department of Health,Worcestershire Acute Hospitals NHST,2016-10-31,Agency Other Medical,Dermat WLI Exp Alex,PERTEMPS NETWORK MEDICAL LTD,20462348,2784,805390343,907V115321
Department of Health,Worcestershire Acute Hospitals NHST,2016-10-31,Agency Junior Doctor ST2,Gen Medicine-Med,RM MEDICS LTD,20462355,995.62,,115799
Department of Health,Worcestershire Acute Hospitals NHST,2016-10-31,Medical Gases,Outpatients Dept- E Block,BOC LTD,20462362,51.6,226556555,3037743095
Department of Health,Worcestershire Acute Hospitals NHST,2016-10-31,AUC Additions,Balance Sheet,WORCESTERSHIRE HOSPITAL SPC PLC,20462369,16865.57,726543822,9363
Department of Health,Worcestershire Acute Hospitals NHST,2016-10-31,Laboratory External Tests,Med Staff Histology,BACKLOGS LTD,20462379,15470,,BX2826
Department of Health,Worcestershire Acute Hospitals NHST,2016-10-31,Other Agency Staff,Radiology Dept WRH,GLOBE LOCUMS LTD,20462390,1605.73,,62044
Department of Health,Worcestershire Acute Hospitals NHST,2016-10-31,Other Agency Staff,COO Operational Team,HUNTER HEALTHCARE RESOURCING LTD,20462396,5040,112111296,5390
Department of Health,Worcestershire Acute Hospitals NHST,2016-10-31,Med & Surg Equip General,KTC Endoscopy,JOHNSON & JOHNSON MEDICAL LTD,20462403,1800,592926302,16215855
Department of Health,Worcestershire Acute Hospitals NHST,2016-10-31,Secndd staff frm othr org,Plastic Surg-Med,UNIVERSITY HOSPITAL BIRMINGHAM NHS FOUNDATION TRUST,20462411,14262.25,654965101,OPT018723
Department of Health,Worcestershire Acute Hospitals NHST,2016-10-31,Other Agency Staff,Radiology Dept WRH,SANCTUARY PERSONNEL LTD,20462418,1528.66,900452370,INV00100387
Department of Health,Worcestershire Acute Hospitals NHST,2016-10-31,Med & Surg Equip Hire,Urology,FOCUS MEDICAL SERVICES LTD,20462424,1340,744645809,10593
Department of Health,Worcestershire Acute Hospitals NHST,2016-10-31,Other Agency Staff,SLA Split of income,NHS PROFESSIONALS LTD,20462431,65114.52,654434043,14002005
Department of Health,Worcestershire Acute Hospitals NHST,2016-10-31,SrvcsRecd-Other NHS,Microbiology,PUBLIC HEALTH ENGLAND,20462441,26665.74,888849628,6234411
Department of Health,Worcestershire Acute Hospitals NHST,2016-10-31,Laboratory External Tests,Regional Spec (Clin Chem),SANDWELL&WEST BIRMINGHAM HOSPITALS NHS TRUST,20462452,2962,654916216,239902
Department of Health,Worcestershire Acute Hospitals NHST,2016-10-31,Services Received - NHSTs,Antenatal clinic,DERBY HOSPITALS NHS FOUNDATION TRUST,20462460,514.3,654967976,349776
Department of Health,Worcestershire Acute Hospitals NHST,2016-10-31,Blood Products,Haematology Blood Bank,NHS BLOOD & TRANSPLANT,20462468,118434.17,654961603,855282
Department of Health,Worcestershire Acute Hospitals NHST,2016-10-31,Other Agency Staff,SLA Split of income,NHS PROFESSIONALS LTD,20462475,93177.59,654434043,14002049
Department of Health,Worcestershire Acute Hospitals NHST,2016-10-31,NonNHS Trade Pybls Curr,Balance Sheet,NHS SUPPLY CHAIN,20462484,89460.22,654434729,1017120394
Department of Health,Worcestershire Acute Hospitals NHST,2016-10-31,NonNHS Trade Pybls Curr,Balance Sheet,NHS SUPPLY CHAIN,20462489,18783.62,654434729,1017120255
Department of Health,Worcestershire Acute Hospitals NHST,2016-10-31,NonNHS Trade Pybls Curr,Balance Sheet,NHS SUPPLY CHAIN,20462495,63703.45,654434729,1017120184
Department of Health,Worcestershire Acute Hospitals NHST,2016-10-31,NonNHS Trade Pybls Curr,Balance Sheet,NHS SUPPLY CHAIN,20462502,1314.18,654434729,1017120313
Department of Health,Worcestershire Acute Hospitals NHST,2016-10-31,Legal / Prof Fees,Trust Litigation,DAC BEACHCROFT LLP,20462506,16530.32,,1338696
Department of Health,Worcestershire Acute Hospitals NHST,2016-10-31,Laboratory External Tests,Microbiology,SANDWELL&WEST BIRMINGHAM HOSPITALS NHS TRUST,20462515,1970.66,654916216,239903
Department of Health,Worcestershire Acute Hospitals NHST,2016-10-31,AUC Additions,Balance Sheet,SLE LAMBERT LTD,20462523,2100,,12
Department of Health,Worcestershire Acute Hospitals NHST,2016-10-31,IT Additions,Balance Sheet,PENTAGON IT EDUCATION AGENCY,20462532,1066.8,652888003,PT107121
Department of Health,Worcestershire Acute Hospitals NHST,2016-10-31,Laboratory External Tests,Microbiology,PUBLIC HEALTH ENGLAND,20462539,1146.66,888849628,6235650
Department of Health,Worcestershire Acute Hospitals NHST,2016-10-31,Agency Prof & Tech,Pharmacy - No Spec,HCL HEALTHCARE LTD,20462548,1487.63,839550010,HAHP5602994
Department of Health,Worcestershire Acute Hospitals NHST,2016-10-31,Other Agency Staff,Radiology Dept WRH,URBAN RECRUITMENT GROUP LTD,20462556,1155,973292003,UR100557
Department of Health,Worcestershire Acute Hospitals NHST,2016-10-31,Other Agency Staff,Radiology Dept WRH,URBAN RECRUITMENT GROUP LTD,20462563,1232.4,973292003,UR100556
Department of Health,Worcestershire Acute Hospitals NHST,2016-10-31,Provisions,Non Patient Catering - CHEC,PERSHORE PRODUCE (FRUIT&VEG) LTD,20462569,30.85,,658821
Department of Health,Worcestershire Acute Hospitals NHST,2016-10-31,External Consultancy Fees,General Surg Medical,COBALT HEALTH,20462576,528,,I0013342
Department of Health,Worcestershire Acute Hospitals NHST,2016-10-31,Other Agency Staff,SLA Split of income,NHS PROFESSIONALS LTD,20462584,67726.33,654434043,14002197
Department of Health,Worcestershire Acute Hospitals NHST,2016-10-31,Agency Admin & Clerical,Treasury Mgt + Debtors,VENN GROUP LTD,20462592,272.33,766711704,3228147
Department of Health,Worcestershire Acute Hospitals NHST,2016-10-31,Medical Gases,Portering,BOC LTD,20462600,143.43,226556555,3037916200
Department of Health,Worcestershire Acute Hospitals NHST,2016-10-31,Medical Gases,Portering,BOC LTD,20462607,893,226556555,3037895154
Department of Health,Worcestershire Acute Hospitals NHST,2016-10-31,Other Agency Staff,SLA Split of income,NHS PROFESSIONALS LTD,20462622,65111.31,654434043,14002206
Department of Health,Worcestershire Acute Hospitals NHST,2016-10-31,Medical Gases,Radiotherapy WRH,BOC LTD,20462629,63.6,226556555,3037888217
Department of Health,Worcestershire Acute Hospitals NHST,2016-10-31,Dietetic Products,Hazel-Trauma & Elect Orth,AAH PHARMACEUTICALS LTD,20462642,62.16,546573322,81367235E
Department of Health,Worcestershire Acute Hospitals NHST,2016-10-31,Dietetic Products,ICCU - Worcs,AAH PHARMACEUTICALS LTD,20462648,59.04,546573322,81464902M
Department of Health,Worcestershire Acute Hospitals NHST,2016-10-31,Patients Appl: Purchase,GP Direct Access Worcs,CANONBURY PRODUCTS LTD,20462658,-71.82,393786102,CN61144
Department of Health,Worcestershire Acute Hospitals NHST,2016-10-31,Laboratory External Tests,Clinical Haematology- Med,UNIVERSITY OF BIRMINGHAM,20462667,826.19,729856187,2000127467
Department of Health,Worcestershire Acute Hospitals NHST,2016-10-31,Laboratory External Tests,Regional Spec (Clin Chem),UNIVERSITY OF BIRMINGHAM,20462667,826.19,729856187,2000127467
Department of Health,Worcestershire Acute Hospitals NHST,2016-10-31,Contact lenses & glasses,Ophthalmology,BOOTS OPTICIANS LTD,20462671,59.3,116300129,1800007569
Department of Health,Worcestershire Acute Hospitals NHST,2016-10-31,Contact lenses & glasses,Ophthalmology,VISION EXPRESS (UK) LTD,20462674,59.3,648031153,1600695852
Department of Health,Worcestershire Acute Hospitals NHST,2016-10-31,Laboratory Bottles & Cont,Radiology Dept KGH,SANOCHEMIA DIAGNOSTICS UK LTD,20463507,377.64,771795878,7025
Department of Health,Worcestershire Acute Hospitals NHST,2016-10-31,Med & Surg Equip Disp,Cardiac Cath Lab,MEDTRONIC LTD,20463508,120,467254526,1051532603
Department of Health,Worcestershire Acute Hospitals NHST,2016-10-31,Med & Surg Equip General,Main Theatre,JOHNSON & JOHNSON MEDICAL LTD,20463509,281.36,592926302,16226174
Department of Health,Worcestershire Acute Hospitals NHST,2016-10-31,Med & Surg Equip General,Day Unit Colposcopy Gynae,JOHNSON & JOHNSON MEDICAL LTD,20463511,1406.82,592926302,16226140
Department of Health,Worcestershire Acute Hospitals NHST,2016-10-31,Med & Surg Equip General,Accident + Emergency,EDWARDS LIFESCIENCES LTD,20463513,162.36,724574035,21620431
Department of Health,Worcestershire Acute Hospitals NHST,2016-10-31,Med & Surg Equip General,Alex Theatre - Scrub,EDWARDS LIFESCIENCES LTD,20463514,979.2,724574035,21620447
Department of Health,Worcestershire Acute Hospitals NHST,2016-10-31,Med & Surg Equip General,WRH Intra Op Fluid Mgt Consumables,EDWARDS LIFESCIENCES LTD,20463519,1939.2,724574035,21620509
Department of Health,Worcestershire Acute Hospitals NHST,2016-10-31,AUC Additions,Balance Sheet,WOODLANDS GENERATORS,20463521,768.86,275452053,B36354
Department of Health,Worcestershire Acute Hospitals NHST,2016-10-31,Patients Appl: Purchase,GP Direct Access Alex,KINETEC MEDICAL PRODUCTS UK LTD,20463524,94.4,,UKSI0002977
Department of Health,Worcestershire Acute Hospitals NHST,2016-10-31,AUC Additions,Balance Sheet,WILLIAM GOUGH & SONS,20463527,5720.3,,19582
Department of Health,Worcestershire Acute Hospitals NHST,2016-10-31,Engineering Contracts,Building- No Spec,SAUTER AUTOMATION LTD,20463530,780,290630563,AP15410011
Department of Health,Worcestershire Acute Hospitals NHST,2016-10-31,Stents,Cardiac Cath Lab,VASCULAR PERSPECTIVES LTD,20463534,564,817304152,34522
Department of Health,Worcestershire Acute Hospitals NHST,2016-10-31,Travel & Subsistence,Car Parking,APPLE SECURITY GROUP LTD,20463536,105,354072959,12603
Department of Health,Worcestershire Acute Hospitals NHST,2016-10-31,Surg Instruments Disp,Alex Theatre - Scrub,BOSTON SCIENTIFIC LTD,20463538,1110,896105403,7161551679
Department of Health,Worcestershire Acute Hospitals NHST,2016-10-31,Stents,Cardiac Cath Lab,BOSTON SCIENTIFIC LTD,20463540,624,896105403,7161551979
Department of Health,Worcestershire Acute Hospitals NHST,2016-10-31,Stents,Radiology Dept WRH,MEDTRONIC LTD,20463542,564,467254526,1051532597
Department of Health,Worcestershire Acute Hospitals NHST,2016-10-31,Med & Surg Equip Disp,Alex Theatre - Scrub,MEDTRONIC LTD,20463545,3256.34,467254526,1051533164
Department of Health,Worcestershire Acute Hospitals NHST,2016-10-31,Prostheses,T&O Medical,ORTHO SOLUTIONS LTD,20463548,1662.24,794553192,0000159270
Department of Health,Worcestershire Acute Hospitals NHST,2016-10-31,Med & Surg Equip General,A+E Nursing WRH,EDWARDS LIFESCIENCES LTD,20463557,135.6,724574035,21620432
Department of Health,Worcestershire Acute Hospitals NHST,2016-10-31,Engineering Contracts,Engineering- No Special,SAUTER AUTOMATION LTD,20463560,724.67,290630563,48492
Department of Health,Worcestershire Acute Hospitals NHST,2016-10-31,Med & Surg Equip General,ICCU - Alex,SYNERGY HEALTH (UK) LTD,20463563,77.11,706163456,OPI773184
Department of Health,Worcestershire Acute Hospitals NHST,2016-10-31,Med & Surg Equip General,Radiology Dept Alex,SYNERGY HEALTH (UK) LTD,20463566,44.56,706163456,OPI773189
Department of Health,Worcestershire Acute Hospitals NHST,2016-10-31,Surg Instruments General,Main Theatre,PLATON MEDICAL LTD,20463569,873.6,661996684,90406
Department of Health,Worcestershire Acute Hospitals NHST,2016-10-31,Patients Appl: Purchase,General Medicine Worcs,PROMEDICS ORTHOPAEDIC LTD,20463572,85.1,926845001,OPI902484
Department of Health,Worcestershire Acute Hospitals NHST,2016-10-31,Stationery,Radiotherapy WRH,GENTA MEDICAL,20463575,87.6,664750711,133245
Department of Health,Worcestershire Acute Hospitals NHST,2016-10-31,Med & Surg Equip Disp,Main Theatre,B BRAUN MEDICAL LTD,20463578,125.4,,0328317847
Department of Health,Worcestershire Acute Hospitals NHST,2016-10-31,Med & Surg Equip Disp,Cardiac Cath Lab,B BRAUN MEDICAL LTD,20463581,672,,0328317845
Department of Health,Worcestershire Acute Hospitals NHST,2016-10-31,Med & Surg Equip General,NICU- Paeds,VIAMED LTD,20463583,87.6,287389593,IN146901
Department of Health,Worcestershire Acute Hospitals NHST,2016-10-31,AUC Additions,Balance Sheet,PORTAKABIN LTD,20463587,800.78,551855234,900755009
Department of Health,Worcestershire Acute Hospitals NHST,2016-10-31,Med & Surg Equip General,T&O Medical,SYNERGY HEALTH (UK) LTD,20463591,34.56,706163456,OPI772946
Department of Health,Worcestershire Acute Hospitals NHST,2016-10-31,Sterile Products,KTC Endoscopy,ROCIALLE,20463592,60.96,226516179,SIN453092
Department of Health,Worcestershire Acute Hospitals NHST,2016-10-31,Med & Surg Equip Disp,Avon Discharge,MACO PHARMA UK LTD,20463594,219.6,626877105,16009064
Department of Health,Worcestershire Acute Hospitals NHST,2016-10-31,Anaesthetics Accessories,Respiratory Alex,PHILIPS RESPIRONICS UK,20463597,100.2,407850060-1,932390340
Department of Health,Worcestershire Acute Hospitals NHST,2016-10-31,Bedding & Linen: Disp,Theatre,BUNZL HEALTHCARE,20463599,155.98,286014266,OPI935304Y16
Department of Health,Worcestershire Acute Hospitals NHST,2016-10-31,Laboratory Reagents,Biochemistry,VWR INTERNATIONAL LTD,20463600,282.56,823853225,5063226487
Department of Health,Worcestershire Acute Hospitals NHST,2016-10-31,Dressings,Accident + Emergency,SYNERGY HEALTH (UK) LTD,20463602,81.73,706163456,OPI773025
Department of Health,Worcestershire Acute Hospitals NHST,2016-10-31,Med & Surg Equip General,Ward 3,SYNERGY HEALTH (UK) LTD,20463605,130.22,706163456,OPI773027
Department of Health,Worcestershire Acute Hospitals NHST,2016-10-31,Furniture & Fittings,Supplies Dept Alex,GB (UK) LTD,20463606,2990.4,933196416,0000131119
Department of Health,Worcestershire Acute Hospitals NHST,2016-10-31,Dressings,Main Theatre,PAUL HARTMANN LTD,20463607,177.22,362341768,76680332
Department of Health,Worcestershire Acute Hospitals NHST,2016-10-31,Anaesthetics Tmp Control,Alex Theatre - Scrub,CAREFUSION UK 306 LTD,20463610,516.8,884241217,5100567133
Department of Health,Worcestershire Acute Hospitals NHST,2016-10-31,Anaesthetics Accessories,Alex Theatre - Scrub,INTERSURGICAL LTD,20463611,36.48,688982252,1256161
Department of Health,Worcestershire Acute Hospitals NHST,2016-10-31,Med & Surg Equip Repair,HSDU- Multi-Specialty,B BRAUN MEDICAL LTD,20463613,188.14,,392127651
Department of Health,Worcestershire Acute Hospitals NHST,2016-10-31,Patients Appl: Purchase,GP Direct Access Alex,JUZO UK LTD,20463615,140.06,671337533,RE1627200090
Department of Health,Worcestershire Acute Hospitals NHST,2016-10-31,Stationery,Engineering- No Special,STANFORD MARSH LTD,20463618,64.93,765325322,682331
Department of Health,Worcestershire Acute Hospitals NHST,2016-10-31,Med & Surg Equip General,Outpats- Multi-Spec Alex,SYNERGY HEALTH (UK) LTD,20463620,35.24,706163456,OPI773020
Department of Health,Worcestershire Acute Hospitals NHST,2016-10-31,Med & Surg Equip General,Ward 14,SYNERGY HEALTH (UK) LTD,20463621,31.87,706163456,OPI773022
Department of Health,Worcestershire Acute Hospitals NHST,2016-10-31,Sterile Products,Ward 10,SYNERGY HEALTH (UK) LTD,20463623,58.49,706163456,OPI773023
Department of Health,Worcestershire Acute Hospitals NHST,2016-10-31,Med & Surg Equip Disp,T&O Medical,BEAVER-VISITEC INTERNATIONAL SALES LTD,20463625,162,,CD16029730
Department of Health,Worcestershire Acute Hospitals NHST,2016-10-31,Med & Surg Equip Disp,Chemotherapy Garden Suite,MACO PHARMA UK LTD,20463627,118.8,626877105,16009176
Department of Health,Worcestershire Acute Hospitals NHST,2016-10-31,Surg Instruments Disp,Gynaecology- 23 beds,MEDITECH SYSTEMS LTD,20463629,68.4,663466122,42920
Department of Health,Worcestershire Acute Hospitals NHST,2016-10-31,Anaesthetics Accessories,Main Theatre,INTERSURGICAL LTD,20463630,36.48,688982252,1256162
Department of Health,Worcestershire Acute Hospitals NHST,2016-10-31,Bedding & Linen: Disp,Main Theatre,365 HEALTHCARE LTD,20463632,104.16,844466408,6010875
Department of Health,Worcestershire Acute Hospitals NHST,2016-10-31,Surg Instruments General,TSSU,B BRAUN MEDICAL LTD,20463634,149.52,,0328318841
Department of Health,Worcestershire Acute Hospitals NHST,2016-10-31,Patients Appl: Purchase,General Medicine Worcs,EMBRACE,20463636,106.8,,NHS162
Department of Health,Worcestershire Acute Hospitals NHST,2016-10-31,Med & Surg Equip General,Theatre,VACSAX LTD,20463638,96,663611343,101422
Department of Health,Worcestershire Acute Hospitals NHST,2016-10-31,Med & Surg Equip General,Main Theatre,VACSAX LTD,20463640,62.4,663611343,101425
Department of Health,Worcestershire Acute Hospitals NHST,2016-10-31,Med & Surg Equip General,Alex Theatre - Scrub,VACSAX LTD,20463642,45.6,663611343,101420
Department of Health,Worcestershire Acute Hospitals NHST,2016-10-31,X-Ray Film & Chemicals,Radiology Dept KGH,GUERBET LABORATORIES LTD,20463644,1260,653183145,692007147
Department of Health,Worcestershire Acute Hospitals NHST,2016-10-31,"Books, Journals & Subscr",Knowledge Mgt,BLACKWELL UK LTD,20463646,170.97,532585539,00157594
Department of Health,Worcestershire Acute Hospitals NHST,2016-10-31,Anaesthetics Accessories,Theatre DayCase ECH TCS,INTERSURGICAL LTD,20463648,93.6,688982252,1255176
Department of Health,Worcestershire Acute Hospitals NHST,2016-10-31,Materials - Electrical,Labour + Delivery,RELIANCE HIGH-TECH LTD,20463650,522.72,340833571,SLINV00044695
Department of Health,Worcestershire Acute Hospitals NHST,2016-10-31,Materials - Electrical,Labour + Delivery,RELIANCE HIGH-TECH LTD,20463652,116.16,340833571,SLINV00044704
Department of Health,Worcestershire Acute Hospitals NHST,2016-10-31,Med & Surg Equip General,Radiology Dept Alex,MERIT MEDICAL UK LTD,20463654,480,645811531,632701
Department of Health,Worcestershire Acute Hospitals NHST,2016-10-31,Anaesthetics Accessories,Alex Theatre - Scrub,MAQUET LTD,20463656,30,468850893,3129031454
Department of Health,Worcestershire Acute Hospitals NHST,2016-10-31,Med & Surg Equip General,ICCU - Worcs,HOLLISTER LTD,20463658,126.43,,901216812
Department of Health,Worcestershire Acute Hospitals NHST,2016-10-31,Cleaning Materials,Domestic Serv,NOBISCO LTD,20463734,80.33,,450276
Department of Health,Worcestershire Acute Hospitals NHST,2016-10-31,Engineering Contracts,Engineering- No Special,STANFORD MARSH LTD,20463740,477.2,765325322,103647
Department of Health,Worcestershire Acute Hospitals NHST,2016-10-31,X-Ray Film & Chemicals,Cardiac Cath Lab,BRACCO UK LTD,20463745,983.52,761495411,1603114011
Department of Health,Worcestershire Acute Hospitals NHST,2016-10-31,Stents,Cardiac Cath Lab,TERUMO UK LTD,20463749,1026,804941042,3876020058
Department of Health,Worcestershire Acute Hospitals NHST,2016-10-31,Med & Surg Equip General,Theatre,APPLIED MEDICAL UK LTD,20463758,1466.4,905621247,93929794
Department of Health,Worcestershire Acute Hospitals NHST,2016-10-31,Prostheses - Hips,T&O Medical,STRYKER UK LTD,20463761,360,787438865,27868526
Department of Health,Worcestershire Acute Hospitals NHST,2016-10-31,Prostheses - Knees,T&O Medical,STRYKER UK LTD,20463761,1401.6,787438865,27868526
Department of Health,Worcestershire Acute Hospitals NHST,2016-10-31,Stents,Cardiac Cath Lab,VASCULAR PERSPECTIVES LTD,20463766,270,817304152,34706
Department of Health,Worcestershire Acute Hospitals NHST,2016-10-31,Laboratory Chemicals,Histology,GENTA MEDICAL,20463769,2154.48,664750711,133242
Department of Health,Worcestershire Acute Hospitals NHST,2016-10-31,Laboratory Reagents,Histology,GENTA MEDICAL,20463769,780,664750711,133242
Department of Health,Worcestershire Acute Hospitals NHST,2016-10-31,Surg Instruments General,Outpatients Dept- E Block,MEDISAVE UK LTD,20463772,138.71,760460346,1103907
Department of Health,Worcestershire Acute Hospitals NHST,2016-10-31,Anaesthetics Accessories,ENT Clinic (Linden Suite),KAPITEX HEALTHCARE LTD,20463775,127.2,557096023,OPI262615
Department of Health,Worcestershire Acute Hospitals NHST,2016-10-31,Med & Surg Equip General,Ophthalmic Nursing,BEAVER-VISITEC INTERNATIONAL SALES LTD,20463778,1015.56,,CD16029731
Department of Health,Worcestershire Acute Hospitals NHST,2016-10-31,Stents,Cardiac Cath Lab,BIOSENSORS EUROPE SA,20463781,825,,930068776
Department of Health,Worcestershire Acute Hospitals NHST,2016-10-31,Stents,Theatre,TERUMO UK LTD,20463783,144,804941042,3876020057
Department of Health,Worcestershire Acute Hospitals NHST,2016-10-31,Materials - Electrical,Engineering- No Special,STATIC SYSTEMS GROUP PLC,20463786,805.2,101859681,CD1004454
Department of Health,Worcestershire Acute Hospitals NHST,2016-10-31,Patients Appl: Purchase,Ward 16,ALLIANCE DISPOSABLES LTD,20463789,466.56,GB736619412,I5410935
Department of Health,Worcestershire Acute Hospitals NHST,2016-10-31,Med & Surg Equip General,T&O Medical,ROCIALLE,20463792,89.84,226516179,SIN453287
Department of Health,Worcestershire Acute Hospitals NHST,2016-10-31,Staff Uniforms & Clothing,Occupational Therapy,SIMON JERSEY LTD,20463795,113.06,732361553,8025696
Department of Health,Worcestershire Acute Hospitals NHST,2016-10-31,Breast Care Prosthesis,Gen Surg-Med,AMOENA UK LTD,20463797,714,522312593,OP0393116
Department of Health,Worcestershire Acute Hospitals NHST,2016-10-31,Breast Care Prosthesis,Breast Care,AMOENA UK LTD,20463800,102,522312593,OP0393122
Department of Health,Worcestershire Acute Hospitals NHST,2016-10-31,Other recvables - Current,Balance Sheet,ONE-OFF SUPPLIER,20464980,35,,148767-30-SEP-2016
Department of Health,Worcestershire Acute Hospitals NHST,2016-10-31,VAT Cont Out Serv Inp Tax,Balance Sheet,ONE-OFF SUPPLIER,20464980,7,,148767-30-SEP-2016
Department of Health,Worcestershire Acute Hospitals NHST,2016-10-31,Other recvables - Current,Balance Sheet,ONE-OFF SUPPLIER,20464981,250,,148771-30-SEP-2016
Department of Health,Worcestershire Acute Hospitals NHST,2016-10-31,VAT Cont Out Serv Inp Tax,Balance Sheet,ONE-OFF SUPPLIER,20464981,50,,148771-30-SEP-2016
Department of Health,Worcestershire Acute Hospitals NHST,2016-10-31,Other Agency Staff,Transformation,SABRINA BROWN CONSULTANCY LTD,20464982,1625,,148800-03-OCT-2016
Department of Health,Worcestershire Acute Hospitals NHST,2016-10-31,Contact lenses & glasses,Ophthalmology,SPECSAVERS OPTICIANS,20464984,156.4,609736419,148809-04-OCT-2016
Department of Health,Worcestershire Acute Hospitals NHST,2016-10-31,Contact lenses & glasses,Ophthalmology,SPECSAVERS OPTICIANS,20464985,373,609736419,148810-04-OCT-2016
Department of Health,Worcestershire Acute Hospitals NHST,2016-10-31,Contact lenses & glasses,Ophthalmology,TESCO OPTICIANS,20464986,39.1,,148802-04-OCT-2016
Department of Health,Worcestershire Acute Hospitals NHST,2016-10-31,Contact lenses & glasses,Ophthalmology,TESCO OPTICIANS,20464988,39.1,,148801-04-OCT-2016
Department of Health,Worcestershire Acute Hospitals NHST,2016-10-31,Contact lenses & glasses,Ophthalmic Nursing,SEYMOUR & EASLEA LTD,20464990,39.1,,148806-04-OCT-2016
Department of Health,Worcestershire Acute Hospitals NHST,2016-10-31,Contact lenses & glasses,Ophthalmic Nursing,ONE-OFF SUPPLIER,20464994,59.3,,148804-04-OCT-2016
Department of Health,Worcestershire Acute Hospitals NHST,2016-10-31,Contact lenses & glasses,Ophthalmic Nursing,ONE-OFF SUPPLIER,20464995,39.1,,148803-04-OCT-2016
Department of Health,Worcestershire Acute Hospitals NHST,2016-10-31,Provisions,Non Patient Catering - CHEC,ONE-OFF SUPPLIER,20464996,39.1,,148805-04-OCT-2016
Department of Health,Worcestershire Acute Hospitals NHST,2016-10-31,Course Fees,Clinical Skills Training,DIAGMED HEALTHCARE LTD,20464997,50,392229344,148844-04-OCT-2016
Department of Health,Worcestershire Acute Hospitals NHST,2016-10-31,Course Fees,Clinical Effectiveness,HEALTHCARE QUALITY IMPROVEMENT PARTNERSHIP,20464999,3588,929034520,148846-04-OCT-2016
Department of Health,Worcestershire Acute Hospitals NHST,2016-10-31,Travel & Subsistence,Accident + Emergency,ONE-OFF SUPPLIER,20465001,122.45,,148843-04-OCT-2016
Department of Health,Worcestershire Acute Hospitals NHST,2016-10-31,Consultant,ECH Medical TCS,ONE-OFF SUPPLIER,20465002,400,,148845-04-OCT-2016
Department of Health,Worcestershire Acute Hospitals NHST,2016-10-31,Stocks Finished Goods,Balance Sheet,MAWDSLEY BROOKS & CO LTD,20465003,54,145099751,148811-04-OCT-2016
Department of Health,Worcestershire Acute Hospitals NHST,2016-10-31,Stocks Finished Goods,Balance Sheet,MAWDSLEY BROOKS & CO LTD,20465006,62.64,145099751,148812-04-OCT-2016
Department of Health,Worcestershire Acute Hospitals NHST,2016-10-31,Stocks Finished Goods,Balance Sheet,MAWDSLEY BROOKS & CO LTD,20465007,56.7,145099751,148813-04-OCT-2016
Department of Health,Worcestershire Acute Hospitals NHST,2016-10-31,Stocks Finished Goods,Balance Sheet,MAWDSLEY BROOKS & CO LTD,20465009,122.7,145099751,148814-04-OCT-2016
Department of Health,Worcestershire Acute Hospitals NHST,2016-10-31,Stocks Finished Goods,Balance Sheet,MAWDSLEY BROOKS & CO LTD,20465015,577.63,145099751,148817-04-OCT-2016
Department of Health,Worcestershire Acute Hospitals NHST,2016-10-31,Other General Provisions,Dir of HR,FIDELITI LTD,20465023,35.1,861436032,148821-04-OCT-2016
Department of Health,Worcestershire Acute Hospitals NHST,2016-10-31,Other Liabilities - Curr,Balance Sheet,FIDELITI LTD,20465023,50313.78,861436032,148821-04-OCT-2016
Department of Health,Worcestershire Acute Hospitals NHST,2016-10-31,Course Fees,Older People Medics- Acon,ALEXANDRA EDUCATION CENTRE,20465026,300,,148822-04-OCT-2016
Department of Health,Worcestershire Acute Hospitals NHST,2016-10-31,Postage & Carriage,Other Pass Throughs,ROYAL MAIL,20465028,5663.65,243170002,148826-04-OCT-2016
Department of Health,Worcestershire Acute Hospitals NHST,2016-10-31,VAT Cont Out Serv Inp Tax,Balance Sheet,ROYAL MAIL,20465028,1132.73,243170002,148826-04-OCT-2016
Department of Health,Worcestershire Acute Hospitals NHST,2016-10-31,Stocks Finished Goods,Balance Sheet,PHOENIX HEALTHCARE DISTRIBUTION LTD,20465032,478.44,109898228,148838-04-OCT-2016
Department of Health,Worcestershire Acute Hospitals NHST,2016-10-31,Stocks Finished Goods,Balance Sheet,PHOENIX HEALTHCARE DISTRIBUTION LTD,20465034,110.4,109898228,148837-04-OCT-2016
Department of Health,Worcestershire Acute Hospitals NHST,2016-10-31,Stocks Finished Goods,Balance Sheet,PHOENIX HEALTHCARE DISTRIBUTION LTD,20465036,2077.2,109898228,148836-04-OCT-2016
Department of Health,Worcestershire Acute Hospitals NHST,2016-10-31,Stocks Finished Goods,Balance Sheet,PHOENIX HEALTHCARE DISTRIBUTION LTD,20465038,1628.36,109898228,148835-04-OCT-2016
Department of Health,Worcestershire Acute Hospitals NHST,2016-10-31,Contact lenses & glasses,Ophthalmology,EYECAN VENTURES LTD,20465039,312.9,,148834-04-OCT-2016
Department of Health,Worcestershire Acute Hospitals NHST,2016-10-31,Contact lenses & glasses,Ophthalmology,EYECAN VENTURES LTD,20465041,490.3,,148833-04-OCT-2016
Department of Health,Worcestershire Acute Hospitals NHST,2016-10-31,Contact lenses & glasses,Ophthalmology,ONE-OFF SUPPLIER,20465043,59.3,,148831-04-OCT-2016
Department of Health,Worcestershire Acute Hospitals NHST,2016-10-31,Contact lenses & glasses,Ophthalmology,ONE-OFF SUPPLIER,20465044,39.1,,148830-04-OCT-2016
Department of Health,Worcestershire Acute Hospitals NHST,2016-10-31,Contact lenses & glasses,Ophthalmology,ONE-OFF SUPPLIER,20465045,39.1,,148829-04-OCT-2016
Department of Health,Worcestershire Acute Hospitals NHST,2016-10-31,Contact lenses & glasses,Ophthalmology,ONE-OFF SUPPLIER,20465046,39.1,,148828-04-OCT-2016
Department of Health,Worcestershire Acute Hospitals NHST,2016-10-31,Contact lenses & glasses,Ophthalmology,ONE-OFF SUPPLIER,20465048,118.6,,148827-04-OCT-2016
Department of Health,Worcestershire Acute Hospitals NHST,2016-10-31,Contact lenses & glasses,Ophthalmology,ONE-OFF SUPPLIER,20465049,118.6,,148832-04-OCT-2016
Department of Health,Worcestershire Acute Hospitals NHST,2016-10-31,Postage & Carriage,Other Pass Throughs,ROYAL MAIL,20465050,4653.07,243170002,148824-04-OCT-2016
Department of Health,Worcestershire Acute Hospitals NHST,2016-10-31,VAT Cont Out Serv Inp Tax,Balance Sheet,ROYAL MAIL,20465050,909.86,243170002,148824-04-OCT-2016
Department of Health,Worcestershire Acute Hospitals NHST,2016-10-31,Postage & Carriage,Other Pass Throughs,ROYAL MAIL,20465051,3280.6,243170002,148825-04-OCT-2016
Department of Health,Worcestershire Acute Hospitals NHST,2016-10-31,VAT Cont Out Serv Inp Tax,Balance Sheet,ROYAL MAIL,20465051,647.44,243170002,148825-04-OCT-2016
Department of Health,Worcestershire Acute Hospitals NHST,2016-10-31,Office Equipment Hire,Occupational Health,MARLER HALEY,20465242,30,972746383,001927
Department of Health,Worcestershire Acute Hospitals NHST,2016-10-31,Cleaning Equipment,Technical Serv- No Spec,STERILIZER TECHNICAL SERVICES LTD,20465244,436.65,,12623
Department of Health,Worcestershire Acute Hospitals NHST,2016-10-31,Cleaning Equipment,Technical Serv- No Spec,STERILIZER TECHNICAL SERVICES LTD,20465248,640,,12622
Department of Health,Worcestershire Acute Hospitals NHST,2016-10-31,Med Equip Additions,Balance Sheet,COMPUTACENTER (UK) LTD,20465252,68.9,490334648,3780045112
Department of Health,Worcestershire Acute Hospitals NHST,2016-10-31,Med & Surg Equip General,T&O Medical,LIMA ORTHOPAEDICS UK LTD,20465258,2634,983881854,RI16005412
Department of Health,Worcestershire Acute Hospitals NHST,2016-10-31,Dressings,T&O Medical,WRIGHT MEDICAL UK LTD,20465262,80.03,677219993,156146RI
Department of Health,Worcestershire Acute Hospitals NHST,2016-10-31,Med & Surg Equip Disp,Dental Laboratory,DB LAB SUPPLIES,20465267,166.26,179868778,3000083466
Department of Health,Worcestershire Acute Hospitals NHST,2016-10-31,Breast Care Prosthesis,Gen Surg-Med,AMOENA UK LTD,20465268,102,522312593,OP0392866
Department of Health,Worcestershire Acute Hospitals NHST,2016-10-31,Breast Care Prosthesis,Gen Surg-Med,AMOENA UK LTD,20465275,102,522312593,OP0392871
Department of Health,Worcestershire Acute Hospitals NHST,2016-10-31,Prostheses,T&O Medical,WRIGHT MEDICAL UK LTD,20465279,80.03,677219993,156158RI
Department of Health,Worcestershire Acute Hospitals NHST,2016-10-31,Med & Surg Equip General,T&O Medical,CONMED LINVATEC UK,20465282,1080,685817778,1273218
Department of Health,Worcestershire Acute Hospitals NHST,2016-10-31,Med & Surg Equip General,Accident + Emergency,TIMESCO HEALTHCARE LTD,20465287,160.8,805952029,INV144846
Department of Health,Worcestershire Acute Hospitals NHST,2016-10-31,Dressings,Acute Stroke Unit,MEDTRONIC LTD,20465292,600,467254526,1051532600
Department of Health,Worcestershire Acute Hospitals NHST,2016-10-31,Stents,Radiology Dept WRH,MEDTRONIC LTD,20465296,45.6,467254526,1051532598
Department of Health,Worcestershire Acute Hospitals NHST,2016-10-31,Med & Surg Equip General,T&O Medical,JOHNSON & JOHNSON MEDICAL LTD,20465300,1218,592926302,16226141
Department of Health,Worcestershire Acute Hospitals NHST,2016-10-31,Sterile Products,Theatre,SQUADRON MEDICAL LTD,20465304,484.9,398925088,9701625383
Department of Health,Worcestershire Acute Hospitals NHST,2016-10-31,AUC Additions,Balance Sheet,PORTAKABIN LTD,20465312,21008.71,551855234,900755298
Department of Health,Worcestershire Acute Hospitals NHST,2016-10-31,Med & Surg Equip Disp,Cardiac Cath Lab,BOSTON SCIENTIFIC LTD,20465325,100.8,896105403,7161551976
Department of Health,Worcestershire Acute Hospitals NHST,2016-10-31,Stents,Cardiac Cath Lab,BOSTON SCIENTIFIC LTD,20465325,50.4,896105403,7161551976
Department of Health,Worcestershire Acute Hospitals NHST,2016-10-31,Stents,Cardiac Cath Lab,BOSTON SCIENTIFIC LTD,20465329,72,896105403,7161551978
Department of Health,Worcestershire Acute Hospitals NHST,2016-10-31,Stents,Cardiac Cath Lab,BOSTON SCIENTIFIC LTD,20465332,144,896105403,7161551975
Department of Health,Worcestershire Acute Hospitals NHST,2016-10-31,Med & Surg Equip Disp,Cardiac Cath Lab,BOSTON SCIENTIFIC LTD,20465338,302.4,896105403,7161551974
Department of Health,Worcestershire Acute Hospitals NHST,2016-10-31,Surg Instruments General,Main Theatre,JOHNSON & JOHNSON MEDICAL LTD,20465342,2111.51,592926302,16226175
Department of Health,Worcestershire Acute Hospitals NHST,2016-10-31,Catering Equip Purchase,Catering Dept-No Spec,NOBISCO LTD,20465346,27.44,,450035
Department of Health,Worcestershire Acute Hospitals NHST,2016-10-31,Cleaning Materials,Catering Dept-No Spec,NOBISCO LTD,20465346,17.78,,450035
Department of Health,Worcestershire Acute Hospitals NHST,2016-10-31,Sale of Goods & Srv NHS,Oral MaxFac- MedStaff KGH,SYNERGY HEALTH (UK) LTD,20465355,37.1,706163456,OPI772960
Department of Health,Worcestershire Acute Hospitals NHST,2016-10-31,Sale of Goods & Srv NHS,Oral MaxFac- MedStaff KGH,MERCIAN SURGICAL SUPPLY CO LTD,20465358,210,110668004,0000089120
Department of Health,Worcestershire Acute Hospitals NHST,2016-10-31,Med & Surg Equip Disp,Obs + Gynae-Med,MEDIPLUS LTD,20465362,417.26,442476056,SIN179748
